Organisation Code,Organisation Label,Effective Date,Organisational Unit,Service Division Label,Category Internal Name,Purpose,Detailed Expenditure Code,Payment Date,Transaction Number,Irrecoverable VAT Amount,Amount,Capital Or Revenue,Beneficiary Name,Procurement Card
Http://opendatacommunities.org/id/metropolitan-district-council/leeds,Leeds City Council,30/11/2022,Communities Housing and Environment,Communities,Supplies and Services,Other Hired and Contracted Services,265,15/11/2022,2211-00001,0.00,450.00,R,A & A COACH TRAVEL,No
Http://opendatacommunities.org/id/metropolitan-district-council/leeds,Leeds City Council,30/11/2022,Adults and Health,Services For Older People Under 65 P/Dis,Agency Payments,Sheltered Accommodation,569,09/11/2022,2211-00002,0.00,5400.00,R,A & V TRANSITIONAL HOMES,No
Http://opendatacommunities.org/id/metropolitan-district-council/leeds,Leeds City Council,30/11/2022,Communities Housing and Environment,Car Parking Services,External Income,Penalties Fines & Car Parking Charges,934,17/11/2022,2211-00003,0.00,35.00,R,REDACTED PERSONAL DATA,No
Http://opendatacommunities.org/id/metropolitan-district-council/leeds,Leeds City Council,30/11/2022,Strategic Landlord,HRA Housing Leeds,Capital,OTHER COSTS,7,24/11/2022,2211-00004,0.00,100.00,C,REDACTED PERSONAL DATA,No
Http://opendatacommunities.org/id/metropolitan-district-council/leeds,Leeds City Council,30/11/2022,Strategic Landlord,HRA Housing Leeds,Capital,CONSTRUCTION,3,08/11/2022,2211-00005,0.00,25027.63,C,A Connolly Limited,No
Http://opendatacommunities.org/id/metropolitan-district-council/leeds,Leeds City Council,30/11/2022,Strategic Landlord,HRA Housing Leeds,Capital,CONSTRUCTION,3,08/11/2022,2211-00006,0.00,43769.30,C,A Connolly Limited,No
Http://opendatacommunities.org/id/metropolitan-district-council/leeds,Leeds City Council,30/11/2022,Resources,Leeds Building Services,Supplies and Services,Other Hired and Contracted Services,265,25/11/2022,2211-00007,0.00,19371.46,R,A Coole Electrical Ltd,No
Http://opendatacommunities.org/id/metropolitan-district-council/leeds,Leeds City Council,30/11/2022,Communities Housing and Environment,Customer Access,Supplies and Services,Bought In Professional Services,277,09/11/2022,2211-00008,0.00,18.00,R,REDACTED COMMERCIAL CONFIDENTIALITY,No
Http://opendatacommunities.org/id/metropolitan-district-council/leeds,Leeds City Council,30/11/2022,Communities Housing and Environment,Customer Access,Supplies and Services,Bought In Professional Services,277,09/11/2022,2211-00009,0.00,27.00,R,REDACTED COMMERCIAL CONFIDENTIALITY,No
Http://opendatacommunities.org/id/metropolitan-district-council/leeds,Leeds City Council,30/11/2022,Communities Housing and Environment,Customer Access,Supplies and Services,Bought In Professional Services,277,09/11/2022,2211-00010,0.00,27.00,R,REDACTED COMMERCIAL CONFIDENTIALITY,No
Http://opendatacommunities.org/id/metropolitan-district-council/leeds,Leeds City Council,30/11/2022,Communities Housing and Environment,Customer Access,Supplies and Services,Bought In Professional Services,277,09/11/2022,2211-00011,0.00,18.00,R,REDACTED COMMERCIAL CONFIDENTIALITY,No
Http://opendatacommunities.org/id/metropolitan-district-council/leeds,Leeds City Council,30/11/2022,Communities Housing and Environment,Customer Access,Supplies and Services,Bought In Professional Services,277,09/11/2022,2211-00012,0.00,11.10,R,REDACTED COMMERCIAL CONFIDENTIALITY,No
Http://opendatacommunities.org/id/metropolitan-district-council/leeds,Leeds City Council,30/11/2022,Communities Housing and Environment,Customer Access,Supplies and Services,Bought In Professional Services,277,09/11/2022,2211-00013,0.00,24.00,R,REDACTED COMMERCIAL CONFIDENTIALITY,No
Http://opendatacommunities.org/id/metropolitan-district-council/leeds,Leeds City Council,30/11/2022,Communities Housing and Environment,Customer Access,Supplies and Services,Bought In Professional Services,277,09/11/2022,2211-00014,0.00,9.00,R,REDACTED COMMERCIAL CONFIDENTIALITY,No
Http://opendatacommunities.org/id/metropolitan-district-council/leeds,Leeds City Council,30/11/2022,Communities Housing and Environment,Customer Access,Supplies and Services,Bought In Professional Services,277,16/11/2022,2211-00015,0.00,13.50,R,REDACTED COMMERCIAL CONFIDENTIALITY,No
Http://opendatacommunities.org/id/metropolitan-district-council/leeds,Leeds City Council,30/11/2022,Communities Housing and Environment,Customer Access,Supplies and Services,Bought In Professional Services,277,16/11/2022,2211-00016,0.00,39.00,R,REDACTED COMMERCIAL CONFIDENTIALITY,No
Http://opendatacommunities.org/id/metropolitan-district-council/leeds,Leeds City Council,30/11/2022,Communities Housing and Environment,Customer Access,Supplies and Services,Bought In Professional Services,277,16/11/2022,2211-00017,0.00,18.00,R,REDACTED COMMERCIAL CONFIDENTIALITY,No
Http://opendatacommunities.org/id/metropolitan-district-council/leeds,Leeds City Council,30/11/2022,Communities Housing and Environment,Customer Access,Supplies and Services,Bought In Professional Services,277,23/11/2022,2211-00018,0.00,18.00,R,REDACTED COMMERCIAL CONFIDENTIALITY,No
Http://opendatacommunities.org/id/metropolitan-district-council/leeds,Leeds City Council,30/11/2022,Communities Housing and Environment,Customer Access,Supplies and Services,Bought In Professional Services,277,23/11/2022,2211-00019,0.00,18.00,R,REDACTED COMMERCIAL CONFIDENTIALITY,No
Http://opendatacommunities.org/id/metropolitan-district-council/leeds,Leeds City Council,30/11/2022,Communities Housing and Environment,Customer Access,Supplies and Services,Bought In Professional Services,277,23/11/2022,2211-00020,0.00,21.30,R,REDACTED COMMERCIAL CONFIDENTIALITY,No
Http://opendatacommunities.org/id/metropolitan-district-council/leeds,Leeds City Council,30/11/2022,Communities Housing and Environment,Customer Access,Supplies and Services,Bought In Professional Services,277,30/11/2022,2211-00021,0.00,18.00,R,REDACTED COMMERCIAL CONFIDENTIALITY,No
Http://opendatacommunities.org/id/metropolitan-district-council/leeds,Leeds City Council,30/11/2022,Communities Housing and Environment,Customer Access,Supplies and Services,Bought In Professional Services,277,30/11/2022,2211-00022,0.00,18.00,R,REDACTED COMMERCIAL CONFIDENTIALITY,No
Http://opendatacommunities.org/id/metropolitan-district-council/leeds,Leeds City Council,30/11/2022,Strategic Landlord,HRA Housing Leeds,Capital,OTHER COSTS,7,30/11/2022,2211-00023,0.00,80.00,C,REDACTED PERSONAL DATA,No
Http://opendatacommunities.org/id/metropolitan-district-council/leeds,Leeds City Council,30/11/2022,Children and Families,Social Care,Agency Payments,Services Rendered By Voluntary Sector,505,02/11/2022,2211-00024,0.00,1900.77,R,REDACTED PERSONAL DATA,No
Http://opendatacommunities.org/id/metropolitan-district-council/leeds,Leeds City Council,30/11/2022,Children and Families,Social Care,Agency Payments,Services Rendered By Voluntary Sector,505,04/11/2022,2211-00025,0.00,4613.90,R,REDACTED PERSONAL DATA,No
Http://opendatacommunities.org/id/metropolitan-district-council/leeds,Leeds City Council,30/11/2022,Adults and Health,Other Generic Services,Agency Payments,Fees To Carers,563,11/11/2022,2211-00026,0.00,250.62,R,REDACTED PERSONAL DATA,No
Http://opendatacommunities.org/id/metropolitan-district-council/leeds,Leeds City Council,30/11/2022,Adults and Health,Other Generic Services,Agency Payments,Fees To Carers,563,16/11/2022,2211-00027,0.00,50.40,R,REDACTED PERSONAL DATA,No
Http://opendatacommunities.org/id/metropolitan-district-council/leeds,Leeds City Council,30/11/2022,Adults and Health,Other Generic Services,Agency Payments,Fees To Carers,563,16/11/2022,2211-00028,0.00,460.80,R,REDACTED PERSONAL DATA,No
Http://opendatacommunities.org/id/metropolitan-district-council/leeds,Leeds City Council,30/11/2022,Adults and Health,Other Generic Services,Agency Payments,Fees To Carers,563,18/11/2022,2211-00029,0.00,75.12,R,REDACTED PERSONAL DATA,No
Http://opendatacommunities.org/id/metropolitan-district-council/leeds,Leeds City Council,30/11/2022,Adults and Health,Other Generic Services,Agency Payments,Fees To Carers,563,25/11/2022,2211-00030,0.00,204.64,R,REDACTED PERSONAL DATA,No
Http://opendatacommunities.org/id/metropolitan-district-council/leeds,Leeds City Council,30/11/2022,Resources,Leeds Building Services,Supplies and Services,Operational Materials,205,11/11/2022,2211-00031,0.00,795.00,R,A J H  Pump Supply & Repair Ltd,No
Http://opendatacommunities.org/id/metropolitan-district-council/leeds,Leeds City Council,30/11/2022,Resources,Leeds Building Services,Supplies and Services,Operational Materials,205,25/11/2022,2211-00032,0.00,323.00,R,A J H  Pump Supply & Repair Ltd,No
Http://opendatacommunities.org/id/metropolitan-district-council/leeds,Leeds City Council,30/11/2022,Resources,Leeds Building Services,Supplies and Services,Operational Materials,205,25/11/2022,2211-00033,0.00,1255.00,R,A J H  Pump Supply & Repair Ltd,No
Http://opendatacommunities.org/id/metropolitan-district-council/leeds,Leeds City Council,30/11/2022,Resources,Leeds Building Services,Supplies and Services,Operational Materials,205,29/11/2022,2211-00034,0.00,3780.00,R,A J H  Pump Supply & Repair Ltd,No
Http://opendatacommunities.org/id/metropolitan-district-council/leeds,Leeds City Council,30/11/2022,Communities Housing and Environment,Customer Access,Supplies and Services,Resaleable Materials,204,24/11/2022,2211-00035,0.00,19.90,R,A J PROMOTIONS,No
Http://opendatacommunities.org/id/metropolitan-district-council/leeds,Leeds City Council,30/11/2022,Children and Families,Social Care,Agency Payments,Services Rendered By Other Organisations,511,04/11/2022,2211-00036,0.00,699.08,R,REDACTED PERSONAL DATA,No
Http://opendatacommunities.org/id/metropolitan-district-council/leeds,Leeds City Council,30/11/2022,Children and Families,Social Care,Supplies and Services,Conference Meetings,253,11/11/2022,2211-00037,0.00,173.00,R,A Little Something Extra Ltd,No
Http://opendatacommunities.org/id/metropolitan-district-council/leeds,Leeds City Council,30/11/2022,Communities Housing and Environment,Customer Access,Supplies and Services,Bought In Professional Services,277,02/11/2022,2211-00038,0.00,108.00,R,A MOHAMMED,No
Http://opendatacommunities.org/id/metropolitan-district-council/leeds,Leeds City Council,30/11/2022,Communities Housing and Environment,Customer Access,Supplies and Services,Bought In Professional Services,277,02/11/2022,2211-00039,0.00,126.00,R,A MOHAMMED,No
Http://opendatacommunities.org/id/metropolitan-district-council/leeds,Leeds City Council,30/11/2022,Communities Housing and Environment,Customer Access,Supplies and Services,Bought In Professional Services,277,02/11/2022,2211-00040,0.00,108.00,R,A MOHAMMED,No
Http://opendatacommunities.org/id/metropolitan-district-council/leeds,Leeds City Council,30/11/2022,Communities Housing and Environment,Customer Access,Supplies and Services,Bought In Professional Services,277,02/11/2022,2211-00041,0.00,108.00,R,A MOHAMMED,No
Http://opendatacommunities.org/id/metropolitan-district-council/leeds,Leeds City Council,30/11/2022,Communities Housing and Environment,Customer Access,Supplies and Services,Bought In Professional Services,277,02/11/2022,2211-00042,0.00,126.00,R,A MOHAMMED,No
Http://opendatacommunities.org/id/metropolitan-district-council/leeds,Leeds City Council,30/11/2022,Communities Housing and Environment,Customer Access,Supplies and Services,Bought In Professional Services,277,02/11/2022,2211-00043,0.00,18.00,R,A MOHAMMED,No
Http://opendatacommunities.org/id/metropolitan-district-council/leeds,Leeds City Council,30/11/2022,Communities Housing and Environment,Customer Access,Supplies and Services,Bought In Professional Services,277,09/11/2022,2211-00044,0.00,108.00,R,A MOHAMMED,No
Http://opendatacommunities.org/id/metropolitan-district-council/leeds,Leeds City Council,30/11/2022,Communities Housing and Environment,Customer Access,Supplies and Services,Bought In Professional Services,277,09/11/2022,2211-00045,0.00,126.00,R,A MOHAMMED,No
Http://opendatacommunities.org/id/metropolitan-district-council/leeds,Leeds City Council,30/11/2022,Communities Housing and Environment,Customer Access,Supplies and Services,Bought In Professional Services,277,09/11/2022,2211-00046,0.00,108.00,R,A MOHAMMED,No
Http://opendatacommunities.org/id/metropolitan-district-council/leeds,Leeds City Council,30/11/2022,Communities Housing and Environment,Customer Access,Supplies and Services,Bought In Professional Services,277,09/11/2022,2211-00047,0.00,121.50,R,A MOHAMMED,No
Http://opendatacommunities.org/id/metropolitan-district-council/leeds,Leeds City Council,30/11/2022,Communities Housing and Environment,Customer Access,Supplies and Services,Bought In Professional Services,277,09/11/2022,2211-00048,0.00,126.00,R,A MOHAMMED,No
Http://opendatacommunities.org/id/metropolitan-district-council/leeds,Leeds City Council,30/11/2022,Communities Housing and Environment,Customer Access,Supplies and Services,Bought In Professional Services,277,09/11/2022,2211-00049,0.00,126.00,R,A MOHAMMED,No
Http://opendatacommunities.org/id/metropolitan-district-council/leeds,Leeds City Council,30/11/2022,Communities Housing and Environment,Customer Access,Supplies and Services,Bought In Professional Services,277,16/11/2022,2211-00050,0.00,126.00,R,A MOHAMMED,No
Http://opendatacommunities.org/id/metropolitan-district-council/leeds,Leeds City Council,30/11/2022,Communities Housing and Environment,Customer Access,Supplies and Services,Bought In Professional Services,277,16/11/2022,2211-00051,0.00,108.00,R,A MOHAMMED,No
Http://opendatacommunities.org/id/metropolitan-district-council/leeds,Leeds City Council,30/11/2022,Communities Housing and Environment,Customer Access,Supplies and Services,Bought In Professional Services,277,16/11/2022,2211-00052,0.00,108.00,R,A MOHAMMED,No
Http://opendatacommunities.org/id/metropolitan-district-council/leeds,Leeds City Council,30/11/2022,Communities Housing and Environment,Customer Access,Supplies and Services,Bought In Professional Services,277,16/11/2022,2211-00053,0.00,108.00,R,A MOHAMMED,No
Http://opendatacommunities.org/id/metropolitan-district-council/leeds,Leeds City Council,30/11/2022,Communities Housing and Environment,Customer Access,Supplies and Services,Bought In Professional Services,277,23/11/2022,2211-00054,0.00,108.00,R,A MOHAMMED,No
Http://opendatacommunities.org/id/metropolitan-district-council/leeds,Leeds City Council,30/11/2022,Communities Housing and Environment,Customer Access,Supplies and Services,Bought In Professional Services,277,23/11/2022,2211-00055,0.00,25.50,R,A MOHAMMED,No
Http://opendatacommunities.org/id/metropolitan-district-council/leeds,Leeds City Council,30/11/2022,Communities Housing and Environment,Customer Access,Supplies and Services,Bought In Professional Services,277,23/11/2022,2211-00056,0.00,27.00,R,A MOHAMMED,No
Http://opendatacommunities.org/id/metropolitan-district-council/leeds,Leeds City Council,30/11/2022,Communities Housing and Environment,Customer Access,Supplies and Services,Bought In Professional Services,277,23/11/2022,2211-00057,0.00,18.00,R,A MOHAMMED,No
Http://opendatacommunities.org/id/metropolitan-district-council/leeds,Leeds City Council,30/11/2022,Communities Housing and Environment,Customer Access,Supplies and Services,Bought In Professional Services,277,23/11/2022,2211-00058,0.00,126.00,R,A MOHAMMED,No
Http://opendatacommunities.org/id/metropolitan-district-council/leeds,Leeds City Council,30/11/2022,Communities Housing and Environment,Customer Access,Supplies and Services,Bought In Professional Services,277,23/11/2022,2211-00059,0.00,108.00,R,A MOHAMMED,No
Http://opendatacommunities.org/id/metropolitan-district-council/leeds,Leeds City Council,30/11/2022,Communities Housing and Environment,Customer Access,Supplies and Services,Bought In Professional Services,277,23/11/2022,2211-00060,0.00,108.00,R,A MOHAMMED,No
Http://opendatacommunities.org/id/metropolitan-district-council/leeds,Leeds City Council,30/11/2022,Communities Housing and Environment,Customer Access,Supplies and Services,Bought In Professional Services,277,23/11/2022,2211-00061,0.00,18.00,R,A MOHAMMED,No
Http://opendatacommunities.org/id/metropolitan-district-council/leeds,Leeds City Council,30/11/2022,Communities Housing and Environment,Customer Access,Supplies and Services,Bought In Professional Services,277,23/11/2022,2211-00062,0.00,43.50,R,A MOHAMMED,No
Http://opendatacommunities.org/id/metropolitan-district-council/leeds,Leeds City Council,30/11/2022,Communities Housing and Environment,Customer Access,Supplies and Services,Bought In Professional Services,277,23/11/2022,2211-00063,0.00,108.00,R,A MOHAMMED,No
Http://opendatacommunities.org/id/metropolitan-district-council/leeds,Leeds City Council,30/11/2022,Communities Housing and Environment,Customer Access,Supplies and Services,Bought In Professional Services,277,30/11/2022,2211-00064,0.00,108.00,R,A MOHAMMED,No
Http://opendatacommunities.org/id/metropolitan-district-council/leeds,Leeds City Council,30/11/2022,Communities Housing and Environment,Customer Access,Supplies and Services,Bought In Professional Services,277,30/11/2022,2211-00065,0.00,126.00,R,A MOHAMMED,No
Http://opendatacommunities.org/id/metropolitan-district-council/leeds,Leeds City Council,30/11/2022,Communities Housing and Environment,Customer Access,Supplies and Services,Bought In Professional Services,277,30/11/2022,2211-00066,0.00,94.50,R,A MOHAMMED,No
Http://opendatacommunities.org/id/metropolitan-district-council/leeds,Leeds City Council,30/11/2022,Communities Housing and Environment,Customer Access,Supplies and Services,Bought In Professional Services,277,30/11/2022,2211-00067,0.00,135.00,R,A MOHAMMED,No
Http://opendatacommunities.org/id/metropolitan-district-council/leeds,Leeds City Council,30/11/2022,Communities Housing and Environment,Customer Access,Supplies and Services,Bought In Professional Services,277,30/11/2022,2211-00068,0.00,18.00,R,A MOHAMMED,No
Http://opendatacommunities.org/id/metropolitan-district-council/leeds,Leeds City Council,30/11/2022,Communities Housing and Environment,Customer Access,Supplies and Services,Bought In Professional Services,277,30/11/2022,2211-00069,0.00,126.00,R,A MOHAMMED,No
Http://opendatacommunities.org/id/metropolitan-district-council/leeds,Leeds City Council,30/11/2022,Children and Families,Social Care,Agency Payments,Services Rendered By Other Organisations,511,02/11/2022,2211-00070,0.00,543.08,R,REDACTED PERSONAL DATA,No
Http://opendatacommunities.org/id/metropolitan-district-council/leeds,Leeds City Council,30/11/2022,Children and Families,Social Care,Agency Payments,Services Rendered By Other Organisations,511,04/11/2022,2211-00071,0.00,2563.28,R,REDACTED PERSONAL DATA,No
Http://opendatacommunities.org/id/metropolitan-district-council/leeds,Leeds City Council,30/11/2022,Communities Housing and Environment,Customer Access,Supplies and Services,Bought In Professional Services,277,16/11/2022,2211-00072,0.00,108.00,R,A NAMAKI,No
Http://opendatacommunities.org/id/metropolitan-district-council/leeds,Leeds City Council,30/11/2022,Communities Housing and Environment,Customer Access,Supplies and Services,Bought In Professional Services,277,23/11/2022,2211-00073,0.00,108.00,R,A NAMAKI,No
Http://opendatacommunities.org/id/metropolitan-district-council/leeds,Leeds City Council,30/11/2022,Communities Housing and Environment,Customer Access,Supplies and Services,Bought In Professional Services,277,23/11/2022,2211-00074,0.00,36.00,R,A NAMAKI,No
Http://opendatacommunities.org/id/metropolitan-district-council/leeds,Leeds City Council,30/11/2022,Communities Housing and Environment,Customer Access,Supplies and Services,Bought In Professional Services,277,23/11/2022,2211-00075,0.00,108.00,R,A NAMAKI,No
Http://opendatacommunities.org/id/metropolitan-district-council/leeds,Leeds City Council,30/11/2022,Communities Housing and Environment,Customer Access,Supplies and Services,Bought In Professional Services,277,23/11/2022,2211-00076,0.00,22.50,R,A NAMAKI,No
Http://opendatacommunities.org/id/metropolitan-district-council/leeds,Leeds City Council,30/11/2022,Communities Housing and Environment,Customer Access,Supplies and Services,Bought In Professional Services,277,30/11/2022,2211-00077,0.00,108.00,R,A NAMAKI,No
Http://opendatacommunities.org/id/metropolitan-district-council/leeds,Leeds City Council,30/11/2022,Communities Housing and Environment,Customer Access,Supplies and Services,Bought In Professional Services,277,30/11/2022,2211-00078,0.00,108.00,R,A NAMAKI,No
Http://opendatacommunities.org/id/metropolitan-district-council/leeds,Leeds City Council,30/11/2022,Children and Families,Social Care,Agency Payments,Services Rendered By Other Organisations,511,04/11/2022,2211-00079,0.00,233.03,R,REDACTED PERSONAL DATA,No
Http://opendatacommunities.org/id/metropolitan-district-council/leeds,Leeds City Council,30/11/2022,Strategic Landlord,HRA Housing Leeds,Capital,OTHER COSTS,7,28/11/2022,2211-00080,0.00,249.22,C,REDACTED PERSONAL DATA,No
Http://opendatacommunities.org/id/metropolitan-district-council/leeds,Leeds City Council,30/11/2022,Resources,Commercial Services,Supplies and Services,Other Hired and Contracted Services,265,18/11/2022,2211-00081,0.00,123.20,R,REDACTED PERSONAL DATA,No
Http://opendatacommunities.org/id/metropolitan-district-council/leeds,Leeds City Council,30/11/2022,Resources,Shared Services,Supplies and Services,Other Hired and Contracted Services,265,01/11/2022,2211-00082,0.00,60.00,R,A Star Couriers Ltd,No
Http://opendatacommunities.org/id/metropolitan-district-council/leeds,Leeds City Council,30/11/2022,Communities Housing and Environment,Waste Management,Employees,Training & Development,70,16/11/2022,2211-00083,0.00,275.80,R,A T Nerac Ltd,No
Http://opendatacommunities.org/id/metropolitan-district-council/leeds,Leeds City Council,30/11/2022,Communities Housing and Environment,Waste Management,Employees,Training & Development,70,18/11/2022,2211-00084,0.00,211.80,R,A T Nerac Ltd,No
Http://opendatacommunities.org/id/metropolitan-district-council/leeds,Leeds City Council,30/11/2022,Strategic Landlord,HRA Housing Leeds,Capital,OTHER COSTS,7,28/11/2022,2211-00085,0.00,217.02,C,REDACTED PERSONAL DATA,No
Http://opendatacommunities.org/id/metropolitan-district-council/leeds,Leeds City Council,30/11/2022,City Development,Libraries Arts & Heritage,Supplies and Services,Operational Materials,205,18/11/2022,2211-00086,0.00,2138.00,R,A V Parts Master Ltd,No
Http://opendatacommunities.org/id/metropolitan-district-council/leeds,Leeds City Council,30/11/2022,City Development,Libraries Arts & Heritage,Supplies and Services,Operational Furniture and Equipment,203,29/11/2022,2211-00087,0.00,893.75,R,A V Parts Master Ltd,No
Http://opendatacommunities.org/id/metropolitan-district-council/leeds,Leeds City Council,30/11/2022,Children and Families,Social Care,Agency Payments,Services Rendered By Other Organisations,511,02/11/2022,2211-00088,0.00,334.20,R,REDACTED PERSONAL DATA,No
Http://opendatacommunities.org/id/metropolitan-district-council/leeds,Leeds City Council,30/11/2022,Children and Families,Social Care,Agency Payments,Services Rendered By Other Organisations,511,04/11/2022,2211-00089,0.00,543.73,R,REDACTED PERSONAL DATA,No
Http://opendatacommunities.org/id/metropolitan-district-council/leeds,Leeds City Council,30/11/2022,Resources,Leeds Building Services,Supplies and Services,Other Hired and Contracted Services,265,25/11/2022,2211-00090,0.00,5444.00,R,A1 SHEET METAL FLUES LTD,No
Http://opendatacommunities.org/id/metropolitan-district-council/leeds,Leeds City Council,30/11/2022,Communities Housing and Environment,Parks and Countryside ,Supplies and Services,Operational Furniture and Equipment,203,01/11/2022,2211-00091,0.00,37.33,R,A1mobile.Co.Uk,Yes
Http://opendatacommunities.org/id/metropolitan-district-council/leeds,Leeds City Council,30/11/2022,Communities Housing and Environment,Parks and Countryside ,Supplies and Services,Office Consumables,210,07/12/2022,2211-00092,0.00,369.60,R,A1mobile.Co.Uk,Yes
Http://opendatacommunities.org/id/metropolitan-district-council/leeds,Leeds City Council,30/11/2022,Insurance,Insurance,Supplies and Services,Insurance Claims,248,28/11/2022,2211-00093,0.00,1219.20,R,AA Motor Claims,No
Http://opendatacommunities.org/id/metropolitan-district-council/leeds,Leeds City Council,30/11/2022,Communities Housing and Environment,Parks and Countryside ,Supplies and Services,Resaleable Materials,204,26/10/2022,2211-00094,0.00,-5.10,R,Aagrah Foods,Yes
Http://opendatacommunities.org/id/metropolitan-district-council/leeds,Leeds City Council,30/11/2022,Communities Housing and Environment,Parks and Countryside ,Supplies and Services,Resaleable Materials,204,26/10/2022,2211-00095,0.00,225.10,R,Aagrah Foods,Yes
Http://opendatacommunities.org/id/metropolitan-district-council/leeds,Leeds City Council,30/11/2022,Resources,Leeds Building Services,Supplies and Services,Other Hired and Contracted Services,265,22/11/2022,2211-00096,0.00,160.00,R,AAL LTD,No
Http://opendatacommunities.org/id/metropolitan-district-council/leeds,Leeds City Council,30/11/2022,Children and Families,Social Care,Internal Recharges,Legal Disbursements,411,11/11/2022,2211-00097,0.00,795.00,R,Aaqib Javed,No
Http://opendatacommunities.org/id/metropolitan-district-council/leeds,Leeds City Council,30/11/2022,Adults and Health,Services For Older People - 65 and Over,Agency Payments,Residential Care Dementia,571,09/11/2022,2211-00098,0.00,2177.12,R,Aaron Court Care Home,No
Http://opendatacommunities.org/id/metropolitan-district-council/leeds,Leeds City Council,30/11/2022,Children and Families,Social Care ,Appropriations,Leaving Care Allowances,634,05/10/2022,2211-00099,0.00,11.94,R,Aarons Department Dbs,Yes
Http://opendatacommunities.org/id/metropolitan-district-council/leeds,Leeds City Council as Accountable Body,30/11/2022,Social Services Pooled Budgets,Leeds Community Equip Store Pooled Budgt,Supplies and Services,Other Equipment,203,25/11/2022,2211-00100,0.00,189.00,R,AAT (GB) LTD,No
Http://opendatacommunities.org/id/metropolitan-district-council/leeds,Leeds City Council as Accountable Body,30/11/2022,Social Services Pooled Budgets,Leeds Community Equip Store Pooled Budgt,Supplies and Services,Other Equipment,203,25/11/2022,2211-00101,0.00,1159.00,R,AAT (GB) LTD,No
Http://opendatacommunities.org/id/metropolitan-district-council/leeds,Leeds City Council,30/11/2022,Children and Families,Social Care,Agency Payments,Independent Fostering Agencies,509,23/11/2022,2211-00102,0.00,6071.43,R,Abacus Fostering,No
Http://opendatacommunities.org/id/metropolitan-district-council/leeds,Leeds City Council,30/11/2022,Communities Housing and Environment,Communities,Supplies and Services,Clothing & Uniforms,241,15/11/2022,2211-00103,0.00,36.60,R,REDACTED PERSONAL DATA,No
Http://opendatacommunities.org/id/metropolitan-district-council/leeds,Leeds City Council as Accountable Body,30/11/2022,Social Services Pooled Budgets,Jcs For People With Learning Disabilitie,Agency Payments,Residential,580,09/11/2022,2211-00104,0.00,11720.20,R,Abbey Care and Education,No
Http://opendatacommunities.org/id/metropolitan-district-council/leeds,Leeds City Council,30/11/2022,Children and Families,Learning Places,Capital,FURNITURE and EQUIPMENT,5,30/11/2022,2211-00105,0.00,3384.10,C,Abbey Multi Academy Trust,No
Http://opendatacommunities.org/id/metropolitan-district-council/leeds,Leeds City Council,30/11/2022,Adults and Health,Services For Adults Under 65 Mental/Dis,Agency Payments,Home Care,568,02/11/2022,2211-00106,0.00,451.50,R,Abbeyfield The Dales Limited,No
Http://opendatacommunities.org/id/metropolitan-district-council/leeds,Leeds City Council,30/11/2022,Children and Families,Social Care,Agency Payments,Allowances,546,24/11/2022,2211-00107,0.00,686.88,R,ABBIE O MAHONY,No
Http://opendatacommunities.org/id/metropolitan-district-council/leeds,Leeds City Council,30/11/2022,Children and Families,Social Care,Agency Payments,Services Rendered By Other Organisations,511,04/11/2022,2211-00108,0.00,1993.86,R,REDACTED PERSONAL DATA,No
Http://opendatacommunities.org/id/metropolitan-district-council/leeds,Leeds City Council,30/11/2022,Children and Families,Social Care,Internal Recharges,Legal Disbursements,411,11/11/2022,2211-00109,0.00,21.00,R,Abbott Toxicology Ltd.,No
Http://opendatacommunities.org/id/metropolitan-district-council/leeds,Leeds City Council,30/11/2022,Communities Housing and Environment,Parks and Countryside ,Supplies and Services,Other Hired and Contracted Services,265,14/10/2022,2211-00110,0.00,600.00,R,Abbotts Memorial Compa,Yes
Http://opendatacommunities.org/id/metropolitan-district-council/leeds,Leeds City Council,30/11/2022,Communities Housing and Environment,Parks and Countryside ,Supplies and Services,Other Hired and Contracted Services,265,18/10/2022,2211-00111,0.00,2950.00,R,Abbotts Memorial Compa,Yes
Http://opendatacommunities.org/id/metropolitan-district-council/leeds,Leeds City Council,30/11/2022,Communities Housing and Environment,Parks and Countryside ,Supplies and Services,Other Hired and Contracted Services,265,02/11/2022,2211-00112,0.00,600.00,R,Abbotts Memorial Compa,Yes
Http://opendatacommunities.org/id/metropolitan-district-council/leeds,Leeds City Council,30/11/2022,Communities Housing and Environment,Parks and Countryside ,Supplies and Services,Other Hired and Contracted Services,265,03/11/2022,2211-00113,0.00,2800.00,R,Abbotts Memorial Compa,Yes
Http://opendatacommunities.org/id/metropolitan-district-council/leeds,Leeds City Council,30/11/2022,Communities Housing and Environment,Parks and Countryside ,Supplies and Services,Other Hired and Contracted Services,265,23/11/2022,2211-00114,0.00,2100.00,R,Abbotts Memorial Compa,Yes
Http://opendatacommunities.org/id/metropolitan-district-council/leeds,Leeds City Council,30/11/2022,Children and Families,Social Care,Agency Payments,General External Residential Placements,507,15/11/2022,2211-00115,0.00,15783.56,R,Abc Care and Education Ltd,No
Http://opendatacommunities.org/id/metropolitan-district-council/leeds,Leeds City Council,30/11/2022,Children and Families,Social Care,Agency Payments,Services Rendered By Other Organisations,511,02/11/2022,2211-00116,0.00,2986.92,R,ABC NURSERY AT LUFC,No
Http://opendatacommunities.org/id/metropolitan-district-council/leeds,Leeds City Council,30/11/2022,Children and Families,Social Care,Agency Payments,Services Rendered By Other Organisations,511,04/11/2022,2211-00117,0.00,6524.70,R,ABC NURSERY AT LUFC,No
Http://opendatacommunities.org/id/metropolitan-district-council/leeds,Leeds City Council,30/11/2022,Children and Families,Social Care,Agency Payments,Services Rendered By Other Organisations,511,02/11/2022,2211-00118,0.00,1629.23,R,Abc@D'S Childcare,No
Http://opendatacommunities.org/id/metropolitan-district-council/leeds,Leeds City Council,30/11/2022,Children and Families,Social Care,Agency Payments,Services Rendered By Other Organisations,511,04/11/2022,2211-00119,0.00,4893.53,R,Abc@D'S Childcare,No
Http://opendatacommunities.org/id/metropolitan-district-council/leeds,Leeds City Council,30/11/2022,Communities Housing and Environment,Customer Access,Supplies and Services,Bought In Professional Services,277,02/11/2022,2211-00120,0.00,13.50,R,Abdiqafar Abdullahi,No
Http://opendatacommunities.org/id/metropolitan-district-council/leeds,Leeds City Council,30/11/2022,Communities Housing and Environment,Customer Access,Supplies and Services,Bought In Professional Services,277,02/11/2022,2211-00121,0.00,18.00,R,Abdiqafar Abdullahi,No
Http://opendatacommunities.org/id/metropolitan-district-council/leeds,Leeds City Council,30/11/2022,Communities Housing and Environment,Customer Access,Supplies and Services,Bought In Professional Services,277,16/11/2022,2211-00122,0.00,18.00,R,Abdiqafar Abdullahi,No
Http://opendatacommunities.org/id/metropolitan-district-council/leeds,Leeds City Council,30/11/2022,Communities Housing and Environment,Customer Access,Supplies and Services,Bought In Professional Services,277,16/11/2022,2211-00123,0.00,36.00,R,Abdiqafar Abdullahi,No
Http://opendatacommunities.org/id/metropolitan-district-council/leeds,Leeds City Council,30/11/2022,Communities Housing and Environment,Customer Access,Supplies and Services,Bought In Professional Services,277,16/11/2022,2211-00124,0.00,27.00,R,Abdiqafar Abdullahi,No
Http://opendatacommunities.org/id/metropolitan-district-council/leeds,Leeds City Council,30/11/2022,Communities Housing and Environment,Customer Access,Supplies and Services,Bought In Professional Services,277,16/11/2022,2211-00125,0.00,18.00,R,Abdiqafar Abdullahi,No
Http://opendatacommunities.org/id/metropolitan-district-council/leeds,Leeds City Council,30/11/2022,Communities Housing and Environment,Customer Access,Supplies and Services,Bought In Professional Services,277,23/11/2022,2211-00126,0.00,18.00,R,Abdiqafar Abdullahi,No
Http://opendatacommunities.org/id/metropolitan-district-council/leeds,Leeds City Council,30/11/2022,Communities Housing and Environment,Customer Access,Supplies and Services,Bought In Professional Services,277,23/11/2022,2211-00127,0.00,25.50,R,Abdiqafar Abdullahi,No
Http://opendatacommunities.org/id/metropolitan-district-council/leeds,Leeds City Council,30/11/2022,Communities Housing and Environment,Customer Access,Supplies and Services,Bought In Professional Services,277,02/11/2022,2211-00128,0.00,18.00,R,Abdulahad Denha,No
Http://opendatacommunities.org/id/metropolitan-district-council/leeds,Leeds City Council,30/11/2022,Communities Housing and Environment,Customer Access,Supplies and Services,Bought In Professional Services,277,02/11/2022,2211-00129,0.00,18.00,R,Abdulahad Denha,No
Http://opendatacommunities.org/id/metropolitan-district-council/leeds,Leeds City Council,30/11/2022,Communities Housing and Environment,Customer Access,Supplies and Services,Bought In Professional Services,277,02/11/2022,2211-00130,0.00,18.00,R,Abdulahad Denha,No
Http://opendatacommunities.org/id/metropolitan-district-council/leeds,Leeds City Council,30/11/2022,Communities Housing and Environment,Customer Access,Supplies and Services,Bought In Professional Services,277,02/11/2022,2211-00131,0.00,27.00,R,Abdulahad Denha,No
Http://opendatacommunities.org/id/metropolitan-district-council/leeds,Leeds City Council,30/11/2022,Communities Housing and Environment,Customer Access,Supplies and Services,Bought In Professional Services,277,02/11/2022,2211-00132,0.00,27.00,R,Abdulahad Denha,No
Http://opendatacommunities.org/id/metropolitan-district-council/leeds,Leeds City Council,30/11/2022,Communities Housing and Environment,Customer Access,Supplies and Services,Bought In Professional Services,277,09/11/2022,2211-00133,0.00,18.00,R,Abdulahad Denha,No
Http://opendatacommunities.org/id/metropolitan-district-council/leeds,Leeds City Council,30/11/2022,Communities Housing and Environment,Customer Access,Supplies and Services,Bought In Professional Services,277,16/11/2022,2211-00134,0.00,36.00,R,Abdulahad Denha,No
Http://opendatacommunities.org/id/metropolitan-district-council/leeds,Leeds City Council,30/11/2022,Communities Housing and Environment,Customer Access,Supplies and Services,Bought In Professional Services,277,16/11/2022,2211-00135,0.00,27.00,R,Abdulahad Denha,No
Http://opendatacommunities.org/id/metropolitan-district-council/leeds,Leeds City Council,30/11/2022,Communities Housing and Environment,Customer Access,Supplies and Services,Bought In Professional Services,277,16/11/2022,2211-00136,0.00,40.50,R,Abdulahad Denha,No
Http://opendatacommunities.org/id/metropolitan-district-council/leeds,Leeds City Council,30/11/2022,Communities Housing and Environment,Customer Access,Supplies and Services,Bought In Professional Services,277,16/11/2022,2211-00137,0.00,18.00,R,Abdulahad Denha,No
Http://opendatacommunities.org/id/metropolitan-district-council/leeds,Leeds City Council,30/11/2022,Communities Housing and Environment,Customer Access,Supplies and Services,Bought In Professional Services,277,23/11/2022,2211-00138,0.00,18.00,R,Abdulahad Denha,No
Http://opendatacommunities.org/id/metropolitan-district-council/leeds,Leeds City Council,30/11/2022,Communities Housing and Environment,Customer Access,Supplies and Services,Bought In Professional Services,277,30/11/2022,2211-00139,0.00,18.00,R,Abdulahad Denha,No
Http://opendatacommunities.org/id/metropolitan-district-council/leeds,Leeds City Council,30/11/2022,Communities Housing and Environment,Customer Access,Supplies and Services,Bought In Professional Services,277,30/11/2022,2211-00140,0.00,18.00,R,Abdulahad Denha,No
Http://opendatacommunities.org/id/metropolitan-district-council/leeds,Leeds City Council,30/11/2022,Communities Housing and Environment,Customer Access,Supplies and Services,Bought In Professional Services,277,30/11/2022,2211-00141,0.00,18.00,R,Abdulahad Denha,No
Http://opendatacommunities.org/id/metropolitan-district-council/leeds,Leeds City Council,30/11/2022,Communities Housing and Environment,Customer Access,Supplies and Services,Bought In Professional Services,277,30/11/2022,2211-00142,0.00,18.00,R,Abdulahad Denha,No
Http://opendatacommunities.org/id/metropolitan-district-council/leeds,Leeds City Council,30/11/2022,Communities Housing and Environment,Customer Access,Supplies and Services,Bought In Professional Services,277,02/11/2022,2211-00143,0.00,9.00,R,Abdulrahim Dastyar,No
Http://opendatacommunities.org/id/metropolitan-district-council/leeds,Leeds City Council,30/11/2022,Communities Housing and Environment,Customer Access,Supplies and Services,Bought In Professional Services,277,02/11/2022,2211-00144,0.00,18.00,R,Abdulrahim Dastyar,No
Http://opendatacommunities.org/id/metropolitan-district-council/leeds,Leeds City Council,30/11/2022,Communities Housing and Environment,Customer Access,Supplies and Services,Bought In Professional Services,277,02/11/2022,2211-00145,0.00,36.00,R,Abdulrahim Dastyar,No
Http://opendatacommunities.org/id/metropolitan-district-council/leeds,Leeds City Council,30/11/2022,Communities Housing and Environment,Customer Access,Supplies and Services,Bought In Professional Services,277,16/11/2022,2211-00146,0.00,18.00,R,Abdulrahim Dastyar,No
Http://opendatacommunities.org/id/metropolitan-district-council/leeds,Leeds City Council,30/11/2022,Communities Housing and Environment,Customer Access,Supplies and Services,Bought In Professional Services,277,30/11/2022,2211-00147,0.00,18.00,R,Abdulrahim Dastyar,No
Http://opendatacommunities.org/id/metropolitan-district-council/leeds,Leeds City Council,30/11/2022,Communities Housing and Environment,Customer Access,Supplies and Services,Bought In Professional Services,277,30/11/2022,2211-00148,0.00,18.00,R,Abdulrahim Dastyar,No
Http://opendatacommunities.org/id/metropolitan-district-council/leeds,Leeds City Council,30/11/2022,Communities Housing and Environment,Customer Access,Supplies and Services,Bought In Professional Services,277,30/11/2022,2211-00149,0.00,13.50,R,Abdulrahim Dastyar,No
Http://opendatacommunities.org/id/metropolitan-district-council/leeds,Leeds City Council,30/11/2022,Children and Families,Social Care,Agency Payments,Placement Support,550,11/11/2022,2211-00150,0.00,400.00,R,Aberford Childcare Services,No
Http://opendatacommunities.org/id/metropolitan-district-council/leeds,Leeds City Council,30/11/2022,Adults and Health,Services For Older People - 65 and Over,Agency Payments,Nursing Home,570,09/11/2022,2211-00151,0.00,36477.45,R,Aberford Hall,No
Http://opendatacommunities.org/id/metropolitan-district-council/leeds,Leeds City Council,30/11/2022,Adults and Health,Services For Older People - 65 and Over,Agency Payments,Nursing Care Dementia,574,09/11/2022,2211-00152,0.00,1982.00,R,Aberford Hall,No
Http://opendatacommunities.org/id/metropolitan-district-council/leeds,Leeds City Council,30/11/2022,Adults and Health,Services For Older People Under 65 P/Dis,Agency Payments,Nursing Home,570,09/11/2022,2211-00153,0.00,9533.93,R,Aberford Hall,No
Http://opendatacommunities.org/id/metropolitan-district-council/leeds,Leeds City Council,30/11/2022,Resources,Leeds Building Services,Supplies and Services,Operational Materials,205,04/11/2022,2211-00154,0.00,390.88,R,ABI GARAGE DOORS LTD,No
Http://opendatacommunities.org/id/metropolitan-district-council/leeds,Leeds City Council,30/11/2022,Resources,Leeds Building Services,Supplies and Services,Operational Materials,205,04/11/2022,2211-00155,0.00,62.50,R,ABI GARAGE DOORS LTD,No
Http://opendatacommunities.org/id/metropolitan-district-council/leeds,Leeds City Council,30/11/2022,Resources,Leeds Building Services,Supplies and Services,Operational Materials,205,04/11/2022,2211-00156,0.00,390.88,R,ABI GARAGE DOORS LTD,No
Http://opendatacommunities.org/id/metropolitan-district-council/leeds,Leeds City Council,30/11/2022,Resources,Leeds Building Services,Supplies and Services,Operational Materials,205,09/11/2022,2211-00157,0.00,437.20,R,ABI GARAGE DOORS LTD,No
Http://opendatacommunities.org/id/metropolitan-district-council/leeds,Leeds City Council,30/11/2022,Resources,Leeds Building Services,Supplies and Services,Operational Materials,205,09/11/2022,2211-00158,0.00,437.20,R,ABI GARAGE DOORS LTD,No
Http://opendatacommunities.org/id/metropolitan-district-council/leeds,Leeds City Council,30/11/2022,Resources,Leeds Building Services,Supplies and Services,Operational Materials,205,09/11/2022,2211-00159,0.00,390.88,R,ABI GARAGE DOORS LTD,No
Http://opendatacommunities.org/id/metropolitan-district-council/leeds,Leeds City Council,30/11/2022,Resources,Leeds Building Services,Supplies and Services,Operational Materials,205,09/11/2022,2211-00160,0.00,437.20,R,ABI GARAGE DOORS LTD,No
Http://opendatacommunities.org/id/metropolitan-district-council/leeds,Leeds City Council,30/11/2022,Resources,Leeds Building Services,Supplies and Services,Operational Materials,205,09/11/2022,2211-00161,0.00,390.88,R,ABI GARAGE DOORS LTD,No
Http://opendatacommunities.org/id/metropolitan-district-council/leeds,Leeds City Council,30/11/2022,Resources,Leeds Building Services,Supplies and Services,Operational Materials,205,09/11/2022,2211-00162,0.00,437.20,R,ABI GARAGE DOORS LTD,No
Http://opendatacommunities.org/id/metropolitan-district-council/leeds,Leeds City Council,30/11/2022,Resources,Leeds Building Services,Supplies and Services,Operational Materials,205,11/11/2022,2211-00163,0.00,197.50,R,ABI GARAGE DOORS LTD,No
Http://opendatacommunities.org/id/metropolitan-district-council/leeds,Leeds City Council,30/11/2022,Resources,Leeds Building Services,Supplies and Services,Operational Materials,205,11/11/2022,2211-00164,0.00,897.44,R,ABI GARAGE DOORS LTD,No
Http://opendatacommunities.org/id/metropolitan-district-council/leeds,Leeds City Council,30/11/2022,Resources,Leeds Building Services,Supplies and Services,Operational Materials,205,25/11/2022,2211-00165,0.00,390.88,R,ABI GARAGE DOORS LTD,No
Http://opendatacommunities.org/id/metropolitan-district-council/leeds,Leeds City Council,30/11/2022,Resources,Leeds Building Services,Supplies and Services,Operational Materials,205,25/11/2022,2211-00166,0.00,390.88,R,ABI GARAGE DOORS LTD,No
Http://opendatacommunities.org/id/metropolitan-district-council/leeds,Leeds City Council,30/11/2022,Resources,Leeds Building Services,Supplies and Services,Operational Materials,205,25/11/2022,2211-00167,0.00,390.88,R,ABI GARAGE DOORS LTD,No
Http://opendatacommunities.org/id/metropolitan-district-council/leeds,Leeds City Council,30/11/2022,Children and Families,Social Care,Appropriations,Leaving Care Allowances,634,10/11/2022,2211-00168,0.00,50.00,R,REDACTED PERSONAL DATA,No
Http://opendatacommunities.org/id/metropolitan-district-council/leeds,Leeds City Council,30/11/2022,Children and Families,Social Care,Agency Payments,Section 17,551,01/11/2022,2211-00169,0.00,40.00,R,REDACTED PERSONAL DATA,No
Http://opendatacommunities.org/id/metropolitan-district-council/leeds,Leeds City Council,30/11/2022,Children and Families,Social Care,Agency Payments,Contact,548,04/11/2022,2211-00170,0.00,5.50,R,REDACTED PERSONAL DATA,No
Http://opendatacommunities.org/id/metropolitan-district-council/leeds,Leeds City Council,30/11/2022,Children and Families,Social Care ,Supplies and Services,General Amenity For Clients/Residents,285,12/10/2022,2211-00171,0.00,57.00,R,Absolute,Yes
Http://opendatacommunities.org/id/metropolitan-district-council/leeds,Leeds City Council,30/11/2022,Children and Families,Social Care,Agency Payments,General External Residential Placements,507,29/11/2022,2211-00172,0.00,17692.01,R,Absolute Children's Services Ltd,No
Http://opendatacommunities.org/id/metropolitan-district-council/leeds,Leeds City Council,30/11/2022,Children and Families,Social Care ,Supplies and Services,Food & Drink,231,30/09/2022,2211-00173,0.00,11.22,R,Abu Bakar,Yes
Http://opendatacommunities.org/id/metropolitan-district-council/leeds,Leeds City Council,30/11/2022,Children and Families,Social Care ,Supplies and Services,Food & Drink,231,18/10/2022,2211-00174,0.00,30.94,R,Abu Bakar,Yes
Http://opendatacommunities.org/id/metropolitan-district-council/leeds,Leeds City Council,30/11/2022,Adults and Health,Services For Adults Under 65 Mental/Dis,Agency Payments,Fees - Level 4,520,24/11/2022,2211-00175,0.00,1432.40,R,Abubaker Denja Mohammed,No
Http://opendatacommunities.org/id/metropolitan-district-council/leeds,Leeds City Council,30/11/2022,Communities Housing and Environment,Strategic Housing Partnership & Support,Supplies and Services,Other Hired and Contracted Services,265,09/11/2022,2211-00176,0.00,385.06,R,Accent Foundation Ltd,No
Http://opendatacommunities.org/id/metropolitan-district-council/leeds,Leeds City Council,30/11/2022,Communities Housing and Environment,Strategic Housing Partnership & Support,Supplies and Services,Other Hired and Contracted Services,265,14/11/2022,2211-00177,0.00,551.47,R,Accent Foundation Ltd,No
Http://opendatacommunities.org/id/metropolitan-district-council/leeds,Leeds City Council,30/11/2022,Communities Housing and Environment,Waste Management ,Supplies and Services,Operational Furniture and Equipment,203,24/10/2022,2211-00178,0.00,660.00,R,Access Locksmiths,Yes
Http://opendatacommunities.org/id/metropolitan-district-council/leeds,Leeds City Council,30/11/2022,Resources,Commercial Services ,Supplies and Services,Operational Materials,205,26/10/2022,2211-00179,0.00,649.22,R,Access Locksmiths,Yes
Http://opendatacommunities.org/id/metropolitan-district-council/leeds,Leeds City Council,30/11/2022,Resources,Facilities Management ,Supplies and Services,Operational Materials,205,26/10/2022,2211-00180,0.00,962.66,R,Access Locksmiths,Yes
Http://opendatacommunities.org/id/metropolitan-district-council/leeds,Leeds City Council,30/11/2022,Strategic Landlord,Housing Management,Supplies and Services,Resaleable Materials,204,02/11/2022,2211-00181,0.00,225.28,R,ACCESS LOCKSMITHS (LEEDS) LIMITED,No
Http://opendatacommunities.org/id/metropolitan-district-council/leeds,Leeds City Council,30/11/2022,Strategic Landlord,Housing Management,Supplies and Services,Resaleable Materials,204,02/11/2022,2211-00182,0.00,124.00,R,ACCESS LOCKSMITHS (LEEDS) LIMITED,No
Http://opendatacommunities.org/id/metropolitan-district-council/leeds,Leeds City Council,30/11/2022,Strategic Landlord,Housing Management,Premises,General Maintenance,104,04/11/2022,2211-00183,0.00,7.20,R,ACCESS LOCKSMITHS (LEEDS) LIMITED,No
Http://opendatacommunities.org/id/metropolitan-district-council/leeds,Leeds City Council,30/11/2022,Strategic Landlord,Housing Management,Supplies and Services,Resaleable Materials,204,04/11/2022,2211-00184,0.00,253.00,R,ACCESS LOCKSMITHS (LEEDS) LIMITED,No
Http://opendatacommunities.org/id/metropolitan-district-council/leeds,Leeds City Council,30/11/2022,Strategic Landlord,Housing Management,Supplies and Services,Resaleable Materials,204,04/11/2022,2211-00185,0.00,74.40,R,ACCESS LOCKSMITHS (LEEDS) LIMITED,No
Http://opendatacommunities.org/id/metropolitan-district-council/leeds,Leeds City Council,30/11/2022,Strategic Landlord,Housing Management,Supplies and Services,Resaleable Materials,204,04/11/2022,2211-00186,0.00,248.00,R,ACCESS LOCKSMITHS (LEEDS) LIMITED,No
Http://opendatacommunities.org/id/metropolitan-district-council/leeds,Leeds City Council,30/11/2022,Strategic Landlord,HRA Housing Leeds,Capital,OTHER COSTS,7,04/11/2022,2211-00187,0.00,192.52,C,ACCESS LOCKSMITHS (LEEDS) LIMITED,No
Http://opendatacommunities.org/id/metropolitan-district-council/leeds,Leeds City Council,30/11/2022,Strategic Landlord,Property and Contracts,Premises,General Maintenance,104,04/11/2022,2211-00188,0.00,478.36,R,ACCESS LOCKSMITHS (LEEDS) LIMITED,No
Http://opendatacommunities.org/id/metropolitan-district-council/leeds,Leeds City Council,30/11/2022,Strategic Landlord,Property and Contracts,Premises,General Maintenance,104,04/11/2022,2211-00189,0.00,66.00,R,ACCESS LOCKSMITHS (LEEDS) LIMITED,No
Http://opendatacommunities.org/id/metropolitan-district-council/leeds,Leeds City Council,30/11/2022,Strategic Landlord,Housing Management,Supplies and Services,Resaleable Materials,204,07/11/2022,2211-00190,0.00,1581.78,R,ACCESS LOCKSMITHS (LEEDS) LIMITED,No
Http://opendatacommunities.org/id/metropolitan-district-council/leeds,Leeds City Council,30/11/2022,Strategic Landlord,Housing Management,Supplies and Services,Resaleable Materials,204,07/11/2022,2211-00191,0.00,98.00,R,ACCESS LOCKSMITHS (LEEDS) LIMITED,No
Http://opendatacommunities.org/id/metropolitan-district-council/leeds,Leeds City Council,30/11/2022,Strategic Landlord,Housing Management,Supplies and Services,Resaleable Materials,204,09/11/2022,2211-00192,0.00,60.00,R,ACCESS LOCKSMITHS (LEEDS) LIMITED,No
Http://opendatacommunities.org/id/metropolitan-district-council/leeds,Leeds City Council,30/11/2022,Resources,Leeds Building Services,Supplies and Services,Operational Materials,205,18/11/2022,2211-00193,0.00,141.31,R,ACCESS LOCKSMITHS (LEEDS) LIMITED,No
Http://opendatacommunities.org/id/metropolitan-district-council/leeds,Leeds City Council,30/11/2022,Resources,Commercial Services,Supplies and Services,Operational Materials,205,23/11/2022,2211-00194,0.00,220.00,R,ACCESS LOCKSMITHS (LEEDS) LIMITED,No
Http://opendatacommunities.org/id/metropolitan-district-council/leeds,Leeds City Council,30/11/2022,Resources,Commercial Services,Supplies and Services,Operational Materials,205,23/11/2022,2211-00195,0.00,220.00,R,ACCESS LOCKSMITHS (LEEDS) LIMITED,No
Http://opendatacommunities.org/id/metropolitan-district-council/leeds,Leeds City Council,30/11/2022,Strategic Landlord,Property and Contracts,Premises,General Maintenance,104,23/11/2022,2211-00196,0.00,1016.00,R,ACCESS LOCKSMITHS (LEEDS) LIMITED,No
Http://opendatacommunities.org/id/metropolitan-district-council/leeds,Leeds City Council,30/11/2022,Strategic Landlord,Property and Contracts,Premises,General Maintenance,104,23/11/2022,2211-00197,0.00,728.00,R,ACCESS LOCKSMITHS (LEEDS) LIMITED,No
Http://opendatacommunities.org/id/metropolitan-district-council/leeds,Leeds City Council,30/11/2022,City Development,Libraries Arts & Heritage,Supplies and Services,Bought In Professional Services,277,18/11/2022,2211-00198,0.00,700.00,R,Accessible By Design Ltd,No
Http://opendatacommunities.org/id/metropolitan-district-council/leeds,Leeds City Council,30/11/2022,Insurance,Insurance,Supplies and Services,Insurance Claims,248,28/11/2022,2211-00199,0.00,1690.67,R,Accidnet Assist,No
Http://opendatacommunities.org/id/metropolitan-district-council/leeds,Leeds City Council,30/11/2022,Insurance,Insurance,Supplies and Services,Insurance Claims,248,10/11/2022,2211-00200,0.00,2625.00,R,Accountant General Of The Senior Courts,No
Http://opendatacommunities.org/id/metropolitan-district-council/leeds,Leeds City Council,30/11/2022,City Development,Recreation ,Supplies and Services,Operational Furniture and Equipment,203,01/11/2022,2211-00201,0.00,7.59,R,Accu.Co.Uk,Yes
Http://opendatacommunities.org/id/metropolitan-district-council/leeds,Leeds City Council,30/11/2022,City Development,Recreation,Transport,External Hire -Occasional,304,03/11/2022,2211-00202,0.00,128.65,R,ACE CONTAINER SERVICES LIMITED,No
Http://opendatacommunities.org/id/metropolitan-district-council/leeds,Leeds City Council,30/11/2022,Resources,Leeds Building Services,Supplies and Services,Other Hired and Contracted Services,265,30/11/2022,2211-00203,0.00,1400.00,R,Ace Elevators Limited,No
Http://opendatacommunities.org/id/metropolitan-district-council/leeds,Leeds City Council,30/11/2022,Resources,Leeds Building Services,Supplies and Services,Other Hired and Contracted Services,265,30/11/2022,2211-00204,0.00,1400.00,R,Ace Elevators Limited,No
Http://opendatacommunities.org/id/metropolitan-district-council/leeds,Leeds City Council,30/11/2022,Resources,Leeds Building Services,Supplies and Services,Other Hired and Contracted Services,265,30/11/2022,2211-00205,0.00,400.00,R,Ace Elevators Limited,No
Http://opendatacommunities.org/id/metropolitan-district-council/leeds,Leeds City Council,30/11/2022,Resources,Leeds Building Services,Supplies and Services,Other Hired and Contracted Services,265,30/11/2022,2211-00206,0.00,1640.00,R,Ace Elevators Limited,No
Http://opendatacommunities.org/id/metropolitan-district-council/leeds,Leeds City Council,30/11/2022,Resources,Leeds Building Services,Supplies and Services,Other Hired and Contracted Services,265,30/11/2022,2211-00207,0.00,2000.00,R,Ace Elevators Limited,No
Http://opendatacommunities.org/id/metropolitan-district-council/leeds,Leeds City Council,30/11/2022,Resources,Leeds Building Services,Supplies and Services,Other Hired and Contracted Services,265,30/11/2022,2211-00208,0.00,1440.00,R,Ace Elevators Limited,No
Http://opendatacommunities.org/id/metropolitan-district-council/leeds,Leeds City Council,30/11/2022,Resources,Leeds Building Services,Supplies and Services,Other Hired and Contracted Services,265,30/11/2022,2211-00209,0.00,1720.00,R,Ace Elevators Limited,No
Http://opendatacommunities.org/id/metropolitan-district-council/leeds,Leeds City Council,30/11/2022,City Development,Asset Management Services ,Supplies and Services,Licences,266,02/11/2022,2211-00210,0.00,125.00,R,Aces.Org.Uk,Yes
Http://opendatacommunities.org/id/metropolitan-district-council/leeds,Leeds City Council,30/11/2022,Children and Families,Learning,Agency Payments,SEN Placements,566,11/11/2022,2211-00211,0.00,20455.00,R,ACKWORTH SCHOOL,No
Http://opendatacommunities.org/id/metropolitan-district-council/leeds,Leeds City Council,30/11/2022,Children and Families,Learning,Agency Payments,SEN Placements,566,11/11/2022,2211-00212,0.00,20455.00,R,ACKWORTH SCHOOL,No
Http://opendatacommunities.org/id/metropolitan-district-council/leeds,Leeds City Council,30/11/2022,Communities Housing and Environment,Parks and Countryside ,Supplies and Services,Operational Materials,205,04/10/2022,2211-00213,0.00,1608.22,R,Acme Facilities Group,Yes
Http://opendatacommunities.org/id/metropolitan-district-council/leeds,Leeds City Council,30/11/2022,Communities Housing and Environment,Parks and Countryside ,Supplies and Services,Other Hired and Contracted Services,265,02/11/2022,2211-00214,0.00,1381.57,R,Acme Facilities Group,Yes
Http://opendatacommunities.org/id/metropolitan-district-council/leeds,Leeds City Council,30/11/2022,Communities Housing and Environment,Parks and Countryside ,Supplies and Services,Other Hired and Contracted Services,265,09/11/2022,2211-00215,0.00,180.00,R,Acme Facilities Group,Yes
Http://opendatacommunities.org/id/metropolitan-district-council/leeds,Leeds City Council,30/11/2022,Children and Families,Social Care,Agency Payments,General External Residential Placements,507,09/11/2022,2211-00216,0.00,19048.75,R,Acorn Care & Education Ltd (Sales),No
Http://opendatacommunities.org/id/metropolitan-district-council/leeds,Leeds City Council,30/11/2022,Children and Families,Social Care,Agency Payments,General External Residential Placements,507,09/11/2022,2211-00217,0.00,15694.99,R,Acorn Care & Education Ltd (Sales),No
Http://opendatacommunities.org/id/metropolitan-district-council/leeds,Leeds City Council,30/11/2022,Children and Families,Social Care,Agency Payments,General External Residential Placements,507,09/11/2022,2211-00218,0.00,9113.22,R,Acorn Care & Education Ltd (Sales),No
Http://opendatacommunities.org/id/metropolitan-district-council/leeds,Leeds City Council,30/11/2022,Children and Families,Social Care,Agency Payments,General External Residential Placements,507,09/11/2022,2211-00219,0.00,19048.75,R,Acorn Care & Education Ltd (Sales),No
Http://opendatacommunities.org/id/metropolitan-district-council/leeds,Leeds City Council,30/11/2022,Children and Families,Social Care,Agency Payments,General External Residential Placements,507,09/11/2022,2211-00220,0.00,18434.27,R,Acorn Care & Education Ltd (Sales),No
Http://opendatacommunities.org/id/metropolitan-district-council/leeds,Leeds City Council as Accountable Body,30/11/2022,Social Services Pooled Budgets,Jcs For People With Learning Disabilitie,Supplies and Services,Other Hired and Contracted Services,265,11/11/2022,2211-00221,0.00,16000.00,R,Acorn Care & Education Ltd (Sales),No
Http://opendatacommunities.org/id/metropolitan-district-council/leeds,Leeds City Council,30/11/2022,Children and Families,Social Care,Agency Payments,General External Residential Placements,507,18/11/2022,2211-00222,0.00,15880.86,R,Acorn Care & Education Ltd (Sales),No
Http://opendatacommunities.org/id/metropolitan-district-council/leeds,Leeds City Council,30/11/2022,Children and Families,Social Care,Agency Payments,General External Residential Placements,507,18/11/2022,2211-00223,0.00,4098.29,R,Acorn Care & Education Ltd (Sales),No
Http://opendatacommunities.org/id/metropolitan-district-council/leeds,Leeds City Council,30/11/2022,Children and Families,Social Care,Agency Payments,General External Residential Placements,507,18/11/2022,2211-00224,0.00,9210.00,R,Acorn Care & Education Ltd (Sales),No
Http://opendatacommunities.org/id/metropolitan-district-council/leeds,Leeds City Council,30/11/2022,Children and Families,Social Care,Agency Payments,General External Residential Placements,507,18/11/2022,2211-00225,0.00,7684.29,R,Acorn Care & Education Ltd (Sales),No
Http://opendatacommunities.org/id/metropolitan-district-council/leeds,Leeds City Council,30/11/2022,Children and Families,Social Care,Agency Payments,General External Residential Placements,507,18/11/2022,2211-00226,0.00,15368.57,R,Acorn Care & Education Ltd (Sales),No
Http://opendatacommunities.org/id/metropolitan-district-council/leeds,Leeds City Council,30/11/2022,Children and Families,Social Care,Agency Payments,General External Residential Placements,507,18/11/2022,2211-00227,0.00,4605.00,R,Acorn Care & Education Ltd (Sales),No
Http://opendatacommunities.org/id/metropolitan-district-council/leeds,Leeds City Council,30/11/2022,Children and Families,Social Care,Agency Payments,General External Residential Placements,507,18/11/2022,2211-00228,0.00,9210.00,R,Acorn Care & Education Ltd (Sales),No
Http://opendatacommunities.org/id/metropolitan-district-council/leeds,Leeds City Council,30/11/2022,Children and Families,Social Care,Agency Payments,General External Residential Placements,507,18/11/2022,2211-00229,0.00,9517.00,R,Acorn Care & Education Ltd (Sales),No
Http://opendatacommunities.org/id/metropolitan-district-council/leeds,Leeds City Council,30/11/2022,Children and Families,Social Care,Agency Payments,General External Residential Placements,507,18/11/2022,2211-00230,0.00,2456.00,R,Acorn Care & Education Ltd (Sales),No
Http://opendatacommunities.org/id/metropolitan-district-council/leeds,Leeds City Council,30/11/2022,Children and Families,Social Care,Agency Payments,General External Residential Placements,507,18/11/2022,2211-00231,0.00,9932.71,R,Acorn Care & Education Ltd (Sales),No
Http://opendatacommunities.org/id/metropolitan-district-council/leeds,Leeds City Council,30/11/2022,Children and Families,Social Care,Agency Payments,General External Residential Placements,507,18/11/2022,2211-00232,0.00,12955.71,R,Acorn Care & Education Ltd (Sales),No
Http://opendatacommunities.org/id/metropolitan-district-council/leeds,Leeds City Council,30/11/2022,Children and Families,Social Care,Agency Payments,General External Residential Placements,507,18/11/2022,2211-00233,0.00,7061.00,R,Acorn Care & Education Ltd (Sales),No
Http://opendatacommunities.org/id/metropolitan-district-council/leeds,Leeds City Council,30/11/2022,Children and Families,Social Care,Agency Payments,General External Residential Placements,507,25/11/2022,2211-00234,0.00,1878.72,R,Acorn Care & Education Ltd (Sales),No
Http://opendatacommunities.org/id/metropolitan-district-council/leeds,Leeds City Council,30/11/2022,Children and Families,Social Care,Agency Payments,General External Residential Placements,507,29/11/2022,2211-00235,0.00,2772.10,R,Acorn Care & Education Ltd (Sales),No
Http://opendatacommunities.org/id/metropolitan-district-council/leeds,Leeds City Council,30/11/2022,Children and Families,Social Care,Agency Payments,General External Residential Placements,507,29/11/2022,2211-00236,0.00,17249.29,R,Acorn Care & Education Ltd (Sales),No
Http://opendatacommunities.org/id/metropolitan-district-council/leeds,Leeds City Council,30/11/2022,Adults and Health,Services For Older People Under 65 P/Dis,Agency Payments,Nursing Home,570,09/11/2022,2211-00237,0.00,3500.00,R,Acorn Care Home,No
Http://opendatacommunities.org/id/metropolitan-district-council/leeds,Leeds City Council,30/11/2022,Children and Families,Social Care,Agency Payments,Services Rendered By Other Organisations,511,02/11/2022,2211-00238,0.00,271.54,R,ACORNS NURSERY,No
Http://opendatacommunities.org/id/metropolitan-district-council/leeds,Leeds City Council,30/11/2022,Children and Families,Social Care,Agency Payments,Services Rendered By Other Organisations,511,04/11/2022,2211-00239,0.00,9464.40,R,ACORNS NURSERY,No
Http://opendatacommunities.org/id/metropolitan-district-council/leeds,Leeds City Council,30/11/2022,Adults and Health,Services For Older People - 65 and Over,Agency Payments,Nursing Home,570,09/11/2022,2211-00240,0.00,32642.77,R,Acre Green,No
Http://opendatacommunities.org/id/metropolitan-district-council/leeds,Leeds City Council,30/11/2022,Adults and Health,Services For Older People - 65 and Over,Agency Payments,Residential,580,09/11/2022,2211-00241,0.00,4180.20,R,Acre Green,No
Http://opendatacommunities.org/id/metropolitan-district-council/leeds,Leeds City Council,30/11/2022,Adults and Health,Services For Older People Under 65 P/Dis,Agency Payments,Residential,580,09/11/2022,2211-00242,0.00,1892.20,R,Acre Green,No
Http://opendatacommunities.org/id/metropolitan-district-council/leeds,Leeds City Council,30/11/2022,Children and Families,Social Care,Agency Payments,Services Rendered By Other Organisations,511,02/11/2022,2211-00243,0.00,375.98,R,Acre Wood Day Nursery,No
Http://opendatacommunities.org/id/metropolitan-district-council/leeds,Leeds City Council,30/11/2022,Children and Families,Social Care,Agency Payments,Services Rendered By Other Organisations,511,04/11/2022,2211-00244,0.00,11651.25,R,Acre Wood Day Nursery,No
Http://opendatacommunities.org/id/metropolitan-district-council/leeds,Leeds City Council,30/11/2022,Children and Families,Learning,Agency Payments,SEN Placements,566,16/11/2022,2211-00245,0.00,4082.85,R,Act Fast NL Ltd,No
Http://opendatacommunities.org/id/metropolitan-district-council/leeds,Leeds City Council,30/11/2022,Children and Families,Learning,Agency Payments,SEN Placements,566,16/11/2022,2211-00246,0.00,2449.71,R,Act Fast NL Ltd,No
Http://opendatacommunities.org/id/metropolitan-district-council/leeds,Leeds City Council as Accountable Body,30/11/2022,Social Services Pooled Budgets,Leeds Community Equip Store Pooled Budgt,Supplies and Services,Other Equipment,203,11/11/2022,2211-00247,0.00,310.00,R,Action Assist Ltd,No
Http://opendatacommunities.org/id/metropolitan-district-council/leeds,Leeds City Council,30/11/2022,Adults and Health,Services For Adults Under 65 Mental/Dis,Agency Payments,Fees - Level 4,520,29/11/2022,2211-00248,0.00,2050.00,R,Action First Assessments Ltd,No
Http://opendatacommunities.org/id/metropolitan-district-council/leeds,Leeds City Council,30/11/2022,Adults and Health,Services For Adults Under 65 Mental/Dis,Agency Payments,Fees - Level 4,520,29/11/2022,2211-00249,0.00,1220.00,R,Action First Assessments Ltd,No
Http://opendatacommunities.org/id/metropolitan-district-council/leeds,Leeds City Council,30/11/2022,Adults and Health,Services For Adults Under 65 Mental/Dis,Agency Payments,Fees - Level 4,520,29/11/2022,2211-00250,0.00,6290.00,R,Action First Assessments Ltd,No
Http://opendatacommunities.org/id/metropolitan-district-council/leeds,Leeds City Council as Accountable Body,30/11/2022,Social Services Pooled Budgets,Jcs For People With Learning Disabilitie,Agency Payments,Residential,580,09/11/2022,2211-00251,0.00,10702.60,R,Action For Care Contracts Limited,No
Http://opendatacommunities.org/id/metropolitan-district-council/leeds,Leeds City Council,30/11/2022,Children and Families,Social Care,Agency Payments,Services Rendered By Other Organisations,511,02/11/2022,2211-00252,0.00,814.62,R,ACTIVE KIDS YEADON LLP,No
Http://opendatacommunities.org/id/metropolitan-district-council/leeds,Leeds City Council,30/11/2022,Children and Families,Social Care,Agency Payments,Services Rendered By Other Organisations,511,04/11/2022,2211-00253,0.00,5344.04,R,ACTIVE KIDS YEADON LLP,No
Http://opendatacommunities.org/id/metropolitan-district-council/leeds,Leeds City Council,30/11/2022,Adults and Health,Services For Adults Under 65 Mental/Dis,Agency Payments,Sheltered Accommodation,569,09/11/2022,2211-00254,0.00,20287.35,R,Active Pathways,No
Http://opendatacommunities.org/id/metropolitan-district-council/leeds,Leeds City Council,30/11/2022,Adults and Health,Services For Older People - 65 and Over,Agency Payments,Sheltered Accommodation,569,09/11/2022,2211-00255,0.00,4154.84,R,Active Pathways,No
Http://opendatacommunities.org/id/metropolitan-district-council/leeds,Leeds City Council as Accountable Body,30/11/2022,Social Services Pooled Budgets,Jcs For People With Learning Disabilitie,Agency Payments,Sheltered Accommodation,569,09/11/2022,2211-00256,0.00,12452.52,R,Active Pathways,No
Http://opendatacommunities.org/id/metropolitan-district-council/leeds,Leeds City Council,30/11/2022,Adults and Health,Services For Adults Under 65 Mental/Dis,Agency Payments,Residential,580,09/11/2022,2211-00257,0.00,7413.60,R,Active Pathways Limited,No
Http://opendatacommunities.org/id/metropolitan-district-council/leeds,Leeds City Council,30/11/2022,Children and Families,Social Care ,Supplies and Services,Clothing & Uniforms,241,07/11/2022,2211-00258,0.00,35.99,R,Active Workwear,Yes
Http://opendatacommunities.org/id/metropolitan-district-council/leeds,Leeds City Council,30/11/2022,Children and Families,Social Care ,Supplies and Services,Clothing & Uniforms,241,18/10/2022,2211-00259,0.00,98.00,R,Activewearb,Yes
Http://opendatacommunities.org/id/metropolitan-district-council/leeds,Leeds City Council,30/11/2022,Communities Housing and Environment,Waste Management,Supplies and Services,Recycling & Reuse Charges,234,04/11/2022,2211-00260,0.00,1003.68,R,Acumen Waste Services Ltd,No
Http://opendatacommunities.org/id/metropolitan-district-council/leeds,Leeds City Council,30/11/2022,Communities Housing and Environment,Waste Management,Supplies and Services,Recycling & Reuse Charges,234,16/11/2022,2211-00261,0.00,6701.04,R,Acumen Waste Services Ltd,No
Http://opendatacommunities.org/id/metropolitan-district-council/leeds,Leeds City Council,30/11/2022,Communities Housing and Environment,Waste Management,Supplies and Services,Recycling & Reuse Charges,234,23/11/2022,2211-00262,0.00,999.36,R,Acumen Waste Services Ltd,No
Http://opendatacommunities.org/id/metropolitan-district-council/leeds,Leeds City Council,30/11/2022,Communities Housing and Environment,Waste Management,Supplies and Services,Recycling & Reuse Charges,234,23/11/2022,2211-00263,0.00,1002.96,R,Acumen Waste Services Ltd,No
Http://opendatacommunities.org/id/metropolitan-district-council/leeds,Leeds City Council,30/11/2022,Communities Housing and Environment,Waste Management,Supplies and Services,Recycling & Reuse Charges,234,23/11/2022,2211-00264,0.00,1013.76,R,Acumen Waste Services Ltd,No
Http://opendatacommunities.org/id/metropolitan-district-council/leeds,Leeds City Council,30/11/2022,Communities Housing and Environment,Waste Management,Supplies and Services,Recycling & Reuse Charges,234,23/11/2022,2211-00265,0.00,958.32,R,Acumen Waste Services Ltd,No
Http://opendatacommunities.org/id/metropolitan-district-council/leeds,Leeds City Council,30/11/2022,Communities Housing and Environment,Waste Management,Supplies and Services,Recycling & Reuse Charges,234,23/11/2022,2211-00266,0.00,4632.48,R,Acumen Waste Services Ltd,No
Http://opendatacommunities.org/id/metropolitan-district-council/leeds,Leeds City Council,30/11/2022,Communities Housing and Environment,Waste Management,Supplies and Services,Recycling & Reuse Charges,234,23/11/2022,2211-00267,0.00,1013.04,R,Acumen Waste Services Ltd,No
Http://opendatacommunities.org/id/metropolitan-district-council/leeds,Leeds City Council,30/11/2022,Communities Housing and Environment,Waste Management,Supplies and Services,Recycling & Reuse Charges,234,23/11/2022,2211-00268,0.00,991.44,R,Acumen Waste Services Ltd,No
Http://opendatacommunities.org/id/metropolitan-district-council/leeds,Leeds City Council,30/11/2022,Communities Housing and Environment,Waste Management,Supplies and Services,Recycling & Reuse Charges,234,23/11/2022,2211-00269,0.00,999.36,R,Acumen Waste Services Ltd,No
Http://opendatacommunities.org/id/metropolitan-district-council/leeds,Leeds City Council,30/11/2022,Communities Housing and Environment,Waste Management,Supplies and Services,Recycling & Reuse Charges,234,23/11/2022,2211-00270,0.00,1005.12,R,Acumen Waste Services Ltd,No
Http://opendatacommunities.org/id/metropolitan-district-council/leeds,Leeds City Council,30/11/2022,Communities Housing and Environment,Waste Management,Supplies and Services,Waste Disposal Charges,236,23/11/2022,2211-00271,0.00,684.30,R,Acumen Waste Services Ltd,No
Http://opendatacommunities.org/id/metropolitan-district-council/leeds,Leeds City Council,30/11/2022,Communities Housing and Environment,Waste Management,Supplies and Services,Waste Disposal Charges,236,23/11/2022,2211-00272,0.00,862.70,R,Acumen Waste Services Ltd,No
Http://opendatacommunities.org/id/metropolitan-district-council/leeds,Leeds City Council,30/11/2022,Communities Housing and Environment,Waste Management,Supplies and Services,Waste Disposal Charges,236,23/11/2022,2211-00273,0.00,1215.95,R,Acumen Waste Services Ltd,No
Http://opendatacommunities.org/id/metropolitan-district-council/leeds,Leeds City Council,30/11/2022,Communities Housing and Environment,Waste Management,Supplies and Services,Recycling & Reuse Charges,234,25/11/2022,2211-00274,0.00,7442.64,R,Acumen Waste Services Ltd,No
Http://opendatacommunities.org/id/metropolitan-district-council/leeds,Leeds City Council,30/11/2022,Communities Housing and Environment,Waste Management,Supplies and Services,Recycling & Reuse Charges,234,25/11/2022,2211-00275,0.00,1002.24,R,Acumen Waste Services Ltd,No
Http://opendatacommunities.org/id/metropolitan-district-council/leeds,Leeds City Council,30/11/2022,Communities Housing and Environment,Waste Management,Supplies and Services,Recycling & Reuse Charges,234,25/11/2022,2211-00276,0.00,998.64,R,Acumen Waste Services Ltd,No
Http://opendatacommunities.org/id/metropolitan-district-council/leeds,Leeds City Council,30/11/2022,Communities Housing and Environment,Waste Management,Supplies and Services,Recycling & Reuse Charges,234,25/11/2022,2211-00277,0.00,1000.80,R,Acumen Waste Services Ltd,No
Http://opendatacommunities.org/id/metropolitan-district-council/leeds,Leeds City Council,30/11/2022,Communities Housing and Environment,Waste Management,Supplies and Services,Recycling & Reuse Charges,234,25/11/2022,2211-00278,0.00,979.92,R,Acumen Waste Services Ltd,No
Http://opendatacommunities.org/id/metropolitan-district-council/leeds,Leeds City Council,30/11/2022,Communities Housing and Environment,Waste Management,Supplies and Services,Recycling & Reuse Charges,234,30/11/2022,2211-00279,0.00,990.72,R,Acumen Waste Services Ltd,No
Http://opendatacommunities.org/id/metropolitan-district-council/leeds,Leeds City Council,30/11/2022,Communities Housing and Environment,Parks and Countryside ,Supplies and Services,Resaleable Materials,204,03/10/2022,2211-00280,0.00,865.00,R,Acushnet Europe Ltd,Yes
Http://opendatacommunities.org/id/metropolitan-district-council/leeds,Leeds City Council,30/11/2022,Communities Housing and Environment,Parks and Countryside ,Supplies and Services,Resaleable Materials,204,17/10/2022,2211-00281,0.00,260.00,R,Acushnet Europe Ltd,Yes
Http://opendatacommunities.org/id/metropolitan-district-council/leeds,Leeds City Council,30/11/2022,Communities Housing and Environment,Parks and Countryside ,Supplies and Services,Office Consumables,210,24/11/2022,2211-00282,0.00,499.20,R,Acushnet Europe Ltd,Yes
Http://opendatacommunities.org/id/metropolitan-district-council/leeds,Leeds City Council,30/11/2022,Resources,Shared Services,Supplies and Services,Operational Materials,205,18/11/2022,2211-00283,0.00,1497.00,R,AD3 Envelope Printers Limited,No
Http://opendatacommunities.org/id/metropolitan-district-council/leeds,Leeds City Council,30/11/2022,City Development,Highways ,Supplies and Services,Other Hired and Contracted Services,265,06/10/2022,2211-00284,0.00,300.00,R,Adair Paxton,Yes
Http://opendatacommunities.org/id/metropolitan-district-council/leeds,Leeds City Council,30/11/2022,City Development,Highways,Internal Recharges,Legal Disbursements,411,04/11/2022,2211-00285,0.00,12900.00,R,Adam Aldred,No
Http://opendatacommunities.org/id/metropolitan-district-council/leeds,Leeds City Council,30/11/2022,City Development,Highways,Internal Recharges,Legal Disbursements,411,29/11/2022,2211-00286,0.00,5962.50,R,Adam Aldred,No
Http://opendatacommunities.org/id/metropolitan-district-council/leeds,Leeds City Council,30/11/2022,Children and Families,Social Care,Agency Payments,Contact,548,04/11/2022,2211-00287,0.00,10.40,R,REDACTED PERSONAL DATA,No
Http://opendatacommunities.org/id/metropolitan-district-council/leeds,Leeds City Council,30/11/2022,Children and Families,Social Care,Agency Payments,Contact,548,11/11/2022,2211-00288,0.00,10.40,R,REDACTED PERSONAL DATA,No
Http://opendatacommunities.org/id/metropolitan-district-council/leeds,Leeds City Council,30/11/2022,Children and Families,Social Care,Agency Payments,Contact,548,18/11/2022,2211-00289,0.00,10.40,R,REDACTED PERSONAL DATA,No
Http://opendatacommunities.org/id/metropolitan-district-council/leeds,Leeds City Council,30/11/2022,Children and Families,Social Care,Agency Payments,Contact,548,25/11/2022,2211-00290,0.00,10.40,R,REDACTED PERSONAL DATA,No
Http://opendatacommunities.org/id/metropolitan-district-council/leeds,Leeds City Council,30/11/2022,Resources,Leeds Building Services,Supplies and Services,Other Hired and Contracted Services,265,30/11/2022,2211-00291,0.00,5823.44,R,Adaston Limited,No
Http://opendatacommunities.org/id/metropolitan-district-council/leeds,Leeds City Council,30/11/2022,Resources,Sustainable Energy & Air Quality,Internal Recharges,Professional Legal Services Charges,410,25/11/2022,2211-00292,0.00,31377.50,R,Addleshaw Goddard LLP,No
Http://opendatacommunities.org/id/metropolitan-district-council/leeds,Leeds City Council,30/11/2022,Strategic Accounts,Miscellaneous,Supplies and Services,Non-Recurring Grants,227,03/11/2022,2211-00293,0.00,200.00,R,Adel Gardeners Club,No
Http://opendatacommunities.org/id/metropolitan-district-council/leeds,Leeds City Council,30/11/2022,Children and Families,Social Care,Agency Payments,Services Rendered By Other Organisations,511,02/11/2022,2211-00294,0.00,271.54,R,ADEL PRE SCHOOL,No
Http://opendatacommunities.org/id/metropolitan-district-council/leeds,Leeds City Council,30/11/2022,Children and Families,Social Care,Agency Payments,Services Rendered By Voluntary Sector,505,04/11/2022,2211-00295,0.00,2330.25,R,ADEL PRE SCHOOL,No
Http://opendatacommunities.org/id/metropolitan-district-council/leeds,Leeds City Council,30/11/2022,City Development,Recreation,Supplies and Services,Bought In Professional Services,277,25/11/2022,2211-00296,0.00,180.00,R,Adele Battersby,No
Http://opendatacommunities.org/id/metropolitan-district-council/leeds,Leeds City Council,30/11/2022,City Development,Recreation,Supplies and Services,Bought In Professional Services,277,30/11/2022,2211-00297,0.00,160.00,R,Adele Battersby,No
Http://opendatacommunities.org/id/metropolitan-district-council/leeds,Leeds City Council,30/11/2022,Children and Families,Social Care,Agency Payments,Services Rendered By Voluntary Sector,505,02/11/2022,2211-00298,0.00,271.54,R,REDACTED PERSONAL DATA,No
Http://opendatacommunities.org/id/metropolitan-district-council/leeds,Leeds City Council,30/11/2022,Children and Families,Social Care,Agency Payments,Services Rendered By Other Organisations,511,04/11/2022,2211-00299,0.00,699.08,R,REDACTED PERSONAL DATA,No
Http://opendatacommunities.org/id/metropolitan-district-council/leeds,Leeds City Council,30/11/2022,Resources,Commercial Services,Supplies and Services,Compensation Claims,200,02/11/2022,2211-00300,0.00,99.35,R,REDACTED PERSONAL DATA,No
Http://opendatacommunities.org/id/metropolitan-district-council/leeds,Leeds City Council,30/11/2022,Resources,Commercial Services,Supplies and Services,Other Hired and Contracted Services,265,18/11/2022,2211-00301,0.00,65.19,R,REDACTED PERSONAL DATA,No
Http://opendatacommunities.org/id/metropolitan-district-council/leeds,Leeds City Council,30/11/2022,Strategic Landlord,HRA Housing Leeds,Capital,OTHER COSTS,7,22/11/2022,2211-00302,0.00,80.00,C,REDACTED PERSONAL DATA,No
Http://opendatacommunities.org/id/metropolitan-district-council/leeds,Leeds City Council,30/11/2022,Children and Families,Social Care ,Supplies and Services,Clothing & Uniforms,241,24/11/2022,2211-00303,0.00,33.00,R,Adidaswww.Reebok.Co.Uk,Yes
Http://opendatacommunities.org/id/metropolitan-district-council/leeds,Leeds City Council,30/11/2022,Communities Housing and Environment,Community Safety ,Supplies and Services,Other Hired and Contracted Services,265,05/10/2022,2211-00304,0.00,253.58,R,Adi-Gardiner Ltd,Yes
Http://opendatacommunities.org/id/metropolitan-district-council/leeds,Leeds City Council,30/11/2022,Communities Housing and Environment,Community Safety ,Supplies and Services,Other Hired and Contracted Services,265,04/11/2022,2211-00305,0.00,40.80,R,Adi-Gardiner Ltd,Yes
Http://opendatacommunities.org/id/metropolitan-district-council/leeds,Leeds City Council,30/11/2022,Resources,Leeds Building Services,Supplies and Services,Operational Materials,205,07/11/2022,2211-00306,0.00,6.06,R,ADI-Gardiner Ltd,No
Http://opendatacommunities.org/id/metropolitan-district-council/leeds,Leeds City Council,30/11/2022,Resources,Leeds Building Services,Supplies and Services,Operational Materials,205,07/11/2022,2211-00307,0.00,2553.37,R,ADI-Gardiner Ltd,No
Http://opendatacommunities.org/id/metropolitan-district-council/leeds,Leeds City Council,30/11/2022,Resources,Leeds Building Services,Supplies and Services,Operational Materials,205,07/11/2022,2211-00308,0.00,37.14,R,ADI-Gardiner Ltd,No
Http://opendatacommunities.org/id/metropolitan-district-council/leeds,Leeds City Council,30/11/2022,Resources,Leeds Building Services,Supplies and Services,Operational Materials,205,07/11/2022,2211-00309,0.00,17.77,R,ADI-Gardiner Ltd,No
Http://opendatacommunities.org/id/metropolitan-district-council/leeds,Leeds City Council,30/11/2022,Resources,Leeds Building Services,Supplies and Services,Operational Materials,205,07/11/2022,2211-00310,0.00,-339.54,R,ADI-Gardiner Ltd,No
Http://opendatacommunities.org/id/metropolitan-district-council/leeds,Leeds City Council,30/11/2022,Resources,Leeds Building Services,Supplies and Services,Operational Materials,205,07/11/2022,2211-00311,0.00,-996.00,R,ADI-Gardiner Ltd,No
Http://opendatacommunities.org/id/metropolitan-district-council/leeds,Leeds City Council,30/11/2022,Resources,Leeds Building Services,Supplies and Services,Operational Materials,205,07/11/2022,2211-00312,0.00,1335.54,R,ADI-Gardiner Ltd,No
Http://opendatacommunities.org/id/metropolitan-district-council/leeds,Leeds City Council,30/11/2022,Resources,Leeds Building Services,Supplies and Services,Operational Materials,205,07/11/2022,2211-00313,0.00,1672.29,R,ADI-Gardiner Ltd,No
Http://opendatacommunities.org/id/metropolitan-district-council/leeds,Leeds City Council,30/11/2022,Resources,Leeds Building Services,Supplies and Services,Operational Materials,205,07/11/2022,2211-00314,0.00,12.89,R,ADI-Gardiner Ltd,No
Http://opendatacommunities.org/id/metropolitan-district-council/leeds,Leeds City Council,30/11/2022,Resources,Leeds Building Services,Supplies and Services,Operational Materials,205,09/11/2022,2211-00315,0.00,-9141.66,R,ADI-Gardiner Ltd,No
Http://opendatacommunities.org/id/metropolitan-district-council/leeds,Leeds City Council,30/11/2022,Resources,Leeds Building Services,Supplies and Services,Operational Materials,205,09/11/2022,2211-00316,0.00,4845.00,R,ADI-Gardiner Ltd,No
Http://opendatacommunities.org/id/metropolitan-district-council/leeds,Leeds City Council,30/11/2022,Resources,Leeds Building Services,Supplies and Services,Operational Materials,205,09/11/2022,2211-00317,0.00,0.49,R,ADI-Gardiner Ltd,No
Http://opendatacommunities.org/id/metropolitan-district-council/leeds,Leeds City Council,30/11/2022,Resources,Leeds Building Services,Supplies and Services,Operational Materials,205,09/11/2022,2211-00318,0.00,9239.28,R,ADI-Gardiner Ltd,No
Http://opendatacommunities.org/id/metropolitan-district-council/leeds,Leeds City Council,30/11/2022,Resources,Leeds Building Services,Supplies and Services,Operational Materials,205,16/11/2022,2211-00319,0.00,7062.33,R,ADI-Gardiner Ltd,No
Http://opendatacommunities.org/id/metropolitan-district-council/leeds,Leeds City Council,30/11/2022,City Development,Libraries Arts & Heritage,Supplies and Services,Other Hired and Contracted Services,265,18/11/2022,2211-00320,0.00,8068.00,R,Adlib Audio Ltd,No
Http://opendatacommunities.org/id/metropolitan-district-council/leeds,Leeds City Council,30/11/2022,Children and Families,Social Care ,Supplies and Services,Other Hired and Contracted Services,265,07/11/2022,2211-00321,0.00,89.00,R,Admin-Pal.Co.Uk,Yes
Http://opendatacommunities.org/id/metropolitan-district-council/leeds,Leeds City Council,30/11/2022,Insurance,Insurance,Supplies and Services,Insurance Claims,248,08/11/2022,2211-00322,0.00,2766.00,R,Admiral Law,No
Http://opendatacommunities.org/id/metropolitan-district-council/leeds,Leeds City Council,30/11/2022,Insurance,Insurance,Supplies and Services,Insurance Claims,248,08/11/2022,2211-00323,0.00,5110.00,R,Admiral Law,No
Http://opendatacommunities.org/id/metropolitan-district-council/leeds,Leeds City Council,30/11/2022,Insurance,Insurance,Supplies and Services,Insurance Claims,248,22/11/2022,2211-00324,0.00,59000.00,R,Admiral Law,No
Http://opendatacommunities.org/id/metropolitan-district-council/leeds,Leeds City Council,30/11/2022,City Development,Libraries Arts & Heritage ,Supplies and Services,Computer Software & Equipment,214,07/10/2022,2211-00325,0.00,43.32,R,Adobe,Yes
Http://opendatacommunities.org/id/metropolitan-district-council/leeds,Leeds City Council,30/11/2022,City Development,Libraries Arts & Heritage ,Supplies and Services,Computer Software & Equipment,214,07/11/2022,2211-00326,0.00,1006.32,R,Adobe *products,Yes
Http://opendatacommunities.org/id/metropolitan-district-council/leeds,Leeds City Council,30/11/2022,City Development,Libraries Arts & Heritage ,Supplies and Services,Office Consumables,210,08/11/2022,2211-00327,0.00,43.32,R,Adobe Creative Cloud,Yes
Http://opendatacommunities.org/id/metropolitan-district-council/leeds,Leeds City Council,30/11/2022,City Development,Libraries Arts & Heritage ,Supplies and Services,Office Consumables,210,07/12/2022,2211-00328,0.00,43.32,R,Adobe Creative Cloud,Yes
Http://opendatacommunities.org/id/metropolitan-district-council/leeds,Leeds City Council,30/11/2022,Children and Families,Social Care,Agency Payments,Independent Fostering Agencies,509,04/11/2022,2211-00329,0.00,3630.00,R,Adolescent and Childrens Trust,No
Http://opendatacommunities.org/id/metropolitan-district-council/leeds,Leeds City Council,30/11/2022,Children and Families,Social Care,Agency Payments,Independent Fostering Agencies,509,04/11/2022,2211-00330,0.00,3630.00,R,Adolescent and Childrens Trust,No
Http://opendatacommunities.org/id/metropolitan-district-council/leeds,Leeds City Council,30/11/2022,Children and Families,Social Care,Agency Payments,Independent Fostering Agencies,509,04/11/2022,2211-00331,0.00,3450.00,R,Adolescent and Childrens Trust,No
Http://opendatacommunities.org/id/metropolitan-district-council/leeds,Leeds City Council,30/11/2022,Children and Families,Social Care,Agency Payments,Independent Fostering Agencies,509,04/11/2022,2211-00332,0.00,3540.00,R,Adolescent and Childrens Trust,No
Http://opendatacommunities.org/id/metropolitan-district-council/leeds,Leeds City Council,30/11/2022,Children and Families,Social Care,Agency Payments,Independent Fostering Agencies,509,04/11/2022,2211-00333,0.00,1729.98,R,Adolescent and Childrens Trust,No
Http://opendatacommunities.org/id/metropolitan-district-council/leeds,Leeds City Council,30/11/2022,Children and Families,Social Care,Agency Payments,Independent Fostering Agencies,509,04/11/2022,2211-00334,0.00,3450.00,R,Adolescent and Childrens Trust,No
Http://opendatacommunities.org/id/metropolitan-district-council/leeds,Leeds City Council,30/11/2022,Children and Families,Social Care,Agency Payments,Independent Fostering Agencies,509,04/11/2022,2211-00335,0.00,3450.00,R,Adolescent and Childrens Trust,No
Http://opendatacommunities.org/id/metropolitan-district-council/leeds,Leeds City Council,30/11/2022,Children and Families,Social Care,Agency Payments,Independent Fostering Agencies,509,04/11/2022,2211-00336,0.00,3630.00,R,Adolescent and Childrens Trust,No
Http://opendatacommunities.org/id/metropolitan-district-council/leeds,Leeds City Council,30/11/2022,Children and Families,Social Care,Agency Payments,Independent Fostering Agencies,509,04/11/2022,2211-00337,0.00,3437.10,R,Adolescent and Childrens Trust,No
Http://opendatacommunities.org/id/metropolitan-district-council/leeds,Leeds City Council,30/11/2022,Children and Families,Social Care,Agency Payments,Independent Fostering Agencies,509,04/11/2022,2211-00338,0.00,3630.00,R,Adolescent and Childrens Trust,No
Http://opendatacommunities.org/id/metropolitan-district-council/leeds,Leeds City Council,30/11/2022,Children and Families,Social Care,Agency Payments,Independent Fostering Agencies,509,04/11/2022,2211-00339,0.00,3540.00,R,Adolescent and Childrens Trust,No
Http://opendatacommunities.org/id/metropolitan-district-council/leeds,Leeds City Council,30/11/2022,Children and Families,Social Care,Agency Payments,Independent Fostering Agencies,509,04/11/2022,2211-00340,0.00,3707.10,R,Adolescent and Childrens Trust,No
Http://opendatacommunities.org/id/metropolitan-district-council/leeds,Leeds City Council,30/11/2022,Children and Families,Social Care,Agency Payments,Independent Fostering Agencies,509,04/11/2022,2211-00341,0.00,3420.00,R,Adolescent and Childrens Trust,No
Http://opendatacommunities.org/id/metropolitan-district-council/leeds,Leeds City Council,30/11/2022,Adults and Health,Services For Adults Under 65 Mental/Dis,Agency Payments,Home Care,568,02/11/2022,2211-00342,0.00,410.25,R,Adopt Healthcare,No
Http://opendatacommunities.org/id/metropolitan-district-council/leeds,Leeds City Council,30/11/2022,Adults and Health,Services For Adults Under 65 Mental/Dis,Agency Payments,Home Care,568,02/11/2022,2211-00343,0.00,250.50,R,Adopt Healthcare,No
Http://opendatacommunities.org/id/metropolitan-district-council/leeds,Leeds City Council,30/11/2022,Adults and Health,Services For Adults Under 65 Mental/Dis,Agency Payments,Home Care,568,02/11/2022,2211-00344,0.00,148.50,R,Adopt Healthcare,No
Http://opendatacommunities.org/id/metropolitan-district-council/leeds,Leeds City Council,30/11/2022,Adults and Health,Services For Adults Under 65 Mental/Dis,Agency Payments,Home Care,568,09/11/2022,2211-00345,0.00,410.25,R,Adopt Healthcare,No
Http://opendatacommunities.org/id/metropolitan-district-council/leeds,Leeds City Council,30/11/2022,Adults and Health,Services For Adults Under 65 Mental/Dis,Agency Payments,Home Care,568,09/11/2022,2211-00346,0.00,250.50,R,Adopt Healthcare,No
Http://opendatacommunities.org/id/metropolitan-district-council/leeds,Leeds City Council,30/11/2022,Adults and Health,Services For Adults Under 65 Mental/Dis,Agency Payments,Home Care,568,09/11/2022,2211-00347,0.00,148.50,R,Adopt Healthcare,No
Http://opendatacommunities.org/id/metropolitan-district-council/leeds,Leeds City Council,30/11/2022,Adults and Health,Services For Adults Under 65 Mental/Dis,Agency Payments,Home Care,568,16/11/2022,2211-00348,0.00,148.50,R,Adopt Healthcare,No
Http://opendatacommunities.org/id/metropolitan-district-council/leeds,Leeds City Council,30/11/2022,Adults and Health,Services For Adults Under 65 Mental/Dis,Agency Payments,Home Care,568,16/11/2022,2211-00349,0.00,410.25,R,Adopt Healthcare,No
Http://opendatacommunities.org/id/metropolitan-district-council/leeds,Leeds City Council,30/11/2022,Adults and Health,Services For Adults Under 65 Mental/Dis,Agency Payments,Home Care,568,16/11/2022,2211-00350,0.00,250.50,R,Adopt Healthcare,No
Http://opendatacommunities.org/id/metropolitan-district-council/leeds,Leeds City Council,30/11/2022,Adults and Health,Services For Adults Under 65 Mental/Dis,Agency Payments,Home Care,568,23/11/2022,2211-00351,0.00,410.25,R,Adopt Healthcare,No
Http://opendatacommunities.org/id/metropolitan-district-council/leeds,Leeds City Council,30/11/2022,Adults and Health,Services For Adults Under 65 Mental/Dis,Agency Payments,Home Care,568,23/11/2022,2211-00352,0.00,250.50,R,Adopt Healthcare,No
Http://opendatacommunities.org/id/metropolitan-district-council/leeds,Leeds City Council,30/11/2022,Adults and Health,Services For Adults Under 65 Mental/Dis,Agency Payments,Home Care,568,25/11/2022,2211-00353,0.00,148.50,R,Adopt Healthcare,No
Http://opendatacommunities.org/id/metropolitan-district-council/leeds,Leeds City Council,30/11/2022,Adults and Health,Services For Adults Under 65 Mental/Dis,Agency Payments,Home Care,568,30/11/2022,2211-00354,0.00,410.25,R,Adopt Healthcare,No
Http://opendatacommunities.org/id/metropolitan-district-council/leeds,Leeds City Council,30/11/2022,Adults and Health,Services For Adults Under 65 Mental/Dis,Agency Payments,Home Care,568,30/11/2022,2211-00355,0.00,250.50,R,Adopt Healthcare,No
Http://opendatacommunities.org/id/metropolitan-district-council/leeds,Leeds City Council,30/11/2022,Adults and Health,Services For Adults Under 65 Mental/Dis,Agency Payments,Home Care,568,30/11/2022,2211-00356,0.00,148.50,R,Adopt Healthcare,No
Http://opendatacommunities.org/id/metropolitan-district-council/leeds,Leeds City Council,30/11/2022,Children and Families,Social Care,Agency Payments,Allowances,546,03/11/2022,2211-00357,0.00,150.00,R,REDACTED PERSONAL DATA,No
Http://opendatacommunities.org/id/metropolitan-district-council/leeds,Leeds City Council as Accountable Body,30/11/2022,Social Services Pooled Budgets,Jcs For People With Learning Disabilitie,Agency Payments,Residential,580,09/11/2022,2211-00358,0.00,2609.36,R,ADRIAN HOUSE,No
Http://opendatacommunities.org/id/metropolitan-district-council/leeds,Leeds City Council,30/11/2022,Children and Families,Social Care,Agency Payments,Placement Support,550,04/11/2022,2211-00359,0.00,36.25,R,REDACTED PERSONAL DATA,No
Http://opendatacommunities.org/id/metropolitan-district-council/leeds,Leeds City Council,30/11/2022,Children and Families,Social Care,Agency Payments,Placement Support,550,17/11/2022,2211-00360,0.00,18.70,R,REDACTED PERSONAL DATA,No
Http://opendatacommunities.org/id/metropolitan-district-council/leeds,Leeds City Council,30/11/2022,Children and Families,Social Care,Agency Payments,Placement Support,550,25/11/2022,2211-00361,0.00,108.75,R,REDACTED PERSONAL DATA,No
Http://opendatacommunities.org/id/metropolitan-district-council/leeds,Leeds City Council,30/11/2022,City Development,Libraries Arts & Heritage ,Supplies and Services,Advertising,211,31/10/2022,2211-00362,0.00,273.97,R,Ads*227d2kxxe2,Yes
Http://opendatacommunities.org/id/metropolitan-district-council/leeds,Leeds City Council,30/11/2022,City Development,Libraries Arts & Heritage ,Supplies and Services,Advertising,211,13/11/2022,2211-00363,0.00,424.54,R,Ads*275sbkpye2,Yes
Http://opendatacommunities.org/id/metropolitan-district-council/leeds,Leeds City Council,30/11/2022,City Development,Libraries Arts & Heritage ,Supplies and Services,Advertising,211,31/10/2022,2211-00364,0.00,224.91,R,Ads*2l4b3kfhb2,Yes
Http://opendatacommunities.org/id/metropolitan-district-council/leeds,Leeds City Council,30/11/2022,City Development,Libraries Arts & Heritage ,Supplies and Services,Advertising,211,06/11/2022,2211-00365,0.00,4.52,R,Ads*68jg9gb492,Yes
Http://opendatacommunities.org/id/metropolitan-district-council/leeds,Leeds City Council,30/11/2022,Adults and Health,Public Health ,Supplies and Services,Publication and Promotion,267,15/11/2022,2211-00366,0.00,157.14,R,Ads*g7jdahxr52,Yes
Http://opendatacommunities.org/id/metropolitan-district-council/leeds,Leeds City Council,30/11/2022,City Development,Libraries Arts & Heritage ,Supplies and Services,Advertising,211,02/11/2022,2211-00367,0.00,360.00,R,Ads*gxrxbk3ze2,Yes
Http://opendatacommunities.org/id/metropolitan-district-council/leeds,Leeds City Council,30/11/2022,Children and Families,Social Care ,Supplies and Services,Advertising,211,07/11/2022,2211-00368,0.00,300.00,R,Ads*lr7x4lxmf2,Yes
Http://opendatacommunities.org/id/metropolitan-district-council/leeds,Leeds City Council,30/11/2022,Children and Families,Social Care ,Supplies and Services,Advertising,211,11/11/2022,2211-00369,0.00,27.35,R,Ads*pecphjfmf2,Yes
Http://opendatacommunities.org/id/metropolitan-district-council/leeds,Leeds City Council,30/11/2022,City Development,Libraries Arts & Heritage,Supplies and Services,External Audit Fees,261,11/11/2022,2211-00370,0.00,100.00,R,ADVANCE STOCKS LTD,No
Http://opendatacommunities.org/id/metropolitan-district-council/leeds,Leeds City Council,30/11/2022,City Development,Recreation,Supplies and Services,External Audit Fees,261,11/11/2022,2211-00371,0.00,135.00,R,ADVANCE STOCKS LTD,No
Http://opendatacommunities.org/id/metropolitan-district-council/leeds,Leeds City Council,30/11/2022,City Development,Recreation,Supplies and Services,External Audit Fees,261,11/11/2022,2211-00372,0.00,135.00,R,ADVANCE STOCKS LTD,No
Http://opendatacommunities.org/id/metropolitan-district-council/leeds,Leeds City Council,30/11/2022,City Development,Recreation,Supplies and Services,External Audit Fees,261,11/11/2022,2211-00373,0.00,140.00,R,ADVANCE STOCKS LTD,No
Http://opendatacommunities.org/id/metropolitan-district-council/leeds,Leeds City Council,30/11/2022,City Development,Recreation,Supplies and Services,External Audit Fees,261,11/11/2022,2211-00374,0.00,140.00,R,ADVANCE STOCKS LTD,No
Http://opendatacommunities.org/id/metropolitan-district-council/leeds,Leeds City Council,30/11/2022,Adults and Health,Services For Older People - 65 and Over,Agency Payments,Home Care,568,02/11/2022,2211-00375,0.00,4979.07,R,Advanced Medcare Ltd,No
Http://opendatacommunities.org/id/metropolitan-district-council/leeds,Leeds City Council,30/11/2022,Adults and Health,Assessment and Care Management,Agency Payments,Home Care,568,16/11/2022,2211-00376,0.00,573.72,R,Advanced Medcare Ltd,No
Http://opendatacommunities.org/id/metropolitan-district-council/leeds,Leeds City Council,30/11/2022,Adults and Health,Services For Adults Under 65 Learn/Dis,Agency Payments,Home Care,568,16/11/2022,2211-00377,0.00,573.72,R,Advanced Medcare Ltd,No
Http://opendatacommunities.org/id/metropolitan-district-council/leeds,Leeds City Council,30/11/2022,Adults and Health,Services For Older People - 65 and Over,Agency Payments,Home Care,568,16/11/2022,2211-00378,0.00,30171.73,R,Advanced Medcare Ltd,No
Http://opendatacommunities.org/id/metropolitan-district-council/leeds,Leeds City Council,30/11/2022,Adults and Health,Services For Older People - 65 and Over,Agency Payments,HCAIT Community Support,575,16/11/2022,2211-00379,0.00,1311.36,R,Advanced Medcare Ltd,No
Http://opendatacommunities.org/id/metropolitan-district-council/leeds,Leeds City Council,30/11/2022,Adults and Health,Services For Older People Under 65 P/Dis,Agency Payments,Home Care,568,16/11/2022,2211-00380,0.00,6531.19,R,Advanced Medcare Ltd,No
Http://opendatacommunities.org/id/metropolitan-district-council/leeds,Leeds City Council,30/11/2022,Adults and Health,Services For Older People Under 65 P/Dis,Agency Payments,HCAIT Community Support,575,16/11/2022,2211-00381,0.00,163.92,R,Advanced Medcare Ltd,No
Http://opendatacommunities.org/id/metropolitan-district-council/leeds,Leeds City Council as Accountable Body,30/11/2022,Social Services Pooled Budgets,Jcs For People With Learning Disabilitie,Agency Payments,Home Care,568,16/11/2022,2211-00382,0.00,1311.36,R,Advanced Medcare Ltd,No
Http://opendatacommunities.org/id/metropolitan-district-council/leeds,Leeds City Council,30/11/2022,Adults and Health,Assessment and Care Management,Agency Payments,Home Care,568,23/11/2022,2211-00383,0.00,573.72,R,Advanced Medcare Ltd,No
Http://opendatacommunities.org/id/metropolitan-district-council/leeds,Leeds City Council,30/11/2022,Adults and Health,Services For Adults Under 65 Learn/Dis,Agency Payments,Home Care,568,23/11/2022,2211-00384,0.00,573.72,R,Advanced Medcare Ltd,No
Http://opendatacommunities.org/id/metropolitan-district-council/leeds,Leeds City Council,30/11/2022,Adults and Health,Services For Older People - 65 and Over,Agency Payments,Home Care,568,23/11/2022,2211-00385,0.00,32533.00,R,Advanced Medcare Ltd,No
Http://opendatacommunities.org/id/metropolitan-district-council/leeds,Leeds City Council,30/11/2022,Adults and Health,Services For Older People - 65 and Over,Agency Payments,HCAIT Community Support,575,23/11/2022,2211-00386,0.00,1147.44,R,Advanced Medcare Ltd,No
Http://opendatacommunities.org/id/metropolitan-district-council/leeds,Leeds City Council,30/11/2022,Adults and Health,Services For Older People Under 65 P/Dis,Agency Payments,Home Care,568,23/11/2022,2211-00387,0.00,7704.24,R,Advanced Medcare Ltd,No
Http://opendatacommunities.org/id/metropolitan-district-council/leeds,Leeds City Council,30/11/2022,Adults and Health,Services For Older People Under 65 P/Dis,Agency Payments,HCAIT Community Support,575,23/11/2022,2211-00388,0.00,245.88,R,Advanced Medcare Ltd,No
Http://opendatacommunities.org/id/metropolitan-district-council/leeds,Leeds City Council as Accountable Body,30/11/2022,Social Services Pooled Budgets,Jcs For People With Learning Disabilitie,Agency Payments,Home Care,568,23/11/2022,2211-00389,0.00,1311.36,R,Advanced Medcare Ltd,No
Http://opendatacommunities.org/id/metropolitan-district-council/leeds,Leeds City Council as Accountable Body,30/11/2022,Social Services Pooled Budgets,Jcs For People With Learning Disabilitie,Agency Payments,Home Care,568,18/11/2022,2211-00390,0.00,5456.75,R,Advantage Healthcare Ltd,No
Http://opendatacommunities.org/id/metropolitan-district-council/leeds,Leeds City Council as Accountable Body,30/11/2022,Social Services Pooled Budgets,Jcs For People With Learning Disabilitie,Agency Payments,Home Care,568,18/11/2022,2211-00391,0.00,5657.50,R,Advantage Healthcare Ltd,No
Http://opendatacommunities.org/id/metropolitan-district-council/leeds,Leeds City Council as Accountable Body,30/11/2022,Social Services Pooled Budgets,Jcs For People With Learning Disabilitie,Agency Payments,Home Care,568,25/11/2022,2211-00392,0.00,4927.50,R,Advantage Healthcare Ltd,No
Http://opendatacommunities.org/id/metropolitan-district-council/leeds,Leeds City Council,30/11/2022,Adults and Health,Services For Older People - 65 and Over,Agency Payments,Payments To Voluntary Organisations,561,03/11/2022,2211-00393,0.00,99900.00,R,Advonet,No
Http://opendatacommunities.org/id/metropolitan-district-council/leeds,Leeds City Council,30/11/2022,Adults and Health,Services For Older People - 65 and Over,Agency Payments,Payments To Voluntary Organisations,561,03/11/2022,2211-00394,0.00,99900.00,R,Advonet,No
Http://opendatacommunities.org/id/metropolitan-district-council/leeds,Leeds City Council,30/11/2022,Adults and Health,Services For Adults Under 65 Learn/Dis,Agency Payments,Payments To Voluntary Organisations,561,11/11/2022,2211-00395,0.00,16150.46,R,Advonet,No
Http://opendatacommunities.org/id/metropolitan-district-council/leeds,Leeds City Council,30/11/2022,Adults and Health,Services For Adults Under 65 Mental/Dis,Agency Payments,Home Care,568,11/11/2022,2211-00396,0.00,115.20,R,Advonet,No
Http://opendatacommunities.org/id/metropolitan-district-council/leeds,Leeds City Council,30/11/2022,Adults and Health,Services For Adults Under 65 Mental/Dis,Agency Payments,Home Care,568,11/11/2022,2211-00397,0.00,204.90,R,Advonet,No
Http://opendatacommunities.org/id/metropolitan-district-council/leeds,Leeds City Council as Accountable Body,30/11/2022,Social Services Pooled Budgets,Jcs For People With Learning Disabilitie,Supplies and Services,Other Hired and Contracted Services,265,11/11/2022,2211-00398,0.00,12.60,R,Advonet,No
Http://opendatacommunities.org/id/metropolitan-district-council/leeds,Leeds City Council as Accountable Body,30/11/2022,Social Services Pooled Budgets,Jcs For People With Learning Disabilitie,Supplies and Services,Other Hired and Contracted Services,265,11/11/2022,2211-00399,0.00,106.05,R,Advonet,No
Http://opendatacommunities.org/id/metropolitan-district-council/leeds,Leeds City Council as Accountable Body,30/11/2022,Social Services Pooled Budgets,Jcs For People With Learning Disabilitie,Supplies and Services,Other Hired and Contracted Services,265,11/11/2022,2211-00400,0.00,27.60,R,Advonet,No
Http://opendatacommunities.org/id/metropolitan-district-council/leeds,Leeds City Council as Accountable Body,30/11/2022,Social Services Pooled Budgets,Jcs For People With Learning Disabilitie,Supplies and Services,Other Hired and Contracted Services,265,11/11/2022,2211-00401,0.00,110.10,R,Advonet,No
Http://opendatacommunities.org/id/metropolitan-district-council/leeds,Leeds City Council as Accountable Body,30/11/2022,Social Services Pooled Budgets,Jcs For People With Learning Disabilitie,Supplies and Services,Other Hired and Contracted Services,265,11/11/2022,2211-00402,0.00,15.00,R,Advonet,No
Http://opendatacommunities.org/id/metropolitan-district-council/leeds,Leeds City Council as Accountable Body,30/11/2022,Social Services Pooled Budgets,Jcs For People With Learning Disabilitie,Supplies and Services,Other Hired and Contracted Services,265,11/11/2022,2211-00403,0.00,15.00,R,Advonet,No
Http://opendatacommunities.org/id/metropolitan-district-council/leeds,Leeds City Council as Accountable Body,30/11/2022,Social Services Pooled Budgets,Jcs For People With Learning Disabilitie,Supplies and Services,Other Hired and Contracted Services,265,11/11/2022,2211-00404,0.00,61.35,R,Advonet,No
Http://opendatacommunities.org/id/metropolitan-district-council/leeds,Leeds City Council as Accountable Body,30/11/2022,Social Services Pooled Budgets,Jcs For People With Learning Disabilitie,Supplies and Services,Other Hired and Contracted Services,265,11/11/2022,2211-00405,0.00,5.10,R,Advonet,No
Http://opendatacommunities.org/id/metropolitan-district-council/leeds,Leeds City Council as Accountable Body,30/11/2022,Social Services Pooled Budgets,Jcs For People With Learning Disabilitie,Supplies and Services,Other Hired and Contracted Services,265,11/11/2022,2211-00406,0.00,75.00,R,Advonet,No
Http://opendatacommunities.org/id/metropolitan-district-council/leeds,Leeds City Council as Accountable Body,30/11/2022,Social Services Pooled Budgets,Jcs For People With Learning Disabilitie,Supplies and Services,Other Hired and Contracted Services,265,11/11/2022,2211-00407,0.00,27.60,R,Advonet,No
Http://opendatacommunities.org/id/metropolitan-district-council/leeds,Leeds City Council as Accountable Body,30/11/2022,Social Services Pooled Budgets,Jcs For People With Learning Disabilitie,Supplies and Services,Other Hired and Contracted Services,265,11/11/2022,2211-00408,0.00,47.40,R,Advonet,No
Http://opendatacommunities.org/id/metropolitan-district-council/leeds,Leeds City Council,30/11/2022,Adults and Health,Services For Older People - 65 and Over,Agency Payments,Payments To Voluntary Organisations,561,28/11/2022,2211-00409,0.00,104750.00,R,Advonet,No
Http://opendatacommunities.org/id/metropolitan-district-council/leeds,Leeds City Council,30/11/2022,Adults and Health,Services For Older People - 65 and Over,Agency Payments,Payments To Voluntary Organisations,561,28/11/2022,2211-00410,0.00,-99900.00,R,Advonet,No
Http://opendatacommunities.org/id/metropolitan-district-council/leeds,Leeds City Council,30/11/2022,Adults and Health,Services For Older People - 65 and Over,Agency Payments,Payments To Voluntary Organisations,561,28/11/2022,2211-00411,0.00,-99900.00,R,Advonet,No
Http://opendatacommunities.org/id/metropolitan-district-council/leeds,Leeds City Council,30/11/2022,Adults and Health,Services For Older People - 65 and Over,Agency Payments,Payments To Voluntary Organisations,561,28/11/2022,2211-00412,0.00,101941.67,R,Advonet,No
Http://opendatacommunities.org/id/metropolitan-district-council/leeds,Leeds City Council,30/11/2022,City Development,Asset Management,Capital,OTHER COSTS,7,08/11/2022,2211-00413,0.00,5850.65,C,Aecom Limited,No
Http://opendatacommunities.org/id/metropolitan-district-council/leeds,Leeds City Council,30/11/2022,City Development,Highways,Capital,OTHER COSTS,7,08/11/2022,2211-00414,0.00,92742.99,C,Aecom Limited,No
Http://opendatacommunities.org/id/metropolitan-district-council/leeds,Leeds City Council,30/11/2022,City Development,Highways,Supplies and Services,Other Hired and Contracted Services,265,17/11/2022,2211-00415,0.00,3128.52,R,Aecom Limited,No
Http://opendatacommunities.org/id/metropolitan-district-council/leeds,Leeds City Council,30/11/2022,Resources,Sustainable Energy & Climate Change,Capital,OTHER COSTS,7,17/11/2022,2211-00416,0.00,25164.00,C,Aecom Limited,No
Http://opendatacommunities.org/id/metropolitan-district-council/leeds,Leeds City Council,30/11/2022,City Development,Asset Management,Capital,OTHER COSTS,7,25/11/2022,2211-00417,0.00,2580.05,C,Aecom Limited,No
Http://opendatacommunities.org/id/metropolitan-district-council/leeds,Leeds City Council,30/11/2022,City Development,Highways,Capital,OTHER COSTS,7,25/11/2022,2211-00418,0.00,15357.50,C,Aecom Limited,No
Http://opendatacommunities.org/id/metropolitan-district-council/leeds,Leeds City Council,30/11/2022,City Development,Highways,Capital,OTHER COSTS,7,25/11/2022,2211-00419,0.00,66982.25,C,Aecom Limited,No
Http://opendatacommunities.org/id/metropolitan-district-council/leeds,Leeds City Council,30/11/2022,City Development,Highways,Capital,OTHER COSTS,7,28/11/2022,2211-00420,0.00,83652.84,C,Aecom Limited,No
Http://opendatacommunities.org/id/metropolitan-district-council/leeds,Leeds City Council,30/11/2022,City Development,Highways,Capital,OTHER COSTS,7,30/11/2022,2211-00421,0.00,89334.86,C,Aecom Limited,No
Http://opendatacommunities.org/id/metropolitan-district-council/leeds,Leeds City Council,30/11/2022,Adults and Health,Services For Older People - 65 and Over,Agency Payments,Home Care,568,02/11/2022,2211-00422,0.00,54245.06,R,Aegis Care Solutions Ltd,No
Http://opendatacommunities.org/id/metropolitan-district-council/leeds,Leeds City Council,30/11/2022,Adults and Health,Services For Older People - 65 and Over,Agency Payments,HCAIT Community Support,575,02/11/2022,2211-00423,0.00,633.32,R,Aegis Care Solutions Ltd,No
Http://opendatacommunities.org/id/metropolitan-district-council/leeds,Leeds City Council,30/11/2022,Adults and Health,Services For Older People - 65 and Over,Agency Payments,HCAIT Other,577,02/11/2022,2211-00424,0.00,4528.50,R,Aegis Care Solutions Ltd,No
Http://opendatacommunities.org/id/metropolitan-district-council/leeds,Leeds City Council,30/11/2022,Adults and Health,Services For Older People Under 65 P/Dis,Agency Payments,Home Care,568,02/11/2022,2211-00425,0.00,9221.32,R,Aegis Care Solutions Ltd,No
Http://opendatacommunities.org/id/metropolitan-district-council/leeds,Leeds City Council as Accountable Body,30/11/2022,Social Services Pooled Budgets,Jcs For People With Learning Disabilitie,Agency Payments,Home Care,568,02/11/2022,2211-00426,0.00,3278.40,R,Aegis Care Solutions Ltd,No
Http://opendatacommunities.org/id/metropolitan-district-council/leeds,Leeds City Council,30/11/2022,Adults and Health,Services For Adults Under 65 Mental/Dis,Agency Payments,Home Care,568,03/11/2022,2211-00427,0.00,475.20,R,Aegis Care Solutions Ltd,No
Http://opendatacommunities.org/id/metropolitan-district-council/leeds,Leeds City Council,30/11/2022,Adults and Health,Services For Adults Under 65 Mental/Dis,Agency Payments,Home Care,568,03/11/2022,2211-00428,0.00,4400.00,R,Aegis Care Solutions Ltd,No
Http://opendatacommunities.org/id/metropolitan-district-council/leeds,Leeds City Council,30/11/2022,Adults and Health,Services For Adults Under 65 Mental/Dis,Agency Payments,Home Care,568,03/11/2022,2211-00429,0.00,1263.00,R,Aegis Care Solutions Ltd,No
Http://opendatacommunities.org/id/metropolitan-district-council/leeds,Leeds City Council,30/11/2022,Adults and Health,Services For Adults Under 65 Mental/Dis,Agency Payments,Home Care,568,03/11/2022,2211-00430,0.00,1387.70,R,Aegis Care Solutions Ltd,No
Http://opendatacommunities.org/id/metropolitan-district-council/leeds,Leeds City Council,30/11/2022,Adults and Health,Services For Adults Under 65 Mental/Dis,Agency Payments,Home Care,568,03/11/2022,2211-00431,0.00,1238.00,R,Aegis Care Solutions Ltd,No
Http://opendatacommunities.org/id/metropolitan-district-council/leeds,Leeds City Council,30/11/2022,Adults and Health,Services For Adults Under 65 Mental/Dis,Agency Payments,Home Care,568,03/11/2022,2211-00432,0.00,1247.50,R,Aegis Care Solutions Ltd,No
Http://opendatacommunities.org/id/metropolitan-district-council/leeds,Leeds City Council,30/11/2022,Adults and Health,Services For Adults Under 65 Mental/Dis,Agency Payments,Home Care,568,03/11/2022,2211-00433,0.00,1018.10,R,Aegis Care Solutions Ltd,No
Http://opendatacommunities.org/id/metropolitan-district-council/leeds,Leeds City Council,30/11/2022,Adults and Health,Services For Adults Under 65 Mental/Dis,Agency Payments,Home Care,568,03/11/2022,2211-00434,0.00,1596.25,R,Aegis Care Solutions Ltd,No
Http://opendatacommunities.org/id/metropolitan-district-council/leeds,Leeds City Council,30/11/2022,Adults and Health,Services For Adults Under 65 Mental/Dis,Agency Payments,Home Care,568,03/11/2022,2211-00435,0.00,1100.00,R,Aegis Care Solutions Ltd,No
Http://opendatacommunities.org/id/metropolitan-district-council/leeds,Leeds City Council,30/11/2022,Adults and Health,Services For Adults Under 65 Mental/Dis,Agency Payments,Home Care,568,03/11/2022,2211-00436,0.00,320.40,R,Aegis Care Solutions Ltd,No
Http://opendatacommunities.org/id/metropolitan-district-council/leeds,Leeds City Council,30/11/2022,Adults and Health,Services For Adults Under 65 Mental/Dis,Agency Payments,Home Care,568,30/11/2022,2211-00437,0.00,818.80,R,Aegis Care Solutions Ltd,No
Http://opendatacommunities.org/id/metropolitan-district-council/leeds,Leeds City Council,30/11/2022,City Development,Libraries Arts & Heritage,Supplies and Services,Other Hired and Contracted Services,265,01/11/2022,2211-00438,0.00,2650.00,R,Aesg Ltd,No
Http://opendatacommunities.org/id/metropolitan-district-council/leeds,Leeds City Council,30/11/2022,City Development,Libraries Arts & Heritage,Supplies and Services,Operational Furniture and Equipment,203,02/11/2022,2211-00439,0.00,847.50,R,Aesg Ltd,No
Http://opendatacommunities.org/id/metropolitan-district-council/leeds,Leeds City Council,30/11/2022,City Development,Libraries Arts & Heritage,Supplies and Services,Other Hired and Contracted Services,265,24/11/2022,2211-00440,0.00,3246.50,R,Aesg Ltd,No
Http://opendatacommunities.org/id/metropolitan-district-council/leeds,Leeds City Council,30/11/2022,City Development,Libraries Arts & Heritage,Supplies and Services,Advertising,211,03/11/2022,2211-00441,0.00,700.00,R,Aesthetica Magazine Ltd,No
Http://opendatacommunities.org/id/metropolitan-district-council/leeds,Leeds City Council,30/11/2022,Adults and Health,Assessment and Care Management,Agency Payments,Home Care,568,04/11/2022,2211-00442,0.00,709.60,R,Affinity Trust,No
Http://opendatacommunities.org/id/metropolitan-district-council/leeds,Leeds City Council,30/11/2022,Adults and Health,Services For Older People - 65 and Over,Agency Payments,Home Care,568,04/11/2022,2211-00443,0.00,496.72,R,Affinity Trust,No
Http://opendatacommunities.org/id/metropolitan-district-council/leeds,Leeds City Council as Accountable Body,30/11/2022,Social Services Pooled Budgets,Jcs For People With Learning Disabilitie,Agency Payments,Day Centre,564,04/11/2022,2211-00444,0.00,918.00,R,Affinity Trust,No
Http://opendatacommunities.org/id/metropolitan-district-council/leeds,Leeds City Council as Accountable Body,30/11/2022,Social Services Pooled Budgets,Jcs For People With Learning Disabilitie,Agency Payments,Day Centre,564,04/11/2022,2211-00445,0.00,13579.97,R,Affinity Trust,No
Http://opendatacommunities.org/id/metropolitan-district-council/leeds,Leeds City Council,30/11/2022,Adults and Health,Services For Adults Under 65 Mental/Dis,Agency Payments,Home Care,568,09/11/2022,2211-00446,0.00,141.92,R,Affinity Trust,No
Http://opendatacommunities.org/id/metropolitan-district-council/leeds,Leeds City Council,30/11/2022,Adults and Health,Assessment and Care Management,Agency Payments,Home Care,568,18/11/2022,2211-00447,0.00,709.60,R,Affinity Trust,No
Http://opendatacommunities.org/id/metropolitan-district-council/leeds,Leeds City Council,30/11/2022,Adults and Health,Services For Older People - 65 and Over,Agency Payments,Home Care,568,18/11/2022,2211-00448,0.00,567.68,R,Affinity Trust,No
Http://opendatacommunities.org/id/metropolitan-district-council/leeds,Leeds City Council as Accountable Body,30/11/2022,Social Services Pooled Budgets,Jcs For People With Learning Disabilitie,Agency Payments,Day Centre,564,18/11/2022,2211-00449,0.00,9142.77,R,Affinity Trust,No
Http://opendatacommunities.org/id/metropolitan-district-council/leeds,Leeds City Council as Accountable Body,30/11/2022,Social Services Pooled Budgets,Jcs For People With Learning Disabilitie,Agency Payments,Day Centre,564,18/11/2022,2211-00450,0.00,3335.12,R,Affinity Trust,No
Http://opendatacommunities.org/id/metropolitan-district-council/leeds,Leeds City Council as Accountable Body,30/11/2022,Social Services Pooled Budgets,Jcs For People With Learning Disabilitie,Agency Payments,Day Centre,564,18/11/2022,2211-00451,0.00,22048.63,R,Affinity Trust,No
Http://opendatacommunities.org/id/metropolitan-district-council/leeds,Leeds City Council as Accountable Body,30/11/2022,Social Services Pooled Budgets,Jcs For People With Learning Disabilitie,Agency Payments,Day Centre,564,18/11/2022,2211-00452,0.00,14369.40,R,Affinity Trust,No
Http://opendatacommunities.org/id/metropolitan-district-council/leeds,Leeds City Council as Accountable Body,30/11/2022,Social Services Pooled Budgets,Jcs For People With Learning Disabilitie,Agency Payments,Home Care,568,18/11/2022,2211-00453,0.00,11765.94,R,Affinity Trust,No
Http://opendatacommunities.org/id/metropolitan-district-council/leeds,Leeds City Council as Accountable Body,30/11/2022,Social Services Pooled Budgets,Jcs For People With Learning Disabilitie,Agency Payments,Day Centre,564,24/11/2022,2211-00454,0.00,24162.93,R,Affinity Trust,No
Http://opendatacommunities.org/id/metropolitan-district-council/leeds,Leeds City Council,30/11/2022,Adults and Health,Assessment and Care Management,Agency Payments,Home Care,568,25/11/2022,2211-00455,0.00,709.60,R,Affinity Trust,No
Http://opendatacommunities.org/id/metropolitan-district-council/leeds,Leeds City Council,30/11/2022,Adults and Health,Services For Older People - 65 and Over,Agency Payments,Home Care,568,25/11/2022,2211-00456,0.00,567.68,R,Affinity Trust,No
Http://opendatacommunities.org/id/metropolitan-district-council/leeds,Leeds City Council as Accountable Body,30/11/2022,Social Services Pooled Budgets,Jcs For People With Learning Disabilitie,Agency Payments,Day Centre,564,25/11/2022,2211-00457,0.00,14458.10,R,Affinity Trust,No
Http://opendatacommunities.org/id/metropolitan-district-council/leeds,Leeds City Council as Accountable Body,30/11/2022,Social Services Pooled Budgets,Jcs For People With Learning Disabilitie,Agency Payments,Day Centre,564,25/11/2022,2211-00458,0.00,3335.12,R,Affinity Trust,No
Http://opendatacommunities.org/id/metropolitan-district-council/leeds,Leeds City Council as Accountable Body,30/11/2022,Social Services Pooled Budgets,Jcs For People With Learning Disabilitie,Agency Payments,Sheltered Accommodation,569,09/11/2022,2211-00459,0.00,117970.84,R,Affinity Trust North Divisional Office,No
Http://opendatacommunities.org/id/metropolitan-district-council/leeds,Leeds City Council,30/11/2022,Communities Housing and Environment,Parks and Countryside ,Transport,Hire Of Movable Plant & Machinery,315,03/11/2022,2211-00460,0.00,4750.00,R,Afi Uplift,Yes
Http://opendatacommunities.org/id/metropolitan-district-council/leeds,Leeds City Council,30/11/2022,Communities Housing and Environment,Parks and Countryside ,Transport,Hire Of Movable Plant & Machinery,315,28/11/2022,2211-00461,0.00,2280.00,R,Afi Uplift,Yes
Http://opendatacommunities.org/id/metropolitan-district-council/leeds,Leeds City Council,30/11/2022,Children and Families,Social Care,Supplies and Services,Teaching Materials,202,18/11/2022,2211-00462,0.00,390.00,R,REDACTED PERSONAL DATA,No
Http://opendatacommunities.org/id/metropolitan-district-council/leeds,Leeds City Council,30/11/2022,Communities Housing and Environment,Parks and Countryside,Supplies and Services,Operational Materials,205,11/11/2022,2211-00463,0.00,7665.92,R,AGGREGATE INDUSTRIES UK LTD,No
Http://opendatacommunities.org/id/metropolitan-district-council/leeds,Leeds City Council,30/11/2022,Communities Housing and Environment,Customer Access,Supplies and Services,Bought In Professional Services,277,02/11/2022,2211-00464,0.00,9.00,R,Agnieszka J Collier,No
Http://opendatacommunities.org/id/metropolitan-district-council/leeds,Leeds City Council,30/11/2022,Communities Housing and Environment,Customer Access,Supplies and Services,Bought In Professional Services,277,02/11/2022,2211-00465,0.00,116.00,R,Agnieszka J Collier,No
Http://opendatacommunities.org/id/metropolitan-district-council/leeds,Leeds City Council,30/11/2022,Communities Housing and Environment,Customer Access,Supplies and Services,Bought In Professional Services,277,02/11/2022,2211-00466,0.00,13.50,R,Agnieszka J Collier,No
Http://opendatacommunities.org/id/metropolitan-district-council/leeds,Leeds City Council,30/11/2022,Communities Housing and Environment,Customer Access,Supplies and Services,Bought In Professional Services,277,02/11/2022,2211-00467,0.00,117.68,R,Agnieszka J Collier,No
Http://opendatacommunities.org/id/metropolitan-district-council/leeds,Leeds City Council,30/11/2022,Communities Housing and Environment,Customer Access,Supplies and Services,Bought In Professional Services,277,02/11/2022,2211-00468,0.00,18.00,R,Agnieszka J Collier,No
Http://opendatacommunities.org/id/metropolitan-district-council/leeds,Leeds City Council,30/11/2022,Communities Housing and Environment,Customer Access,Supplies and Services,Bought In Professional Services,277,02/11/2022,2211-00469,0.00,18.00,R,Agnieszka J Collier,No
Http://opendatacommunities.org/id/metropolitan-district-council/leeds,Leeds City Council,30/11/2022,Communities Housing and Environment,Customer Access,Supplies and Services,Bought In Professional Services,277,09/11/2022,2211-00470,0.00,13.50,R,Agnieszka J Collier,No
Http://opendatacommunities.org/id/metropolitan-district-council/leeds,Leeds City Council,30/11/2022,Communities Housing and Environment,Customer Access,Supplies and Services,Bought In Professional Services,277,09/11/2022,2211-00471,0.00,18.00,R,Agnieszka J Collier,No
Http://opendatacommunities.org/id/metropolitan-district-council/leeds,Leeds City Council,30/11/2022,Communities Housing and Environment,Customer Access,Supplies and Services,Bought In Professional Services,277,09/11/2022,2211-00472,0.00,18.00,R,Agnieszka J Collier,No
Http://opendatacommunities.org/id/metropolitan-district-council/leeds,Leeds City Council,30/11/2022,Communities Housing and Environment,Customer Access,Supplies and Services,Bought In Professional Services,277,16/11/2022,2211-00473,0.00,18.00,R,Agnieszka J Collier,No
Http://opendatacommunities.org/id/metropolitan-district-council/leeds,Leeds City Council,30/11/2022,Communities Housing and Environment,Customer Access,Supplies and Services,Bought In Professional Services,277,16/11/2022,2211-00474,0.00,80.00,R,Agnieszka J Collier,No
Http://opendatacommunities.org/id/metropolitan-district-council/leeds,Leeds City Council,30/11/2022,Communities Housing and Environment,Customer Access,Supplies and Services,Bought In Professional Services,277,16/11/2022,2211-00475,0.00,31.50,R,Agnieszka J Collier,No
Http://opendatacommunities.org/id/metropolitan-district-council/leeds,Leeds City Council,30/11/2022,Communities Housing and Environment,Customer Access,Supplies and Services,Bought In Professional Services,277,23/11/2022,2211-00476,0.00,9.00,R,Agnieszka J Collier,No
Http://opendatacommunities.org/id/metropolitan-district-council/leeds,Leeds City Council,30/11/2022,Communities Housing and Environment,Customer Access,Supplies and Services,Bought In Professional Services,277,23/11/2022,2211-00477,0.00,116.00,R,Agnieszka J Collier,No
Http://opendatacommunities.org/id/metropolitan-district-council/leeds,Leeds City Council,30/11/2022,Communities Housing and Environment,Customer Access,Supplies and Services,Bought In Professional Services,277,23/11/2022,2211-00478,0.00,13.50,R,Agnieszka J Collier,No
Http://opendatacommunities.org/id/metropolitan-district-council/leeds,Leeds City Council,30/11/2022,Communities Housing and Environment,Customer Access,Supplies and Services,Bought In Professional Services,277,23/11/2022,2211-00479,0.00,18.00,R,Agnieszka J Collier,No
Http://opendatacommunities.org/id/metropolitan-district-council/leeds,Leeds City Council,30/11/2022,Communities Housing and Environment,Customer Access,Supplies and Services,Bought In Professional Services,277,23/11/2022,2211-00480,0.00,9.00,R,Agnieszka J Collier,No
Http://opendatacommunities.org/id/metropolitan-district-council/leeds,Leeds City Council,30/11/2022,Communities Housing and Environment,Customer Access,Supplies and Services,Bought In Professional Services,277,23/11/2022,2211-00481,0.00,9.00,R,Agnieszka J Collier,No
Http://opendatacommunities.org/id/metropolitan-district-council/leeds,Leeds City Council,30/11/2022,Communities Housing and Environment,Customer Access,Supplies and Services,Bought In Professional Services,277,23/11/2022,2211-00482,0.00,120.50,R,Agnieszka J Collier,No
Http://opendatacommunities.org/id/metropolitan-district-council/leeds,Leeds City Council,30/11/2022,Communities Housing and Environment,Customer Access,Supplies and Services,Bought In Professional Services,277,30/11/2022,2211-00483,0.00,50.60,R,Agnieszka J Collier,No
Http://opendatacommunities.org/id/metropolitan-district-council/leeds,Leeds City Council,30/11/2022,Communities Housing and Environment,Customer Access,Supplies and Services,Bought In Professional Services,277,30/11/2022,2211-00484,0.00,18.00,R,Agnieszka J Collier,No
Http://opendatacommunities.org/id/metropolitan-district-council/leeds,Leeds City Council,30/11/2022,Communities Housing and Environment,Customer Access,Supplies and Services,Bought In Professional Services,277,30/11/2022,2211-00485,0.00,9.00,R,Agnieszka J Collier,No
Http://opendatacommunities.org/id/metropolitan-district-council/leeds,Leeds City Council,30/11/2022,Communities Housing and Environment,Customer Access,Supplies and Services,Bought In Professional Services,277,30/11/2022,2211-00486,0.00,18.00,R,Agnieszka J Collier,No
Http://opendatacommunities.org/id/metropolitan-district-council/leeds,Leeds City Council,30/11/2022,City Development,Recreation ,Premises,Cleaning Maintenance & Toiletries,127,25/11/2022,2211-00487,0.00,330.60,R,Agpc Hygiene Ltd,Yes
Http://opendatacommunities.org/id/metropolitan-district-council/leeds,Leeds City Council,30/11/2022,Communities Housing and Environment,Parks and Countryside ,Supplies and Services,Operational Materials,205,14/11/2022,2211-00488,0.00,63.27,R,Agriline Products Ltd,Yes
Http://opendatacommunities.org/id/metropolitan-district-council/leeds,Leeds City Council,30/11/2022,Communities Housing and Environment,Parks and Countryside,Supplies and Services,Operational Materials,205,04/11/2022,2211-00489,0.00,1358.86,R,Agrovista UK Ltd,No
Http://opendatacommunities.org/id/metropolitan-district-council/leeds,Leeds City Council,30/11/2022,Communities Housing and Environment,Parks and Countryside,Supplies and Services,Operational Materials,205,04/11/2022,2211-00490,0.00,1342.61,R,Agrovista UK Ltd,No
Http://opendatacommunities.org/id/metropolitan-district-council/leeds,Leeds City Council,30/11/2022,Communities Housing and Environment,Customer Access,Supplies and Services,Bought In Professional Services,277,09/11/2022,2211-00491,0.00,256.30,R,Ahamat Hassan,No
Http://opendatacommunities.org/id/metropolitan-district-council/leeds,Leeds City Council,30/11/2022,Communities Housing and Environment,Customer Access,Supplies and Services,Bought In Professional Services,277,02/11/2022,2211-00492,0.00,14.10,R,Ahmed Moustafa Moustafa Mousa,No
Http://opendatacommunities.org/id/metropolitan-district-council/leeds,Leeds City Council,30/11/2022,Communities Housing and Environment,Customer Access,Supplies and Services,Bought In Professional Services,277,30/11/2022,2211-00493,0.00,9.00,R,Ahmed Moustafa Moustafa Mousa,No
Http://opendatacommunities.org/id/metropolitan-district-council/leeds,Leeds City Council,30/11/2022,Communities Housing and Environment,Customer Access,Supplies and Services,Bought In Professional Services,277,30/11/2022,2211-00494,0.00,104.80,R,Ahmed T. Al-Hamdi,No
Http://opendatacommunities.org/id/metropolitan-district-council/leeds,Leeds City Council as Accountable Body,30/11/2022,Social Services Pooled Budgets,Leeds Community Equip Store Pooled Budgt,Supplies and Services,Other Equipment,203,04/11/2022,2211-00495,0.00,810.00,R,AIDAPT BATHROOMS LTD,No
Http://opendatacommunities.org/id/metropolitan-district-council/leeds,Leeds City Council as Accountable Body,30/11/2022,Social Services Pooled Budgets,Leeds Community Equip Store Pooled Budgt,Supplies and Services,Other Equipment,203,07/11/2022,2211-00496,0.00,5490.00,R,AIDAPT BATHROOMS LTD,No
Http://opendatacommunities.org/id/metropolitan-district-council/leeds,Leeds City Council as Accountable Body,30/11/2022,Social Services Pooled Budgets,Leeds Community Equip Store Pooled Budgt,Supplies and Services,Other Equipment,203,17/11/2022,2211-00497,0.00,730.00,R,AIDAPT BATHROOMS LTD,No
Http://opendatacommunities.org/id/metropolitan-district-council/leeds,Leeds City Council as Accountable Body,30/11/2022,Social Services Pooled Budgets,Leeds Community Equip Store Pooled Budgt,Supplies and Services,Other Equipment,203,28/11/2022,2211-00498,0.00,390.00,R,AIDAPT BATHROOMS LTD,No
Http://opendatacommunities.org/id/metropolitan-district-council/leeds,Leeds City Council,30/11/2022,Children and Families,Social Care,Agency Payments,Allowances,546,28/11/2022,2211-00499,0.00,100.00,R,REDACTED PERSONAL DATA,No
Http://opendatacommunities.org/id/metropolitan-district-council/leeds,Leeds City Council,30/11/2022,Strategic Accounts,Miscellaneous,Appropriations,Land Drainage Levies,665,01/11/2022,2211-00500,0.00,4037.86,R,Ainsty (2008) Internal Drainage Board,No
Http://opendatacommunities.org/id/metropolitan-district-council/leeds,Leeds City Council,30/11/2022,Communities Housing and Environment,Environmental Health,Supplies and Services,Other Hired and Contracted Services,265,03/11/2022,2211-00501,0.00,11.75,R,AIR LIQUIDE UK,No
Http://opendatacommunities.org/id/metropolitan-district-council/leeds,Leeds City Council,30/11/2022,Communities Housing and Environment,Environmental Health,Supplies and Services,Other Hired and Contracted Services,265,03/11/2022,2211-00502,0.00,11.75,R,AIR LIQUIDE UK,No
Http://opendatacommunities.org/id/metropolitan-district-council/leeds,Leeds City Council,30/11/2022,Communities Housing and Environment,Environmental Health,Supplies and Services,Other Hired and Contracted Services,265,03/11/2022,2211-00503,0.00,18.16,R,AIR LIQUIDE UK,No
Http://opendatacommunities.org/id/metropolitan-district-council/leeds,Leeds City Council,30/11/2022,Communities Housing and Environment,Environmental Health,Supplies and Services,Other Hired and Contracted Services,265,03/11/2022,2211-00504,0.00,94.00,R,AIR LIQUIDE UK,No
Http://opendatacommunities.org/id/metropolitan-district-council/leeds,Leeds City Council,30/11/2022,Children and Families,Social Care ,Supplies and Services,Holidays-  Service Users,284,03/10/2022,2211-00505,0.00,398.00,R,Airbnb * Hm5mztrmat,Yes
Http://opendatacommunities.org/id/metropolitan-district-council/leeds,Leeds City Council,30/11/2022,Children and Families,Social Care ,Supplies and Services,Holidays-  Service Users,284,06/10/2022,2211-00506,0.00,492.00,R,Airbnb * Hm5mztrmat,Yes
Http://opendatacommunities.org/id/metropolitan-district-council/leeds,Leeds City Council,30/11/2022,Children and Families,Social Care ,Supplies and Services,Holidays-  Service Users,284,11/10/2022,2211-00507,0.00,-492.00,R,Airbnb * Hm5mztrmat,Yes
Http://opendatacommunities.org/id/metropolitan-district-council/leeds,Leeds City Council,30/11/2022,Children and Families,Social Care ,Supplies and Services,Holidays-  Service Users,284,11/10/2022,2211-00508,0.00,-398.00,R,Airbnb * Hm5mztrmat,Yes
Http://opendatacommunities.org/id/metropolitan-district-council/leeds,Leeds City Council,30/11/2022,Children and Families,Social Care ,Transport,Public Transport Expenses,310,03/10/2022,2211-00509,0.00,385.75,R,Airbnb * Hm8bt8rwxe,Yes
Http://opendatacommunities.org/id/metropolitan-district-council/leeds,Leeds City Council,30/11/2022,Strategic Landlord,Property and Contracts ,Premises,General Maintenance,104,09/12/2022,2211-00510,0.00,795.20,R,Airbnb * Hma34kkpjm,Yes
Http://opendatacommunities.org/id/metropolitan-district-council/leeds,Leeds City Council,30/11/2022,Children and Families,Social Care ,Agency Payments,Contact,548,07/10/2022,2211-00511,0.00,140.33,R,Airbnb * Hmtcnasm54,Yes
Http://opendatacommunities.org/id/metropolitan-district-council/leeds,Leeds City Council,30/11/2022,Communities Housing and Environment,Parks and Countryside,Supplies and Services,Other Hired and Contracted Services,265,23/11/2022,2211-00512,0.00,892.00,R,Aire Valley Tree Services Ltd,No
Http://opendatacommunities.org/id/metropolitan-district-council/leeds,Leeds City Council,30/11/2022,Communities Housing and Environment,Parks and Countryside,Supplies and Services,Other Hired and Contracted Services,265,25/11/2022,2211-00513,0.00,583.00,R,Aire Valley Tree Services Ltd,No
Http://opendatacommunities.org/id/metropolitan-district-council/leeds,Leeds City Council,30/11/2022,Communities Housing and Environment,Parks and Countryside,Supplies and Services,Other Hired and Contracted Services,265,25/11/2022,2211-00514,0.00,581.00,R,Aire Valley Tree Services Ltd,No
Http://opendatacommunities.org/id/metropolitan-district-council/leeds,Leeds City Council,30/11/2022,Adults and Health,Services For Older People - 65 and Over,Agency Payments,Residential Care Dementia,571,09/11/2022,2211-00515,0.00,42769.54,R,Aire View Residential Home,No
Http://opendatacommunities.org/id/metropolitan-district-council/leeds,Leeds City Council,30/11/2022,Adults and Health,Services For Older People - 65 and Over,Agency Payments,Residential,580,09/11/2022,2211-00516,0.00,8502.46,R,Aire View Residential Home,No
Http://opendatacommunities.org/id/metropolitan-district-council/leeds,Leeds City Council,30/11/2022,City Development,Libraries Arts & Heritage,Supplies and Services,Operational Furniture and Equipment,203,16/11/2022,2211-00517,0.00,3810.00,R,AIREDALE CATERING EQUIPMENT LTD,No
Http://opendatacommunities.org/id/metropolitan-district-council/leeds,Leeds City Council,30/11/2022,Resources,Leeds Building Services,Supplies and Services,Operational Materials,205,22/11/2022,2211-00518,0.00,4705.00,R,AIREDALE CATERING EQUIPMENT LTD,No
Http://opendatacommunities.org/id/metropolitan-district-council/leeds,Leeds City Council,30/11/2022,Resources,Leeds Building Services,Supplies and Services,Operational Materials,205,25/11/2022,2211-00519,0.00,2240.00,R,AIREDALE CATERING EQUIPMENT LTD,No
Http://opendatacommunities.org/id/metropolitan-district-council/leeds,Leeds City Council,30/11/2022,Adults and Health,Services For Older People - 65 and Over,Agency Payments,Residential Care Dementia,571,09/11/2022,2211-00520,0.00,66287.32,R,Airedale Residential Home,No
Http://opendatacommunities.org/id/metropolitan-district-council/leeds,Leeds City Council,30/11/2022,Adults and Health,Services For Older People - 65 and Over,Agency Payments,Residential,580,09/11/2022,2211-00521,0.00,40821.74,R,Airedale Residential Home,No
Http://opendatacommunities.org/id/metropolitan-district-council/leeds,Leeds City Council,30/11/2022,Adults and Health,Services For Older People Under 65 P/Dis,Agency Payments,Residential,580,09/11/2022,2211-00522,0.00,733.50,R,Airedale Residential Home,No
Http://opendatacommunities.org/id/metropolitan-district-council/leeds,Leeds City Council,30/11/2022,Children and Families,Social Care ,Agency Payments,Contact,548,04/10/2022,2211-00523,0.00,5.95,R,Airpay 43628117-Amber Car,Yes
Http://opendatacommunities.org/id/metropolitan-district-council/leeds,Leeds City Council,30/11/2022,Children and Families,Social Care ,Transport,Public Transport Expenses,310,06/10/2022,2211-00524,0.00,10.05,R,Airpay 43658102-Amber Car,Yes
Http://opendatacommunities.org/id/metropolitan-district-council/leeds,Leeds City Council,30/11/2022,Children and Families,Social Care ,Transport,Public Transport Expenses,310,10/10/2022,2211-00525,0.00,10.96,R,Airpay 43670380-Amber Car,Yes
Http://opendatacommunities.org/id/metropolitan-district-council/leeds,Leeds City Council,30/11/2022,Children and Families,Social Care ,Transport,Public Transport Expenses,310,10/10/2022,2211-00526,0.00,10.96,R,Airpay 43719447-Amber Car,Yes
Http://opendatacommunities.org/id/metropolitan-district-council/leeds,Leeds City Council,30/11/2022,Children and Families,Social Care ,Agency Payments,Placement Support,550,12/10/2022,2211-00527,0.00,19.15,R,Airpay 43736530-Amber Car,Yes
Http://opendatacommunities.org/id/metropolitan-district-council/leeds,Leeds City Council,30/11/2022,Children and Families,Social Care ,Agency Payments,Placement Support,550,20/10/2022,2211-00528,0.00,15.95,R,Airpay 43854125-Amber Car,Yes
Http://opendatacommunities.org/id/metropolitan-district-council/leeds,Leeds City Council,30/11/2022,Children and Families,Social Care ,Appropriations,Leaving Care Allowances,634,21/10/2022,2211-00529,0.00,12.65,R,Airpay 43865885-Amber Car,Yes
Http://opendatacommunities.org/id/metropolitan-district-council/leeds,Leeds City Council,30/11/2022,Children and Families,Social Care ,Appropriations,Leaving Care Allowances,634,21/10/2022,2211-00530,0.00,10.05,R,Airpay 43866488-Amber Car,Yes
Http://opendatacommunities.org/id/metropolitan-district-council/leeds,Leeds City Council,30/11/2022,Children and Families,Social Care ,Transport,Public Transport Expenses,310,25/10/2022,2211-00531,0.00,5.12,R,Airpay 43931025-Amber Car,Yes
Http://opendatacommunities.org/id/metropolitan-district-council/leeds,Leeds City Council,30/11/2022,Children and Families,Social Care ,Transport,Public Transport Expenses,310,26/10/2022,2211-00532,0.00,15.21,R,Airpay 43934985-Amber Car,Yes
Http://opendatacommunities.org/id/metropolitan-district-council/leeds,Leeds City Council,30/11/2022,Children and Families,Social Care ,Transport,Public Transport Expenses,310,27/10/2022,2211-00533,0.00,10.79,R,Airpay 43954095-Amber Car,Yes
Http://opendatacommunities.org/id/metropolitan-district-council/leeds,Leeds City Council,30/11/2022,Children and Families,Social Care ,Transport,Public Transport Expenses,310,27/10/2022,2211-00534,0.00,10.87,R,Airpay 43956401-Amber Car,Yes
Http://opendatacommunities.org/id/metropolitan-district-council/leeds,Leeds City Council,30/11/2022,Adults and Health,Services For Adults Under 65 Learn/Dis ,Transport,Public Transport Expenses,310,28/10/2022,2211-00535,0.00,48.45,R,Airpay 43962691-Amber Car,Yes
Http://opendatacommunities.org/id/metropolitan-district-council/leeds,Leeds City Council,30/11/2022,Adults and Health,Services For Adults Under 65 Learn/Dis ,Transport,Public Transport Expenses,310,31/10/2022,2211-00536,0.00,42.35,R,Airpay 43967965-Amber Car,Yes
Http://opendatacommunities.org/id/metropolitan-district-council/leeds,Leeds City Council,30/11/2022,Adults and Health,Services For Adults Under 65 Learn/Dis ,Transport,Public Transport Expenses,310,31/10/2022,2211-00537,0.00,44.45,R,Airpay 43967971-Amber Car,Yes
Http://opendatacommunities.org/id/metropolitan-district-council/leeds,Leeds City Council,30/11/2022,Children and Families,Social Care ,Transport,Public Transport Expenses,310,28/10/2022,2211-00538,0.00,12.04,R,Airpay 43973117-Amber Car,Yes
Http://opendatacommunities.org/id/metropolitan-district-council/leeds,Leeds City Council,30/11/2022,Children and Families,Social Care ,Transport,Public Transport Expenses,310,29/10/2022,2211-00539,0.00,16.62,R,Airpay 43980818-Amber Car,Yes
Http://opendatacommunities.org/id/metropolitan-district-council/leeds,Leeds City Council,30/11/2022,Children and Families,Social Care ,Transport,Public Transport Expenses,310,01/11/2022,2211-00540,0.00,20.25,R,Airpay 44030092-Amber Car,Yes
Http://opendatacommunities.org/id/metropolitan-district-council/leeds,Leeds City Council,30/11/2022,Children and Families,Social Care ,Transport,Public Transport Expenses,310,03/11/2022,2211-00541,0.00,15.12,R,Airpay 44056180-Amber Car,Yes
Http://opendatacommunities.org/id/metropolitan-district-council/leeds,Leeds City Council,30/11/2022,Children and Families,Social Care ,Transport,Public Transport Expenses,310,06/11/2022,2211-00542,0.00,17.85,R,Airpay 44103243-Amber Car,Yes
Http://opendatacommunities.org/id/metropolitan-district-council/leeds,Leeds City Council,30/11/2022,Children and Families,Social Care ,Transport,Public Transport Expenses,310,11/11/2022,2211-00543,0.00,21.15,R,Airpay 44163301-Amber Car,Yes
Http://opendatacommunities.org/id/metropolitan-district-council/leeds,Leeds City Council,30/11/2022,Children and Families,Social Care ,Transport,Public Transport Expenses,310,15/11/2022,2211-00544,0.00,5.71,R,Airpay 44232390-Amber Car,Yes
Http://opendatacommunities.org/id/metropolitan-district-council/leeds,Leeds City Council,30/11/2022,Children and Families,Social Care ,Transport,Public Transport Expenses,310,16/11/2022,2211-00545,0.00,9.12,R,Airpay 44236108-Amber Car,Yes
Http://opendatacommunities.org/id/metropolitan-district-council/leeds,Leeds City Council,30/11/2022,Children and Families,Social Care ,Transport,Public Transport Expenses,310,16/11/2022,2211-00546,0.00,9.12,R,Airpay 44245982-Amber Car,Yes
Http://opendatacommunities.org/id/metropolitan-district-council/leeds,Leeds City Council,30/11/2022,Children and Families,Social Care ,Transport,Public Transport Expenses,310,23/11/2022,2211-00547,0.00,5.04,R,Airpay 44351510-Amber Car,Yes
Http://opendatacommunities.org/id/metropolitan-district-council/leeds,Leeds City Council,30/11/2022,Children and Families,Social Care ,Transport,Public Transport Expenses,310,25/11/2022,2211-00548,0.00,16.55,R,Airpay 44376958-Amber Car,Yes
Http://opendatacommunities.org/id/metropolitan-district-council/leeds,Leeds City Council,30/11/2022,Children and Families,Social Care ,Transport,Public Transport Expenses,310,25/11/2022,2211-00549,0.00,16.35,R,Airpay 44382190-Amber Car,Yes
Http://opendatacommunities.org/id/metropolitan-district-council/leeds,Leeds City Council,30/11/2022,Children and Families,Social Care ,Transport,Public Transport Expenses,310,28/11/2022,2211-00550,0.00,16.05,R,Airpay 44424911-Amber Car,Yes
Http://opendatacommunities.org/id/metropolitan-district-council/leeds,Leeds City Council,30/11/2022,Children and Families,Social Care ,Transport,Public Transport Expenses,310,28/11/2022,2211-00551,0.00,17.54,R,Airpay 44429803-Amber Car,Yes
Http://opendatacommunities.org/id/metropolitan-district-council/leeds,Leeds City Council,30/11/2022,Children and Families,Social Care ,Transport,Public Transport Expenses,310,30/11/2022,2211-00552,0.00,24.45,R,Airpay 44454571-Amber Car,Yes
Http://opendatacommunities.org/id/metropolitan-district-council/leeds,Leeds City Council,30/11/2022,Children and Families,Social Care ,Transport,Public Transport Expenses,310,09/12/2022,2211-00553,0.00,47.85,R,Airpay 44592594-Amber Car,Yes
Http://opendatacommunities.org/id/metropolitan-district-council/leeds,Leeds City Council,30/11/2022,Communities Housing and Environment,Community Safety,Supplies and Services,Bought In Professional Services,277,18/11/2022,2211-00554,0.00,1044.80,R,AIRWAVE SOLUTIONS LTD,No
Http://opendatacommunities.org/id/metropolitan-district-council/leeds,Leeds City Council,30/11/2022,Adults and Health,Services For Adults Under 65 Mental/Dis,Agency Payments,Fees - Level 4,520,11/11/2022,2211-00555,0.00,175.00,R,AIT Mitra Limited,No
Http://opendatacommunities.org/id/metropolitan-district-council/leeds,Leeds City Council,30/11/2022,Adults and Health,Services For Adults Under 65 Mental/Dis,Agency Payments,Fees - Level 4,520,16/11/2022,2211-00556,0.00,175.00,R,AIT Mitra Limited,No
Http://opendatacommunities.org/id/metropolitan-district-council/leeds,Leeds City Council,30/11/2022,Adults and Health,Services For Adults Under 65 Mental/Dis,Agency Payments,Fees - Level 4,520,18/11/2022,2211-00557,0.00,175.00,R,AIT Mitra Limited,No
Http://opendatacommunities.org/id/metropolitan-district-council/leeds,Leeds City Council,30/11/2022,Adults and Health,Services For Adults Under 65 Mental/Dis,Agency Payments,Fees - Level 4,520,18/11/2022,2211-00558,0.00,175.00,R,AIT Mitra Limited,No
Http://opendatacommunities.org/id/metropolitan-district-council/leeds,Leeds City Council,30/11/2022,Adults and Health,Services For Adults Under 65 Mental/Dis,Agency Payments,Fees - Level 4,520,25/11/2022,2211-00559,0.00,175.00,R,AIT Mitra Limited,No
Http://opendatacommunities.org/id/metropolitan-district-council/leeds,Leeds City Council,30/11/2022,Adults and Health,Services For Adults Under 65 Mental/Dis,Agency Payments,Fees - Level 4,520,25/11/2022,2211-00560,0.00,175.00,R,AIT Mitra Limited,No
Http://opendatacommunities.org/id/metropolitan-district-council/leeds,Leeds City Council,30/11/2022,Adults and Health,Services For Adults Under 65 Mental/Dis,Agency Payments,Fees - Level 4,520,30/11/2022,2211-00561,0.00,175.00,R,AIT Mitra Limited,No
Http://opendatacommunities.org/id/metropolitan-district-council/leeds,Leeds City Council,30/11/2022,Adults and Health,Services For Adults Under 65 Mental/Dis,Agency Payments,Fees - Level 4,520,30/11/2022,2211-00562,0.00,175.00,R,AIT Mitra Limited,No
Http://opendatacommunities.org/id/metropolitan-district-council/leeds,Leeds City Council as Accountable Body,30/11/2022,Social Services Pooled Budgets,Jcs For People With Learning Disabilitie,Agency Payments,Residential,580,09/11/2022,2211-00563,0.00,7082.20,R,AITCH care homes,No
Http://opendatacommunities.org/id/metropolitan-district-council/leeds,Leeds City Council,30/11/2022,Communities Housing and Environment,Parks and Countryside,Supplies and Services,Operational Furniture and Equipment,203,03/11/2022,2211-00564,0.00,380.00,R,Aitkens Sportsturf Ltd,No
Http://opendatacommunities.org/id/metropolitan-district-council/leeds,Leeds City Council,30/11/2022,Resources,Leeds Building Services,Supplies and Services,Operational Furniture and Equipment,203,02/11/2022,2211-00565,0.00,127.00,R,AJM FIXINGS & POWER TOOLS LTD,No
Http://opendatacommunities.org/id/metropolitan-district-council/leeds,Leeds City Council,30/11/2022,Resources,Leeds Building Services,Supplies and Services,Operational Furniture and Equipment,203,03/11/2022,2211-00566,0.00,568.16,R,AJM FIXINGS & POWER TOOLS LTD,No
Http://opendatacommunities.org/id/metropolitan-district-council/leeds,Leeds City Council,30/11/2022,Resources,Leeds Building Services,Supplies and Services,Operational Furniture and Equipment,203,03/11/2022,2211-00567,0.00,568.16,R,AJM FIXINGS & POWER TOOLS LTD,No
Http://opendatacommunities.org/id/metropolitan-district-council/leeds,Leeds City Council,30/11/2022,Resources,Leeds Building Services,Supplies and Services,Operational Furniture and Equipment,203,03/11/2022,2211-00568,0.00,436.65,R,AJM FIXINGS & POWER TOOLS LTD,No
Http://opendatacommunities.org/id/metropolitan-district-council/leeds,Leeds City Council,30/11/2022,Resources,Leeds Building Services,Supplies and Services,Operational Furniture and Equipment,203,03/11/2022,2211-00569,0.00,714.11,R,AJM FIXINGS & POWER TOOLS LTD,No
Http://opendatacommunities.org/id/metropolitan-district-council/leeds,Leeds City Council,30/11/2022,Resources,Leeds Building Services,Supplies and Services,Operational Furniture and Equipment,203,03/11/2022,2211-00570,0.00,8.72,R,AJM FIXINGS & POWER TOOLS LTD,No
Http://opendatacommunities.org/id/metropolitan-district-council/leeds,Leeds City Council,30/11/2022,Resources,Leeds Building Services,Supplies and Services,Operational Furniture and Equipment,203,03/11/2022,2211-00571,0.00,568.16,R,AJM FIXINGS & POWER TOOLS LTD,No
Http://opendatacommunities.org/id/metropolitan-district-council/leeds,Leeds City Council,30/11/2022,Resources,Leeds Building Services,Supplies and Services,Operational Furniture and Equipment,203,03/11/2022,2211-00572,0.00,1093.16,R,AJM FIXINGS & POWER TOOLS LTD,No
Http://opendatacommunities.org/id/metropolitan-district-council/leeds,Leeds City Council,30/11/2022,Resources,Leeds Building Services,Supplies and Services,Operational Furniture and Equipment,203,03/11/2022,2211-00573,0.00,99.83,R,AJM FIXINGS & POWER TOOLS LTD,No
Http://opendatacommunities.org/id/metropolitan-district-council/leeds,Leeds City Council,30/11/2022,Resources,Leeds Building Services,Supplies and Services,Operational Furniture and Equipment,203,04/11/2022,2211-00574,0.00,1454.78,R,AJM FIXINGS & POWER TOOLS LTD,No
Http://opendatacommunities.org/id/metropolitan-district-council/leeds,Leeds City Council,30/11/2022,Resources,Leeds Building Services,Premises,Cleaning Maintenance & Toiletries,127,07/11/2022,2211-00575,0.00,89.50,R,AJM FIXINGS & POWER TOOLS LTD,No
Http://opendatacommunities.org/id/metropolitan-district-council/leeds,Leeds City Council,30/11/2022,Resources,Leeds Building Services,Premises,Cleaning Maintenance & Toiletries,127,07/11/2022,2211-00576,0.00,320.00,R,AJM FIXINGS & POWER TOOLS LTD,No
Http://opendatacommunities.org/id/metropolitan-district-council/leeds,Leeds City Council,30/11/2022,Resources,Leeds Building Services,Premises,Cleaning Maintenance & Toiletries,127,07/11/2022,2211-00577,0.00,37.74,R,AJM FIXINGS & POWER TOOLS LTD,No
Http://opendatacommunities.org/id/metropolitan-district-council/leeds,Leeds City Council,30/11/2022,Resources,Leeds Building Services,Supplies and Services,Operational Furniture and Equipment,203,07/11/2022,2211-00578,0.00,155.06,R,AJM FIXINGS & POWER TOOLS LTD,No
Http://opendatacommunities.org/id/metropolitan-district-council/leeds,Leeds City Council,30/11/2022,Resources,Leeds Building Services,Supplies and Services,Operational Furniture and Equipment,203,07/11/2022,2211-00579,0.00,99.00,R,AJM FIXINGS & POWER TOOLS LTD,No
Http://opendatacommunities.org/id/metropolitan-district-council/leeds,Leeds City Council,30/11/2022,Resources,Leeds Building Services,Supplies and Services,Operational Furniture and Equipment,203,07/11/2022,2211-00580,0.00,162.22,R,AJM FIXINGS & POWER TOOLS LTD,No
Http://opendatacommunities.org/id/metropolitan-district-council/leeds,Leeds City Council,30/11/2022,Resources,Leeds Building Services,Premises,Cleaning Maintenance & Toiletries,127,10/11/2022,2211-00581,0.00,400.16,R,AJM FIXINGS & POWER TOOLS LTD,No
Http://opendatacommunities.org/id/metropolitan-district-council/leeds,Leeds City Council,30/11/2022,Resources,Leeds Building Services,Premises,Cleaning Maintenance & Toiletries,127,10/11/2022,2211-00582,0.00,197.99,R,AJM FIXINGS & POWER TOOLS LTD,No
Http://opendatacommunities.org/id/metropolitan-district-council/leeds,Leeds City Council,30/11/2022,Resources,Leeds Building Services,Premises,Cleaning Maintenance & Toiletries,127,10/11/2022,2211-00583,0.00,264.08,R,AJM FIXINGS & POWER TOOLS LTD,No
Http://opendatacommunities.org/id/metropolitan-district-council/leeds,Leeds City Council,30/11/2022,Resources,Leeds Building Services,Supplies and Services,Operational Furniture and Equipment,203,10/11/2022,2211-00584,0.00,62.99,R,AJM FIXINGS & POWER TOOLS LTD,No
Http://opendatacommunities.org/id/metropolitan-district-council/leeds,Leeds City Council,30/11/2022,Resources,Leeds Building Services,Supplies and Services,Operational Furniture and Equipment,203,10/11/2022,2211-00585,0.00,237.84,R,AJM FIXINGS & POWER TOOLS LTD,No
Http://opendatacommunities.org/id/metropolitan-district-council/leeds,Leeds City Council,30/11/2022,Resources,Leeds Building Services,Supplies and Services,Operational Furniture and Equipment,203,10/11/2022,2211-00586,0.00,117.00,R,AJM FIXINGS & POWER TOOLS LTD,No
Http://opendatacommunities.org/id/metropolitan-district-council/leeds,Leeds City Council,30/11/2022,Resources,Leeds Building Services,Premises,Cleaning Maintenance & Toiletries,127,11/11/2022,2211-00587,0.00,100.85,R,AJM FIXINGS & POWER TOOLS LTD,No
Http://opendatacommunities.org/id/metropolitan-district-council/leeds,Leeds City Council,30/11/2022,Resources,Leeds Building Services,Supplies and Services,Operational Furniture and Equipment,203,11/11/2022,2211-00588,0.00,89.06,R,AJM FIXINGS & POWER TOOLS LTD,No
Http://opendatacommunities.org/id/metropolitan-district-council/leeds,Leeds City Council,30/11/2022,Resources,Leeds Building Services,Supplies and Services,Operational Furniture and Equipment,203,11/11/2022,2211-00589,0.00,99.00,R,AJM FIXINGS & POWER TOOLS LTD,No
Http://opendatacommunities.org/id/metropolitan-district-council/leeds,Leeds City Council,30/11/2022,Resources,Leeds Building Services,Supplies and Services,Operational Furniture and Equipment,203,11/11/2022,2211-00590,0.00,435.00,R,AJM FIXINGS & POWER TOOLS LTD,No
Http://opendatacommunities.org/id/metropolitan-district-council/leeds,Leeds City Council,30/11/2022,Resources,Leeds Building Services,Supplies and Services,Operational Furniture and Equipment,203,16/11/2022,2211-00591,0.00,226.00,R,AJM FIXINGS & POWER TOOLS LTD,No
Http://opendatacommunities.org/id/metropolitan-district-council/leeds,Leeds City Council,30/11/2022,Resources,Leeds Building Services,Supplies and Services,Operational Furniture and Equipment,203,16/11/2022,2211-00592,0.00,73.23,R,AJM FIXINGS & POWER TOOLS LTD,No
Http://opendatacommunities.org/id/metropolitan-district-council/leeds,Leeds City Council,30/11/2022,Resources,Leeds Building Services,Premises,Cleaning Maintenance & Toiletries,127,17/11/2022,2211-00593,0.00,447.70,R,AJM FIXINGS & POWER TOOLS LTD,No
Http://opendatacommunities.org/id/metropolitan-district-council/leeds,Leeds City Council,30/11/2022,Resources,Leeds Building Services,Premises,Cleaning Maintenance & Toiletries,127,17/11/2022,2211-00594,0.00,32.66,R,AJM FIXINGS & POWER TOOLS LTD,No
Http://opendatacommunities.org/id/metropolitan-district-council/leeds,Leeds City Council,30/11/2022,Resources,Leeds Building Services,Supplies and Services,Operational Furniture and Equipment,203,17/11/2022,2211-00595,0.00,67.00,R,AJM FIXINGS & POWER TOOLS LTD,No
Http://opendatacommunities.org/id/metropolitan-district-council/leeds,Leeds City Council,30/11/2022,Resources,Leeds Building Services,Supplies and Services,Operational Furniture and Equipment,203,17/11/2022,2211-00596,0.00,275.00,R,AJM FIXINGS & POWER TOOLS LTD,No
Http://opendatacommunities.org/id/metropolitan-district-council/leeds,Leeds City Council,30/11/2022,Resources,Leeds Building Services,Supplies and Services,Operational Furniture and Equipment,203,17/11/2022,2211-00597,0.00,175.98,R,AJM FIXINGS & POWER TOOLS LTD,No
Http://opendatacommunities.org/id/metropolitan-district-council/leeds,Leeds City Council,30/11/2022,Resources,Leeds Building Services,Supplies and Services,Operational Furniture and Equipment,203,17/11/2022,2211-00598,0.00,426.16,R,AJM FIXINGS & POWER TOOLS LTD,No
Http://opendatacommunities.org/id/metropolitan-district-council/leeds,Leeds City Council,30/11/2022,Resources,Leeds Building Services,Supplies and Services,Operational Furniture and Equipment,203,17/11/2022,2211-00599,0.00,130.70,R,AJM FIXINGS & POWER TOOLS LTD,No
Http://opendatacommunities.org/id/metropolitan-district-council/leeds,Leeds City Council,30/11/2022,Resources,Leeds Building Services,Supplies and Services,Operational Furniture and Equipment,203,17/11/2022,2211-00600,0.00,1734.50,R,AJM FIXINGS & POWER TOOLS LTD,No
Http://opendatacommunities.org/id/metropolitan-district-council/leeds,Leeds City Council,30/11/2022,Resources,Leeds Building Services,Supplies and Services,Operational Furniture and Equipment,203,17/11/2022,2211-00601,0.00,296.00,R,AJM FIXINGS & POWER TOOLS LTD,No
Http://opendatacommunities.org/id/metropolitan-district-council/leeds,Leeds City Council,30/11/2022,Resources,Leeds Building Services,Supplies and Services,Operational Furniture and Equipment,203,17/11/2022,2211-00602,0.00,162.79,R,AJM FIXINGS & POWER TOOLS LTD,No
Http://opendatacommunities.org/id/metropolitan-district-council/leeds,Leeds City Council,30/11/2022,Resources,Leeds Building Services,Supplies and Services,Operational Furniture and Equipment,203,17/11/2022,2211-00603,0.00,142.00,R,AJM FIXINGS & POWER TOOLS LTD,No
Http://opendatacommunities.org/id/metropolitan-district-council/leeds,Leeds City Council,30/11/2022,Resources,Leeds Building Services,Supplies and Services,Operational Furniture and Equipment,203,17/11/2022,2211-00604,0.00,209.00,R,AJM FIXINGS & POWER TOOLS LTD,No
Http://opendatacommunities.org/id/metropolitan-district-council/leeds,Leeds City Council,30/11/2022,Resources,Leeds Building Services,Supplies and Services,Operational Furniture and Equipment,203,18/11/2022,2211-00605,0.00,571.00,R,AJM FIXINGS & POWER TOOLS LTD,No
Http://opendatacommunities.org/id/metropolitan-district-council/leeds,Leeds City Council,30/11/2022,Resources,Leeds Building Services,Supplies and Services,Operational Furniture and Equipment,203,18/11/2022,2211-00606,0.00,426.16,R,AJM FIXINGS & POWER TOOLS LTD,No
Http://opendatacommunities.org/id/metropolitan-district-council/leeds,Leeds City Council,30/11/2022,Resources,Leeds Building Services,Supplies and Services,Operational Furniture and Equipment,203,21/11/2022,2211-00607,0.00,555.60,R,AJM FIXINGS & POWER TOOLS LTD,No
Http://opendatacommunities.org/id/metropolitan-district-council/leeds,Leeds City Council,30/11/2022,Resources,Leeds Building Services,Premises,Cleaning Maintenance & Toiletries,127,22/11/2022,2211-00608,0.00,160.00,R,AJM FIXINGS & POWER TOOLS LTD,No
Http://opendatacommunities.org/id/metropolitan-district-council/leeds,Leeds City Council,30/11/2022,Resources,Leeds Building Services,Premises,Cleaning Maintenance & Toiletries,127,22/11/2022,2211-00609,0.00,126.30,R,AJM FIXINGS & POWER TOOLS LTD,No
Http://opendatacommunities.org/id/metropolitan-district-council/leeds,Leeds City Council,30/11/2022,Resources,Leeds Building Services,Premises,Cleaning Maintenance & Toiletries,127,22/11/2022,2211-00610,0.00,361.25,R,AJM FIXINGS & POWER TOOLS LTD,No
Http://opendatacommunities.org/id/metropolitan-district-council/leeds,Leeds City Council,30/11/2022,Resources,Leeds Building Services,Supplies and Services,Operational Furniture and Equipment,203,22/11/2022,2211-00611,0.00,579.99,R,AJM FIXINGS & POWER TOOLS LTD,No
Http://opendatacommunities.org/id/metropolitan-district-council/leeds,Leeds City Council,30/11/2022,Resources,Leeds Building Services,Supplies and Services,Operational Furniture and Equipment,203,22/11/2022,2211-00612,0.00,61.00,R,AJM FIXINGS & POWER TOOLS LTD,No
Http://opendatacommunities.org/id/metropolitan-district-council/leeds,Leeds City Council,30/11/2022,Resources,Leeds Building Services,Supplies and Services,Operational Furniture and Equipment,203,22/11/2022,2211-00613,0.00,65.00,R,AJM FIXINGS & POWER TOOLS LTD,No
Http://opendatacommunities.org/id/metropolitan-district-council/leeds,Leeds City Council,30/11/2022,Resources,Leeds Building Services,Supplies and Services,Operational Furniture and Equipment,203,22/11/2022,2211-00614,0.00,618.16,R,AJM FIXINGS & POWER TOOLS LTD,No
Http://opendatacommunities.org/id/metropolitan-district-council/leeds,Leeds City Council,30/11/2022,Resources,Leeds Building Services,Supplies and Services,Operational Furniture and Equipment,203,22/11/2022,2211-00615,0.00,95.95,R,AJM FIXINGS & POWER TOOLS LTD,No
Http://opendatacommunities.org/id/metropolitan-district-council/leeds,Leeds City Council,30/11/2022,Resources,Leeds Building Services,Supplies and Services,Operational Furniture and Equipment,203,22/11/2022,2211-00616,0.00,518.00,R,AJM FIXINGS & POWER TOOLS LTD,No
Http://opendatacommunities.org/id/metropolitan-district-council/leeds,Leeds City Council,30/11/2022,Resources,Leeds Building Services,Supplies and Services,Operational Furniture and Equipment,203,22/11/2022,2211-00617,0.00,525.00,R,AJM FIXINGS & POWER TOOLS LTD,No
Http://opendatacommunities.org/id/metropolitan-district-council/leeds,Leeds City Council,30/11/2022,Resources,Leeds Building Services,Supplies and Services,Operational Furniture and Equipment,203,22/11/2022,2211-00618,0.00,146.00,R,AJM FIXINGS & POWER TOOLS LTD,No
Http://opendatacommunities.org/id/metropolitan-district-council/leeds,Leeds City Council,30/11/2022,Resources,Leeds Building Services,Supplies and Services,Operational Furniture and Equipment,203,22/11/2022,2211-00619,0.00,38.26,R,AJM FIXINGS & POWER TOOLS LTD,No
Http://opendatacommunities.org/id/metropolitan-district-council/leeds,Leeds City Council,30/11/2022,Resources,Leeds Building Services,Supplies and Services,Operational Furniture and Equipment,203,22/11/2022,2211-00620,0.00,368.98,R,AJM FIXINGS & POWER TOOLS LTD,No
Http://opendatacommunities.org/id/metropolitan-district-council/leeds,Leeds City Council,30/11/2022,Resources,Leeds Building Services,Supplies and Services,Operational Furniture and Equipment,203,22/11/2022,2211-00621,0.00,87.60,R,AJM FIXINGS & POWER TOOLS LTD,No
Http://opendatacommunities.org/id/metropolitan-district-council/leeds,Leeds City Council,30/11/2022,Resources,Leeds Building Services,Supplies and Services,Operational Furniture and Equipment,203,22/11/2022,2211-00622,0.00,79.99,R,AJM FIXINGS & POWER TOOLS LTD,No
Http://opendatacommunities.org/id/metropolitan-district-council/leeds,Leeds City Council,30/11/2022,Resources,Leeds Building Services,Supplies and Services,Operational Furniture and Equipment,203,22/11/2022,2211-00623,0.00,258.29,R,AJM FIXINGS & POWER TOOLS LTD,No
Http://opendatacommunities.org/id/metropolitan-district-council/leeds,Leeds City Council,30/11/2022,Resources,Leeds Building Services,Supplies and Services,Operational Furniture and Equipment,203,22/11/2022,2211-00624,0.00,33.10,R,AJM FIXINGS & POWER TOOLS LTD,No
Http://opendatacommunities.org/id/metropolitan-district-council/leeds,Leeds City Council,30/11/2022,Resources,Leeds Building Services,Premises,Cleaning Maintenance & Toiletries,127,24/11/2022,2211-00625,0.00,1744.00,R,AJM FIXINGS & POWER TOOLS LTD,No
Http://opendatacommunities.org/id/metropolitan-district-council/leeds,Leeds City Council,30/11/2022,Resources,Leeds Building Services,Premises,Cleaning Maintenance & Toiletries,127,24/11/2022,2211-00626,0.00,1692.00,R,AJM FIXINGS & POWER TOOLS LTD,No
Http://opendatacommunities.org/id/metropolitan-district-council/leeds,Leeds City Council,30/11/2022,Resources,Leeds Building Services,Premises,Cleaning Maintenance & Toiletries,127,24/11/2022,2211-00627,0.00,730.00,R,AJM FIXINGS & POWER TOOLS LTD,No
Http://opendatacommunities.org/id/metropolitan-district-council/leeds,Leeds City Council,30/11/2022,Resources,Leeds Building Services,Premises,Cleaning Maintenance & Toiletries,127,24/11/2022,2211-00628,0.00,34.12,R,AJM FIXINGS & POWER TOOLS LTD,No
Http://opendatacommunities.org/id/metropolitan-district-council/leeds,Leeds City Council,30/11/2022,Resources,Leeds Building Services,Supplies and Services,Operational Furniture and Equipment,203,24/11/2022,2211-00629,0.00,152.43,R,AJM FIXINGS & POWER TOOLS LTD,No
Http://opendatacommunities.org/id/metropolitan-district-council/leeds,Leeds City Council,30/11/2022,Resources,Leeds Building Services,Supplies and Services,Operational Furniture and Equipment,203,24/11/2022,2211-00630,0.00,238.77,R,AJM FIXINGS & POWER TOOLS LTD,No
Http://opendatacommunities.org/id/metropolitan-district-council/leeds,Leeds City Council,30/11/2022,Resources,Leeds Building Services,Supplies and Services,Operational Furniture and Equipment,203,24/11/2022,2211-00631,0.00,68.00,R,AJM FIXINGS & POWER TOOLS LTD,No
Http://opendatacommunities.org/id/metropolitan-district-council/leeds,Leeds City Council,30/11/2022,Resources,Leeds Building Services,Supplies and Services,Operational Furniture and Equipment,203,24/11/2022,2211-00632,0.00,125.83,R,AJM FIXINGS & POWER TOOLS LTD,No
Http://opendatacommunities.org/id/metropolitan-district-council/leeds,Leeds City Council,30/11/2022,Resources,Leeds Building Services,Supplies and Services,Operational Furniture and Equipment,203,24/11/2022,2211-00633,0.00,400.79,R,AJM FIXINGS & POWER TOOLS LTD,No
Http://opendatacommunities.org/id/metropolitan-district-council/leeds,Leeds City Council,30/11/2022,Resources,Leeds Building Services,Supplies and Services,Operational Furniture and Equipment,203,24/11/2022,2211-00634,0.00,47.45,R,AJM FIXINGS & POWER TOOLS LTD,No
Http://opendatacommunities.org/id/metropolitan-district-council/leeds,Leeds City Council,30/11/2022,Resources,Leeds Building Services,Supplies and Services,Operational Furniture and Equipment,203,24/11/2022,2211-00635,0.00,634.20,R,AJM FIXINGS & POWER TOOLS LTD,No
Http://opendatacommunities.org/id/metropolitan-district-council/leeds,Leeds City Council,30/11/2022,Resources,Leeds Building Services,Premises,Cleaning Maintenance & Toiletries,127,25/11/2022,2211-00636,0.00,387.45,R,AJM FIXINGS & POWER TOOLS LTD,No
Http://opendatacommunities.org/id/metropolitan-district-council/leeds,Leeds City Council,30/11/2022,Resources,Leeds Building Services,Supplies and Services,Operational Furniture and Equipment,203,25/11/2022,2211-00637,0.00,97.00,R,AJM FIXINGS & POWER TOOLS LTD,No
Http://opendatacommunities.org/id/metropolitan-district-council/leeds,Leeds City Council,30/11/2022,Resources,Leeds Building Services,Supplies and Services,Operational Furniture and Equipment,203,25/11/2022,2211-00638,0.00,146.46,R,AJM FIXINGS & POWER TOOLS LTD,No
Http://opendatacommunities.org/id/metropolitan-district-council/leeds,Leeds City Council,30/11/2022,Resources,Leeds Building Services,Supplies and Services,Operational Furniture and Equipment,203,25/11/2022,2211-00639,0.00,95.00,R,AJM FIXINGS & POWER TOOLS LTD,No
Http://opendatacommunities.org/id/metropolitan-district-council/leeds,Leeds City Council,30/11/2022,Resources,Leeds Building Services,Supplies and Services,Operational Furniture and Equipment,203,25/11/2022,2211-00640,0.00,162.79,R,AJM FIXINGS & POWER TOOLS LTD,No
Http://opendatacommunities.org/id/metropolitan-district-council/leeds,Leeds City Council,30/11/2022,Resources,Leeds Building Services,Supplies and Services,Operational Furniture and Equipment,203,29/11/2022,2211-00641,0.00,1710.57,R,AJM FIXINGS & POWER TOOLS LTD,No
Http://opendatacommunities.org/id/metropolitan-district-council/leeds,Leeds City Council,30/11/2022,Resources,Leeds Building Services,Supplies and Services,Operational Furniture and Equipment,203,29/11/2022,2211-00642,0.00,29.30,R,AJM FIXINGS & POWER TOOLS LTD,No
Http://opendatacommunities.org/id/metropolitan-district-council/leeds,Leeds City Council,30/11/2022,Resources,Leeds Building Services,Supplies and Services,Operational Furniture and Equipment,203,29/11/2022,2211-00643,0.00,359.16,R,AJM FIXINGS & POWER TOOLS LTD,No
Http://opendatacommunities.org/id/metropolitan-district-council/leeds,Leeds City Council,30/11/2022,Communities Housing and Environment,Waste Management,Premises,General Maintenance,104,18/11/2022,2211-00644,0.00,3000.00,R,AK Containers Technical Services Ltd,No
Http://opendatacommunities.org/id/metropolitan-district-council/leeds,Leeds City Council,30/11/2022,Children and Families,Social Care,Supplies and Services,General Amenity For Clients/Residents,285,08/11/2022,2211-00645,0.00,4.80,R,REDACTED PERSONAL DATA,No
Http://opendatacommunities.org/id/metropolitan-district-council/leeds,Leeds City Council,30/11/2022,Children and Families,Social Care,Transport,Public Transport Expenses,310,08/11/2022,2211-00646,0.00,12.80,R,REDACTED PERSONAL DATA,No
Http://opendatacommunities.org/id/metropolitan-district-council/leeds,Leeds City Council,30/11/2022,City Development,Libraries Arts & Heritage,Supplies and Services,Other Hired and Contracted Services,265,16/11/2022,2211-00647,0.00,4800.00,R,REDACTED PERSONAL DATA,No
Http://opendatacommunities.org/id/metropolitan-district-council/leeds,Leeds City Council,30/11/2022,Communities Housing and Environment,Strategic Housing Partnership & Support,Capital,CONSTRUCTION,3,04/11/2022,2211-00648,0.00,5000.00,C,AKR Construction Ltd,No
Http://opendatacommunities.org/id/metropolitan-district-council/leeds,Leeds City Council,30/11/2022,Communities Housing and Environment,Strategic Housing Partnership & Support,Capital,CONSTRUCTION,3,11/11/2022,2211-00649,0.00,10000.00,C,AKR Construction Ltd,No
Http://opendatacommunities.org/id/metropolitan-district-council/leeds,Leeds City Council,30/11/2022,Communities Housing and Environment,Strategic Housing Partnership & Support,Capital,CONSTRUCTION,3,18/11/2022,2211-00650,0.00,2100.00,C,AKR Construction Ltd,No
Http://opendatacommunities.org/id/metropolitan-district-council/leeds,Leeds City Council,30/11/2022,Communities Housing and Environment,Strategic Housing Partnership & Support,Capital,CONSTRUCTION,3,25/11/2022,2211-00651,0.00,3000.00,C,AKR Construction Ltd,No
Http://opendatacommunities.org/id/metropolitan-district-council/leeds,Leeds City Council,30/11/2022,Communities Housing and Environment,Strategic Housing Partnership & Support,Capital,CONSTRUCTION,3,25/11/2022,2211-00652,0.00,1500.00,C,AKR Construction Ltd,No
Http://opendatacommunities.org/id/metropolitan-district-council/leeds,Leeds City Council,30/11/2022,Communities Housing and Environment,Strategic Housing Partnership & Support,Capital,CONSTRUCTION,3,25/11/2022,2211-00653,0.00,2500.00,C,AKR Construction Ltd,No
Http://opendatacommunities.org/id/metropolitan-district-council/leeds,Leeds City Council,30/11/2022,Communities Housing and Environment,Strategic Housing Partnership & Support,Capital,CONSTRUCTION,3,25/11/2022,2211-00654,0.00,1500.00,C,AKR Construction Ltd,No
Http://opendatacommunities.org/id/metropolitan-district-council/leeds,Leeds City Council,30/11/2022,Children and Families,Social Care ,Appropriations,Leaving Care Grants,635,02/11/2022,2211-00655,0.00,37.95,R,Al Murad,Yes
Http://opendatacommunities.org/id/metropolitan-district-council/leeds,Leeds City Council,30/11/2022,City Development,Recreation,External Income,Sporting & Other Recreational Fees,928,09/11/2022,2211-00656,0.00,124.75,R,REDACTED PERSONAL DATA,No
Http://opendatacommunities.org/id/metropolitan-district-council/leeds,Leeds City Council,30/11/2022,Communities Housing and Environment,Parks and Countryside ,Premises,Maintenance Of Buildings,101,29/11/2022,2211-00657,0.00,35934.24,R,Alba Trees Plc,Yes
Http://opendatacommunities.org/id/metropolitan-district-council/leeds,Leeds City Council,30/11/2022,Communities Housing and Environment,Parks and Countryside ,Premises,Maintenance Of Buildings,101,29/11/2022,2211-00658,0.00,39305.82,R,Alba Trees Plc,Yes
Http://opendatacommunities.org/id/metropolitan-district-council/leeds,Leeds City Council,30/11/2022,Communities Housing and Environment,Communities,Supplies and Services,Computer Software & Equipment,214,11/11/2022,2211-00659,0.00,1228.33,R,Alcium Software Ltd,No
Http://opendatacommunities.org/id/metropolitan-district-council/leeds,Leeds City Council,30/11/2022,Adults and Health,Public Health ,Supplies and Services,Operational Materials,205,08/11/2022,2211-00660,0.00,575.70,R,Aldi,Yes
Http://opendatacommunities.org/id/metropolitan-district-council/leeds,Leeds City Council,30/11/2022,Children and Families,Social Care ,Supplies and Services,Food & Drink,231,02/12/2022,2211-00661,0.00,23.20,R,Aldi,Yes
Http://opendatacommunities.org/id/metropolitan-district-council/leeds,Leeds City Council,30/11/2022,Children and Families,Social Care ,Supplies and Services,Food & Drink,231,08/12/2022,2211-00662,0.00,22.47,R,Aldi,Yes
Http://opendatacommunities.org/id/metropolitan-district-council/leeds,Leeds City Council,30/11/2022,Children and Families,Social Care ,Supplies and Services,Food & Drink,231,25/11/2022,2211-00663,0.00,3.32,R,Aldi 10 779,Yes
Http://opendatacommunities.org/id/metropolitan-district-council/leeds,Leeds City Council,30/11/2022,Children and Families,Social Care ,Supplies and Services,Food & Drink,231,03/11/2022,2211-00664,0.00,35.87,R,Aldi 103 779,Yes
Http://opendatacommunities.org/id/metropolitan-district-council/leeds,Leeds City Council,30/11/2022,Children and Families,Social Care ,Supplies and Services,Food & Drink,231,24/11/2022,2211-00665,0.00,23.22,R,Aldi 103 779,Yes
Http://opendatacommunities.org/id/metropolitan-district-council/leeds,Leeds City Council,30/11/2022,Children and Families,Social Care ,Employees,Basic Pay,1,13/10/2022,2211-00666,0.00,22.42,R,Aldi 40 779,Yes
Http://opendatacommunities.org/id/metropolitan-district-council/leeds,Leeds City Council,30/11/2022,Children and Families,Social Care ,Supplies and Services,Food & Drink,231,21/10/2022,2211-00667,0.00,46.67,R,Aldi 40 779,Yes
Http://opendatacommunities.org/id/metropolitan-district-council/leeds,Leeds City Council,30/11/2022,Children and Families,Social Care ,Supplies and Services,Food & Drink,231,25/10/2022,2211-00668,0.00,5.02,R,Aldi 40 779,Yes
Http://opendatacommunities.org/id/metropolitan-district-council/leeds,Leeds City Council,30/11/2022,Children and Families,Social Care ,Appropriations,Young Peoples Activities,652,31/10/2022,2211-00669,0.00,9.80,R,Aldi 40 779,Yes
Http://opendatacommunities.org/id/metropolitan-district-council/leeds,Leeds City Council,30/11/2022,Children and Families,Social Care ,Supplies and Services,Food & Drink,231,07/11/2022,2211-00670,0.00,2.47,R,Aldi 40 779,Yes
Http://opendatacommunities.org/id/metropolitan-district-council/leeds,Leeds City Council,30/11/2022,Children and Families,Social Care ,Supplies and Services,Food & Drink,231,08/11/2022,2211-00671,0.00,8.92,R,Aldi 40 779,Yes
Http://opendatacommunities.org/id/metropolitan-district-council/leeds,Leeds City Council,30/11/2022,Children and Families,Social Care ,Supplies and Services,Food & Drink,231,08/12/2022,2211-00672,0.00,11.65,R,Aldi 40 779,Yes
Http://opendatacommunities.org/id/metropolitan-district-council/leeds,Leeds City Council,30/11/2022,Children and Families,Social Care ,Agency Payments,Section 17,551,30/09/2022,2211-00673,0.00,29.91,R,Aldi 49 779,Yes
Http://opendatacommunities.org/id/metropolitan-district-council/leeds,Leeds City Council,30/11/2022,Children and Families,Social Care ,Supplies and Services,Food & Drink,231,02/10/2022,2211-00674,0.00,0.49,R,Aldi 49 779,Yes
Http://opendatacommunities.org/id/metropolitan-district-council/leeds,Leeds City Council,30/11/2022,Children and Families,Social Care ,Appropriations,Leaving Care Allowances,634,18/10/2022,2211-00675,0.00,13.70,R,Aldi 49 779,Yes
Http://opendatacommunities.org/id/metropolitan-district-council/leeds,Leeds City Council,30/11/2022,Children and Families,Social Care ,Appropriations,Young Peoples Rewards,653,21/10/2022,2211-00676,0.00,50.00,R,Aldi 49 779,Yes
Http://opendatacommunities.org/id/metropolitan-district-council/leeds,Leeds City Council,30/11/2022,Children and Families,Social Care ,Supplies and Services,Food & Drink,231,05/11/2022,2211-00677,0.00,13.74,R,Aldi 49 779,Yes
Http://opendatacommunities.org/id/metropolitan-district-council/leeds,Leeds City Council,30/11/2022,Children and Families,Social Care ,Appropriations,Leaving Care Allowances,634,16/11/2022,2211-00678,0.00,47.23,R,Aldi 49 779,Yes
Http://opendatacommunities.org/id/metropolitan-district-council/leeds,Leeds City Council,30/11/2022,Adults and Health,Services For Older People - 65 and Over ,Supplies and Services,Food & Drink,231,08/12/2022,2211-00679,0.00,30.59,R,Aldi 49 779,Yes
Http://opendatacommunities.org/id/metropolitan-district-council/leeds,Leeds City Council,30/11/2022,Communities Housing and Environment,Parks and Countryside ,Supplies and Services,Operational Furniture and Equipment,203,10/10/2022,2211-00680,0.00,9.97,R,Aldi 63779,Yes
Http://opendatacommunities.org/id/metropolitan-district-council/leeds,Leeds City Council,30/11/2022,Children and Families,Social Care ,Agency Payments,Section 17,551,03/10/2022,2211-00681,0.00,9.37,R,Aldi 71 779,Yes
Http://opendatacommunities.org/id/metropolitan-district-council/leeds,Leeds City Council,30/11/2022,Children and Families,Social Care ,Agency Payments,Section 17,551,07/10/2022,2211-00682,0.00,17.45,R,Aldi 71 779,Yes
Http://opendatacommunities.org/id/metropolitan-district-council/leeds,Leeds City Council,30/11/2022,Children and Families,Social Care ,Appropriations,Leaving Care Allowances,634,07/10/2022,2211-00683,0.00,45.04,R,Aldi 71 779,Yes
Http://opendatacommunities.org/id/metropolitan-district-council/leeds,Leeds City Council,30/11/2022,Children and Families,Social Care ,Appropriations,Leaving Care Allowances,634,10/10/2022,2211-00684,0.00,16.97,R,Aldi 71 779,Yes
Http://opendatacommunities.org/id/metropolitan-district-council/leeds,Leeds City Council,30/11/2022,Children and Families,Social Care ,Agency Payments,Section 17,551,24/10/2022,2211-00685,0.00,15.18,R,Aldi 71 779,Yes
Http://opendatacommunities.org/id/metropolitan-district-council/leeds,Leeds City Council,30/11/2022,Children and Families,Social Care ,Agency Payments,Section 17,551,26/10/2022,2211-00686,0.00,12.16,R,Aldi 71 779,Yes
Http://opendatacommunities.org/id/metropolitan-district-council/leeds,Leeds City Council,30/11/2022,Children and Families,Social Care ,Agency Payments,Section 17,551,27/10/2022,2211-00687,0.00,30.69,R,Aldi 71 779,Yes
Http://opendatacommunities.org/id/metropolitan-district-council/leeds,Leeds City Council,30/11/2022,Children and Families,Social Care ,Agency Payments,Section 17,551,08/11/2022,2211-00688,0.00,21.93,R,Aldi 71 779,Yes
Http://opendatacommunities.org/id/metropolitan-district-council/leeds,Leeds City Council,30/11/2022,Children and Families,Social Care ,Appropriations,Leaving Care Allowances,634,09/11/2022,2211-00689,0.00,24.82,R,Aldi 71 779,Yes
Http://opendatacommunities.org/id/metropolitan-district-council/leeds,Leeds City Council,30/11/2022,Children and Families,Social Care ,Agency Payments,Section 17,551,29/11/2022,2211-00690,0.00,44.52,R,Aldi 71 779,Yes
Http://opendatacommunities.org/id/metropolitan-district-council/leeds,Leeds City Council,30/11/2022,Children and Families,Social Care ,Supplies and Services,Food & Drink,231,02/12/2022,2211-00691,0.00,42.49,R,Aldi 71 779,Yes
Http://opendatacommunities.org/id/metropolitan-district-council/leeds,Leeds City Council,30/11/2022,Children and Families,Social Care ,Agency Payments,Section 17,551,05/12/2022,2211-00692,0.00,21.27,R,Aldi 71 779,Yes
Http://opendatacommunities.org/id/metropolitan-district-council/leeds,Leeds City Council,30/11/2022,Communities Housing and Environment,Communities ,Supplies and Services,'Well Being' Large Grants Projects,230,20/10/2022,2211-00693,0.00,80.00,R,Aldi 779117,Yes
Http://opendatacommunities.org/id/metropolitan-district-council/leeds,Leeds City Council,30/11/2022,City Development,Libraries Arts & Heritage ,Supplies and Services,Food & Drink,231,24/10/2022,2211-00694,0.00,3.10,R,Aldi 779117,Yes
Http://opendatacommunities.org/id/metropolitan-district-council/leeds,Leeds City Council,30/11/2022,Communities Housing and Environment,Communities ,Supplies and Services,Food & Drink,231,25/11/2022,2211-00695,0.00,160.28,R,Aldi 779117,Yes
Http://opendatacommunities.org/id/metropolitan-district-council/leeds,Leeds City Council,30/11/2022,Children and Families,Social Care ,Appropriations,Young Peoples Activities,652,22/10/2022,2211-00696,0.00,27.67,R,Aldi 779-126,Yes
Http://opendatacommunities.org/id/metropolitan-district-council/leeds,Leeds City Council,30/11/2022,Children and Families,Social Care ,Supplies and Services,Food & Drink,231,25/10/2022,2211-00697,0.00,10.06,R,Aldi 779-126,Yes
Http://opendatacommunities.org/id/metropolitan-district-council/leeds,Leeds City Council,30/11/2022,Communities Housing and Environment,Customer Access ,Supplies and Services,Food & Drink,231,03/12/2022,2211-00698,0.00,7.45,R,Aldi 779148,Yes
Http://opendatacommunities.org/id/metropolitan-district-council/leeds,Leeds City Council,30/11/2022,Adults and Health,Services For Older People - 65 and Over ,Supplies and Services,General Amenity For Clients/Residents,285,25/11/2022,2211-00699,0.00,7.74,R,Aldi 779-90,Yes
Http://opendatacommunities.org/id/metropolitan-district-council/leeds,Leeds City Council,30/11/2022,Children and Families,Social Care ,Appropriations,Leaving Care Allowances,634,10/11/2022,2211-00700,0.00,49.36,R,Aldi 82 779,Yes
Http://opendatacommunities.org/id/metropolitan-district-council/leeds,Leeds City Council,30/11/2022,Children and Families,Social Care ,Supplies and Services,Food & Drink,231,05/10/2022,2211-00701,0.00,26.27,R,Aldi 85 779,Yes
Http://opendatacommunities.org/id/metropolitan-district-council/leeds,Leeds City Council,30/11/2022,Children and Families,Social Care ,Supplies and Services,Food & Drink,231,11/10/2022,2211-00702,0.00,35.53,R,Aldi 85 779,Yes
Http://opendatacommunities.org/id/metropolitan-district-council/leeds,Leeds City Council,30/11/2022,Children and Families,Social Care ,Supplies and Services,Food & Drink,231,12/10/2022,2211-00703,0.00,16.94,R,Aldi 85 779,Yes
Http://opendatacommunities.org/id/metropolitan-district-council/leeds,Leeds City Council,30/11/2022,Children and Families,Social Care ,Supplies and Services,Food & Drink,231,13/10/2022,2211-00704,0.00,18.23,R,Aldi 85 779,Yes
Http://opendatacommunities.org/id/metropolitan-district-council/leeds,Leeds City Council,30/11/2022,Children and Families,Social Care ,Supplies and Services,Food & Drink,231,18/10/2022,2211-00705,0.00,15.90,R,Aldi 85 779,Yes
Http://opendatacommunities.org/id/metropolitan-district-council/leeds,Leeds City Council,30/11/2022,Children and Families,Social Care ,Supplies and Services,Food & Drink,231,08/11/2022,2211-00706,0.00,20.81,R,Aldi 85 779,Yes
Http://opendatacommunities.org/id/metropolitan-district-council/leeds,Leeds City Council,30/11/2022,Children and Families,Social Care ,Supplies and Services,Food & Drink,231,11/11/2022,2211-00707,0.00,25.00,R,Aldi 85 779,Yes
Http://opendatacommunities.org/id/metropolitan-district-council/leeds,Leeds City Council,30/11/2022,Children and Families,Social Care ,Supplies and Services,Food & Drink,231,15/11/2022,2211-00708,0.00,22.57,R,Aldi 85 779,Yes
Http://opendatacommunities.org/id/metropolitan-district-council/leeds,Leeds City Council,30/11/2022,Children and Families,Social Care ,Supplies and Services,Crockery Cutlery & Utensils,221,16/11/2022,2211-00709,0.00,8.32,R,Aldi 85 779,Yes
Http://opendatacommunities.org/id/metropolitan-district-council/leeds,Leeds City Council,30/11/2022,Children and Families,Social Care ,Supplies and Services,Food & Drink,231,16/11/2022,2211-00710,0.00,31.65,R,Aldi 85 779,Yes
Http://opendatacommunities.org/id/metropolitan-district-council/leeds,Leeds City Council,30/11/2022,Children and Families,Social Care ,Supplies and Services,Food & Drink,231,29/11/2022,2211-00711,0.00,31.70,R,Aldi 85 779,Yes
Http://opendatacommunities.org/id/metropolitan-district-council/leeds,Leeds City Council,30/11/2022,Children and Families,Social Care ,Supplies and Services,Food & Drink,231,07/12/2022,2211-00712,0.00,19.99,R,Aldi 85 779,Yes
Http://opendatacommunities.org/id/metropolitan-district-council/leeds,Leeds City Council,30/11/2022,Children and Families,Social Care ,Supplies and Services,Food & Drink,231,08/12/2022,2211-00713,0.00,6.17,R,Aldi 85 779,Yes
Http://opendatacommunities.org/id/metropolitan-district-council/leeds,Leeds City Council,30/11/2022,Adults and Health,Services For Older People Under 65 P/Dis ,Supplies and Services,Food & Drink,231,19/10/2022,2211-00714,0.00,11.45,R,Aldi 88 779,Yes
Http://opendatacommunities.org/id/metropolitan-district-council/leeds,Leeds City Council,30/11/2022,Children and Families,Social Care ,Supplies and Services,Food & Drink,231,10/11/2022,2211-00715,0.00,4.75,R,Aldi 88 779,Yes
Http://opendatacommunities.org/id/metropolitan-district-council/leeds,Leeds City Council,30/11/2022,Children and Families,Social Care ,Supplies and Services,Food & Drink,231,11/11/2022,2211-00716,0.00,49.22,R,Aldi 88 779,Yes
Http://opendatacommunities.org/id/metropolitan-district-council/leeds,Leeds City Council,30/11/2022,Adults and Health,Services For Older People Under 65 P/Dis ,Supplies and Services,Food & Drink,231,30/11/2022,2211-00717,0.00,15.42,R,Aldi 88 779,Yes
Http://opendatacommunities.org/id/metropolitan-district-council/leeds,Leeds City Council,30/11/2022,Children and Families,Social Care ,Supplies and Services,Food & Drink,231,30/09/2022,2211-00718,0.00,8.60,R,Aldi 89 779,Yes
Http://opendatacommunities.org/id/metropolitan-district-council/leeds,Leeds City Council,30/11/2022,Children and Families,Social Care ,Supplies and Services,Food & Drink,231,03/10/2022,2211-00719,0.00,44.49,R,Aldi 89 779,Yes
Http://opendatacommunities.org/id/metropolitan-district-council/leeds,Leeds City Council,30/11/2022,Children and Families,Social Care ,Supplies and Services,Food & Drink,231,03/10/2022,2211-00720,0.00,224.55,R,Aldi 89 779,Yes
Http://opendatacommunities.org/id/metropolitan-district-council/leeds,Leeds City Council,30/11/2022,City Development,Libraries Arts & Heritage ,Supplies and Services,Operational Materials,205,12/10/2022,2211-00721,0.00,81.75,R,Aldi 89 779,Yes
Http://opendatacommunities.org/id/metropolitan-district-council/leeds,Leeds City Council,30/11/2022,City Development,Libraries Arts & Heritage ,Supplies and Services,Food & Drink,231,12/10/2022,2211-00722,0.00,10.85,R,Aldi 89 779,Yes
Http://opendatacommunities.org/id/metropolitan-district-council/leeds,Leeds City Council,30/11/2022,Children and Families,Social Care ,Supplies and Services,Food & Drink,231,15/10/2022,2211-00723,0.00,65.76,R,Aldi 89 779,Yes
Http://opendatacommunities.org/id/metropolitan-district-council/leeds,Leeds City Council,30/11/2022,Children and Families,Social Care ,Supplies and Services,Food & Drink,231,24/10/2022,2211-00724,0.00,113.75,R,Aldi 89 779,Yes
Http://opendatacommunities.org/id/metropolitan-district-council/leeds,Leeds City Council,30/11/2022,Children and Families,Social Care ,Supplies and Services,Food & Drink,231,28/10/2022,2211-00725,0.00,5.70,R,Aldi 89 779,Yes
Http://opendatacommunities.org/id/metropolitan-district-council/leeds,Leeds City Council,30/11/2022,Children and Families,Social Care ,Supplies and Services,Food & Drink,231,05/11/2022,2211-00726,0.00,44.97,R,Aldi 89 779,Yes
Http://opendatacommunities.org/id/metropolitan-district-council/leeds,Leeds City Council,30/11/2022,Children and Families,Social Care ,Supplies and Services,Food & Drink,231,07/11/2022,2211-00727,0.00,138.24,R,Aldi 89 779,Yes
Http://opendatacommunities.org/id/metropolitan-district-council/leeds,Leeds City Council,30/11/2022,Children and Families,Social Care ,Supplies and Services,Food & Drink,231,14/11/2022,2211-00728,0.00,172.32,R,Aldi 89 779,Yes
Http://opendatacommunities.org/id/metropolitan-district-council/leeds,Leeds City Council,30/11/2022,Children and Families,Social Care ,Supplies and Services,Food & Drink,231,18/11/2022,2211-00729,0.00,7.91,R,Aldi 89 779,Yes
Http://opendatacommunities.org/id/metropolitan-district-council/leeds,Leeds City Council,30/11/2022,Children and Families,Social Care ,Supplies and Services,Food & Drink,231,21/11/2022,2211-00730,0.00,204.54,R,Aldi 89 779,Yes
Http://opendatacommunities.org/id/metropolitan-district-council/leeds,Leeds City Council,30/11/2022,Children and Families,Social Care ,Supplies and Services,Food & Drink,231,23/11/2022,2211-00731,0.00,6.86,R,Aldi 89 779,Yes
Http://opendatacommunities.org/id/metropolitan-district-council/leeds,Leeds City Council,30/11/2022,Children and Families,Social Care ,Supplies and Services,Food & Drink,231,27/11/2022,2211-00732,0.00,3.30,R,Aldi 89 779,Yes
Http://opendatacommunities.org/id/metropolitan-district-council/leeds,Leeds City Council,30/11/2022,Children and Families,Social Care ,Supplies and Services,Food & Drink,231,05/12/2022,2211-00733,0.00,249.20,R,Aldi 89 779,Yes
Http://opendatacommunities.org/id/metropolitan-district-council/leeds,Leeds City Council,30/11/2022,Communities Housing and Environment,Customer Access ,Supplies and Services,Food & Drink,231,01/10/2022,2211-00734,0.00,60.82,R,Aldi Stores,Yes
Http://opendatacommunities.org/id/metropolitan-district-council/leeds,Leeds City Council,30/11/2022,Children and Families,Social Care ,Appropriations,Leaving Care Allowances,634,03/10/2022,2211-00735,0.00,10.00,R,Aldi Stores,Yes
Http://opendatacommunities.org/id/metropolitan-district-council/leeds,Leeds City Council,30/11/2022,Children and Families,Social Care ,Supplies and Services,Food & Drink,231,05/10/2022,2211-00736,0.00,23.10,R,Aldi Stores,Yes
Http://opendatacommunities.org/id/metropolitan-district-council/leeds,Leeds City Council,30/11/2022,Children and Families,Social Care ,Appropriations,Leaving Care Allowances,634,05/10/2022,2211-00737,0.00,43.85,R,Aldi Stores,Yes
Http://opendatacommunities.org/id/metropolitan-district-council/leeds,Leeds City Council,30/11/2022,Children and Families,Social Care ,Agency Payments,Section 17,551,11/10/2022,2211-00738,0.00,18.49,R,Aldi Stores,Yes
Http://opendatacommunities.org/id/metropolitan-district-council/leeds,Leeds City Council,30/11/2022,Children and Families,Social Care ,Appropriations,Leaving Care Allowances,634,13/10/2022,2211-00739,0.00,17.74,R,Aldi Stores,Yes
Http://opendatacommunities.org/id/metropolitan-district-council/leeds,Leeds City Council,30/11/2022,Children and Families,Social Care ,Appropriations,Leaving Care Allowances,634,13/10/2022,2211-00740,0.00,16.71,R,Aldi Stores,Yes
Http://opendatacommunities.org/id/metropolitan-district-council/leeds,Leeds City Council,30/11/2022,Children and Families,Social Care ,Appropriations,Leaving Care Grants,635,13/10/2022,2211-00741,0.00,27.93,R,Aldi Stores,Yes
Http://opendatacommunities.org/id/metropolitan-district-council/leeds,Leeds City Council,30/11/2022,Children and Families,Social Care ,Supplies and Services,Food & Drink,231,18/10/2022,2211-00742,0.00,4.08,R,Aldi Stores,Yes
Http://opendatacommunities.org/id/metropolitan-district-council/leeds,Leeds City Council,30/11/2022,City Development,Recreation ,Supplies and Services,Operational Furniture and Equipment,203,27/10/2022,2211-00743,0.00,8.66,R,Aldi Stores,Yes
Http://opendatacommunities.org/id/metropolitan-district-council/leeds,Leeds City Council,30/11/2022,Children and Families,Social Care ,Supplies and Services,Food & Drink,231,05/11/2022,2211-00744,0.00,55.74,R,Aldi Stores,Yes
Http://opendatacommunities.org/id/metropolitan-district-council/leeds,Leeds City Council,30/11/2022,Children and Families,Social Care ,Appropriations,Leaving Care Grants,635,07/11/2022,2211-00745,0.00,36.98,R,Aldi Stores,Yes
Http://opendatacommunities.org/id/metropolitan-district-council/leeds,Leeds City Council,30/11/2022,Children and Families,Social Care ,Supplies and Services,Food & Drink,231,08/11/2022,2211-00746,0.00,11.38,R,Aldi Stores,Yes
Http://opendatacommunities.org/id/metropolitan-district-council/leeds,Leeds City Council,30/11/2022,City Development,Recreation ,Supplies and Services,Operational Furniture and Equipment,203,10/11/2022,2211-00747,0.00,7.56,R,Aldi Stores,Yes
Http://opendatacommunities.org/id/metropolitan-district-council/leeds,Leeds City Council,30/11/2022,Children and Families,Social Care ,Supplies and Services,Food & Drink,231,22/11/2022,2211-00748,0.00,21.80,R,Aldi Stores,Yes
Http://opendatacommunities.org/id/metropolitan-district-council/leeds,Leeds City Council,30/11/2022,Children and Families,Social Care ,Appropriations,Leaving Care Allowances,634,23/11/2022,2211-00749,0.00,46.40,R,Aldi Stores,Yes
Http://opendatacommunities.org/id/metropolitan-district-council/leeds,Leeds City Council,30/11/2022,Children and Families,Social Care ,Supplies and Services,Food & Drink,231,29/11/2022,2211-00750,0.00,10.28,R,Aldi Stores,Yes
Http://opendatacommunities.org/id/metropolitan-district-council/leeds,Leeds City Council,30/11/2022,Communities Housing and Environment,Communities ,Supplies and Services,'Well Being' Large Grants Projects,230,29/11/2022,2211-00751,0.00,2.60,R,Aldi Stores,Yes
Http://opendatacommunities.org/id/metropolitan-district-council/leeds,Leeds City Council,30/11/2022,Children and Families,Social Care ,Supplies and Services,Teaching Materials,202,01/12/2022,2211-00752,0.00,11.22,R,Aldi Stores,Yes
Http://opendatacommunities.org/id/metropolitan-district-council/leeds,Leeds City Council,30/11/2022,Children and Families,Social Care ,Agency Payments,Allowances,546,05/12/2022,2211-00753,0.00,20.00,R,Aldi Stores,Yes
Http://opendatacommunities.org/id/metropolitan-district-council/leeds,Leeds City Council,30/11/2022,Children and Families,Social Care,Agency Payments,Contact,548,07/11/2022,2211-00754,0.00,36.90,R,REDACTED PERSONAL DATA,No
Http://opendatacommunities.org/id/metropolitan-district-council/leeds,Leeds City Council,30/11/2022,Children and Families,Social Care,Agency Payments,Contact,548,14/11/2022,2211-00755,0.00,36.90,R,REDACTED PERSONAL DATA,No
Http://opendatacommunities.org/id/metropolitan-district-council/leeds,Leeds City Council,30/11/2022,Communities Housing and Environment,Customer Access,Supplies and Services,Bought In Professional Services,277,02/11/2022,2211-00756,0.00,18.00,R,Alena Zueva,No
Http://opendatacommunities.org/id/metropolitan-district-council/leeds,Leeds City Council,30/11/2022,Children and Families,Social Care,Internal Recharges,Legal Disbursements,411,02/11/2022,2211-00757,0.00,361.00,R,Alex Taylor,No
Http://opendatacommunities.org/id/metropolitan-district-council/leeds,Leeds City Council,30/11/2022,Resources,Commercial Services,Supplies and Services,Other Hired and Contracted Services,265,04/11/2022,2211-00758,0.00,100.00,R,ALEX WAGG,No
Http://opendatacommunities.org/id/metropolitan-district-council/leeds,Leeds City Council,30/11/2022,Resources,Commercial Services,Supplies and Services,Other Hired and Contracted Services,265,04/11/2022,2211-00759,0.00,80.00,R,ALEX WAGG,No
Http://opendatacommunities.org/id/metropolitan-district-council/leeds,Leeds City Council,30/11/2022,Resources,Commercial Services,Supplies and Services,Other Hired and Contracted Services,265,04/11/2022,2211-00760,0.00,80.00,R,ALEX WAGG,No
Http://opendatacommunities.org/id/metropolitan-district-council/leeds,Leeds City Council,30/11/2022,Resources,Commercial Services,Supplies and Services,Other Hired and Contracted Services,265,18/11/2022,2211-00761,0.00,210.00,R,ALEX WAGG,No
Http://opendatacommunities.org/id/metropolitan-district-council/leeds,Leeds City Council,30/11/2022,Resources,Commercial Services,Supplies and Services,Other Hired and Contracted Services,265,18/11/2022,2211-00762,0.00,80.00,R,ALEX WAGG,No
Http://opendatacommunities.org/id/metropolitan-district-council/leeds,Leeds City Council,30/11/2022,Resources,Commercial Services,Supplies and Services,Other Hired and Contracted Services,265,18/11/2022,2211-00763,0.00,70.00,R,ALEX WAGG,No
Http://opendatacommunities.org/id/metropolitan-district-council/leeds,Leeds City Council,30/11/2022,Resources,Commercial Services,Supplies and Services,Other Hired and Contracted Services,265,18/11/2022,2211-00764,0.00,70.00,R,ALEX WAGG,No
Http://opendatacommunities.org/id/metropolitan-district-council/leeds,Leeds City Council,30/11/2022,Resources,Commercial Services,Supplies and Services,Other Hired and Contracted Services,265,18/11/2022,2211-00765,0.00,120.00,R,ALEX WAGG,No
Http://opendatacommunities.org/id/metropolitan-district-council/leeds,Leeds City Council,30/11/2022,Resources,Commercial Services,Supplies and Services,Other Hired and Contracted Services,265,18/11/2022,2211-00766,0.00,70.00,R,ALEX WAGG,No
Http://opendatacommunities.org/id/metropolitan-district-council/leeds,Leeds City Council,30/11/2022,Adults and Health,Services For Older People - 65 and Over,Agency Payments,Residential Care Dementia,571,09/11/2022,2211-00767,0.00,27793.93,R,ALEXandER RESIDENTIAL HOME,No
Http://opendatacommunities.org/id/metropolitan-district-council/leeds,Leeds City Council,30/11/2022,Adults and Health,Services For Older People - 65 and Over,Agency Payments,Residential,580,09/11/2022,2211-00768,0.00,20201.24,R,ALEXandER RESIDENTIAL HOME,No
Http://opendatacommunities.org/id/metropolitan-district-council/leeds,Leeds City Council,30/11/2022,Communities Housing and Environment,Communities,Supplies and Services,Other Hired and Contracted Services,265,25/11/2022,2211-00769,0.00,700.00,R,REDACTED PERSONAL DATA,No
Http://opendatacommunities.org/id/metropolitan-district-council/leeds,Leeds City Council,30/11/2022,Children and Families,Social Care,Supplies and Services,General Amenity For Clients/Residents,285,14/11/2022,2211-00770,0.00,6.25,R,REDACTED PERSONAL DATA,No
Http://opendatacommunities.org/id/metropolitan-district-council/leeds,Leeds City Council,30/11/2022,Children and Families,Social Care,Transport,Public Transport Expenses,310,14/11/2022,2211-00771,0.00,20.40,R,REDACTED PERSONAL DATA,No
Http://opendatacommunities.org/id/metropolitan-district-council/leeds,Leeds City Council,30/11/2022,Communities Housing and Environment,Customer Access,Supplies and Services,Bought In Professional Services,277,02/11/2022,2211-00772,0.00,76.50,R,Alexandra Costenco,No
Http://opendatacommunities.org/id/metropolitan-district-council/leeds,Leeds City Council,30/11/2022,Communities Housing and Environment,Customer Access,Supplies and Services,Bought In Professional Services,277,09/11/2022,2211-00773,0.00,22.50,R,Alexandra Costenco,No
Http://opendatacommunities.org/id/metropolitan-district-council/leeds,Leeds City Council,30/11/2022,Communities Housing and Environment,Customer Access,Supplies and Services,Bought In Professional Services,277,09/11/2022,2211-00774,0.00,18.00,R,Alexandra Costenco,No
Http://opendatacommunities.org/id/metropolitan-district-council/leeds,Leeds City Council,30/11/2022,Communities Housing and Environment,Customer Access,Supplies and Services,Bought In Professional Services,277,09/11/2022,2211-00775,0.00,13.50,R,Alexandra Costenco,No
Http://opendatacommunities.org/id/metropolitan-district-council/leeds,Leeds City Council,30/11/2022,Adults and Health,Services For Older People - 65 and Over,Agency Payments,Residential Care Dementia,571,09/11/2022,2211-00776,0.00,1281.39,R,ALEXandRA COURT,No
Http://opendatacommunities.org/id/metropolitan-district-council/leeds,Leeds City Council,30/11/2022,Adults and Health,Services For Older People - 65 and Over,Agency Payments,Residential,580,09/11/2022,2211-00777,0.00,6854.04,R,ALEXandRA COURT,No
Http://opendatacommunities.org/id/metropolitan-district-council/leeds,Leeds City Council,30/11/2022,Children and Families,Social Care,Agency Payments,Services Rendered By Other Organisations,511,04/11/2022,2211-00778,0.00,233.03,R,REDACTED PERSONAL DATA,No
Http://opendatacommunities.org/id/metropolitan-district-council/leeds,Leeds City Council,30/11/2022,Adults and Health,Services For Older People - 65 and Over ,Supplies and Services,Clothing & Uniforms,241,04/10/2022,2211-00779,0.00,105.35,R,Alexandra Website,Yes
Http://opendatacommunities.org/id/metropolitan-district-council/leeds,Leeds City Council,30/11/2022,Adults and Health,Home Care Services ,Supplies and Services,Clothing & Uniforms,241,07/10/2022,2211-00780,0.00,88.79,R,Alexandra Website,Yes
Http://opendatacommunities.org/id/metropolitan-district-council/leeds,Leeds City Council,30/11/2022,Adults and Health,Services For Older People - 65 and Over ,Supplies and Services,Clothing & Uniforms,241,05/12/2022,2211-00781,0.00,54.66,R,Alexandra Website,Yes
Http://opendatacommunities.org/id/metropolitan-district-council/leeds,Leeds City Council,30/11/2022,Adults and Health,Services For Older People - 65 and Over ,Supplies and Services,Clothing & Uniforms,241,06/12/2022,2211-00782,0.00,364.32,R,Alexandra Website,Yes
Http://opendatacommunities.org/id/metropolitan-district-council/leeds,Leeds City Council,30/11/2022,Children and Families,Social Care,Agency Payments,Placement Support,550,01/11/2022,2211-00783,0.00,439.87,R,REDACTED PERSONAL DATA,No
Http://opendatacommunities.org/id/metropolitan-district-council/leeds,Leeds City Council,30/11/2022,Resources,Leeds Building Services,Supplies and Services,Other Hired and Contracted Services,265,03/11/2022,2211-00784,0.00,780.00,R,Alfred Bagnall & Sons (Leeds) Ltd,No
Http://opendatacommunities.org/id/metropolitan-district-council/leeds,Leeds City Council,30/11/2022,Resources,Leeds Building Services,Supplies and Services,Other Hired and Contracted Services,265,03/11/2022,2211-00785,0.00,1170.00,R,Alfred Bagnall & Sons (Leeds) Ltd,No
Http://opendatacommunities.org/id/metropolitan-district-council/leeds,Leeds City Council,30/11/2022,Resources,Leeds Building Services,Supplies and Services,Other Hired and Contracted Services,265,09/11/2022,2211-00786,0.00,380.00,R,Alfred Bagnall & Sons (Leeds) Ltd,No
